﻿Body Name,Body,Service Area Categorisation,Service Division Categorisation,Responsible Unit,Expenses Type,Detailed Expenses Type,Payment Date,Transaction Number,Payment Amount,Supplier Type,Supplier Name,Supplier Id
Portsmouth City Council,PCC,Housing Revenue Account,"Rents, Rates, Taxes and Other Charges","Housing, Neighbourhood and Building Services",Premises-Related Expenditure,Rates,25-Feb-22,6557709,124,OTHER LOCAL AUTHORITY,HAVANT BOROUGH COUNCIL,300000020457057
Portsmouth City Council,PCC,Housing Revenue Account,"Rents, Rates, Taxes and Other Charges","Housing, Neighbourhood and Building Services",Premises-Related Expenditure,Rates,25-Feb-22,6557709,124,OTHER LOCAL AUTHORITY,HAVANT BOROUGH COUNCIL,300000020457057
Portsmouth City Council,PCC,Housing Revenue Account,"Rents, Rates, Taxes and Other Charges","Housing, Neighbourhood and Building Services",Premises-Related Expenditure,Rates,25-Feb-22,6557709,124,OTHER LOCAL AUTHORITY,HAVANT BOROUGH COUNCIL,300000020457057
Portsmouth City Council,PCC,Housing Revenue Account,"Rents, Rates, Taxes and Other Charges","Housing, Neighbourhood and Building Services",Premises-Related Expenditure,Rates,25-Feb-22,6557709,120,OTHER LOCAL AUTHORITY,HAVANT BOROUGH COUNCIL,300000020457057
Portsmouth City Council,PCC,Housing Revenue Account,"Rents, Rates, Taxes and Other Charges","Housing, Neighbourhood and Building Services",Premises-Related Expenditure,Rates,25-Feb-22,6557709,110,OTHER LOCAL AUTHORITY,HAVANT BOROUGH COUNCIL,300000020457057
Portsmouth City Council,PCC,Housing Services,Homelessness,"Housing, Neighbourhood and Building Services",Premises-Related Expenditure,Rents,01-Feb-22,6552529,"6,000.00",SUPPLIER,K H PROPERTY INVESTMENT LIMITED,300000020467836
Portsmouth City Council,PCC,Housing Revenue Account,"Rents, Rates, Taxes and Other Charges","Housing, Neighbourhood and Building Services",Premises-Related Expenditure,Rates,25-Feb-22,6557709,112,OTHER LOCAL AUTHORITY,HAVANT BOROUGH COUNCIL,300000020457057
Portsmouth City Council,PCC,Children's and Education Services,Special Schools,Children's Services and Education,Third Party Payments,Other establishments,25-Feb-22,6557716,"169,369.76",SUPPLIER,SOLENT ACADEMIES TRUST,300000020477417
Portsmouth City Council,PCC,Children's and Education Services,Special Schools,Children's Services and Education,Third Party Payments,Other establishments,25-Feb-22,6557716,"25,273.20",SUPPLIER,SOLENT ACADEMIES TRUST,300000020477417
Portsmouth City Council,PCC,Children's and Education Services,Special Schools,Children's Services and Education,Third Party Payments,Other establishments,25-Feb-22,6557716,"17,266.64",SUPPLIER,SOLENT ACADEMIES TRUST,300000020477417
Portsmouth City Council,PCC,Children's and Education Services,Special Schools,Children's Services and Education,Third Party Payments,Other establishments,25-Feb-22,6557719,"189,943.36",SUPPLIER,SOLENT ACADEMIES TRUST,300000020477417
Portsmouth City Council,PCC,Children's and Education Services,Special Schools,Children's Services and Education,Third Party Payments,Other establishments,25-Feb-22,6557719,"24,425.60",SUPPLIER,SOLENT ACADEMIES TRUST,300000020477417
Portsmouth City Council,PCC,Children's and Education Services,Special Schools,Children's Services and Education,Third Party Payments,Other establishments,25-Feb-22,6557719,"15,600.00",SUPPLIER,SOLENT ACADEMIES TRUST,300000020477417
Portsmouth City Council,PCC,Children's and Education Services,Special Schools,Children's Services and Education,Third Party Payments,Other establishments,25-Feb-22,6557718,"86,635.28",SUPPLIER,SOLENT ACADEMIES TRUST,300000020477417
Portsmouth City Council,PCC,Children's and Education Services,Special Schools,Children's Services and Education,Third Party Payments,Other establishments,25-Feb-22,6557718,"3,118.00",SUPPLIER,SOLENT ACADEMIES TRUST,300000020477417
Portsmouth City Council,PCC,Children's and Education Services,Special Schools,Children's Services and Education,Third Party Payments,Other establishments,25-Feb-22,6557718,"3,666.64",SUPPLIER,SOLENT ACADEMIES TRUST,300000020477417
Portsmouth City Council,PCC,Children's and Education Services,Special Schools,Children's Services and Education,Third Party Payments,Other establishments,25-Feb-22,6557717,"112,474.00",SUPPLIER,THE DELTA EDUCATION TRUST,300000020481637
Portsmouth City Council,PCC,Children's and Education Services,Management and Support Services,Children's Services and Education,Third Party Payments,Other establishments,25-Feb-22,6557717,"19,040.00",SUPPLIER,THE DELTA EDUCATION TRUST,300000020481637
Portsmouth City Council,PCC,Children's and Education Services,Special Schools,Children's Services and Education,Third Party Payments,Other establishments,25-Feb-22,6557717,"10,569.86",SUPPLIER,THE DELTA EDUCATION TRUST,300000020481637
Portsmouth City Council,PCC,Children's and Education Services,Special Schools,Children's Services and Education,Third Party Payments,Other establishments,25-Feb-22,6557717,"6,666.71",SUPPLIER,THE DELTA EDUCATION TRUST,300000020481637
Portsmouth City Council,PCC,Children's and Education Services,Management and Support Services,Children's Services and Education,Third Party Payments,Other establishments,25-Feb-22,6557717,"4,800.00",SUPPLIER,THE DELTA EDUCATION TRUST,300000020481637
Portsmouth City Council,PCC,Children's and Education Services,Management and Support Services,Children's Services and Education,Third Party Payments,Other establishments,25-Feb-22,6557717,"52,800.00",SUPPLIER,THE DELTA EDUCATION TRUST,300000020481637
Portsmouth City Council,PCC,Housing Revenue Account,"Rents, Rates, Taxes and Other Charges","Housing, Neighbourhood and Building Services",Premises-Related Expenditure,Rates,25-Feb-22,6557709,126,OTHER LOCAL AUTHORITY,HAVANT BOROUGH COUNCIL,300000020457057
Portsmouth City Council,PCC,Housing Revenue Account,"Rents, Rates, Taxes and Other Charges","Housing, Neighbourhood and Building Services",Premises-Related Expenditure,Rates,25-Feb-22,6557709,129,OTHER LOCAL AUTHORITY,HAVANT BOROUGH COUNCIL,300000020457057
Portsmouth City Council,PCC,Housing Revenue Account,"Rents, Rates, Taxes and Other Charges","Housing, Neighbourhood and Building Services",Premises-Related Expenditure,Rates,25-Feb-22,6557709,122,OTHER LOCAL AUTHORITY,HAVANT BOROUGH COUNCIL,300000020457057
Portsmouth City Council,PCC,Housing Revenue Account,"Rents, Rates, Taxes and Other Charges","Housing, Neighbourhood and Building Services",Premises-Related Expenditure,Rates,25-Feb-22,6557709,119,OTHER LOCAL AUTHORITY,HAVANT BOROUGH COUNCIL,300000020457057
Portsmouth City Council,PCC,Housing Revenue Account,"Rents, Rates, Taxes and Other Charges","Housing, Neighbourhood and Building Services",Premises-Related Expenditure,Rates,25-Feb-22,6557709,125,OTHER LOCAL AUTHORITY,HAVANT BOROUGH COUNCIL,300000020457057
Portsmouth City Council,PCC,Housing Revenue Account,"Rents, Rates, Taxes and Other Charges","Housing, Neighbourhood and Building Services",Premises-Related Expenditure,Rates,25-Feb-22,6557709,135,OTHER LOCAL AUTHORITY,HAVANT BOROUGH COUNCIL,300000020457057
Portsmouth City Council,PCC,Highways and Transport Services,"Airports, Harbours and Toll Facilities",Portsmouth International Port,Premises-Related Expenditure,"Repairs, alterations and maintenance of buildings",14-Feb-22,6555229,-485,LIMITED COMPANY,ML (UK) LTD,300000020463133
Portsmouth City Council,PCC,Housing Revenue Account,"Rents, Rates, Taxes and Other Charges","Housing, Neighbourhood and Building Services",Premises-Related Expenditure,Rates,25-Feb-22,6557709,159,OTHER LOCAL AUTHORITY,HAVANT BOROUGH COUNCIL,300000020457057
Portsmouth City Council,PCC,Children's and Education Services,Management and Support Services,Children's Services and Education,Third Party Payments,Other establishments,25-Feb-22,6557700,"6,666.81",SUPPLIER,THE THINKING SCHOOLS TRUST,300000020481073
Portsmouth City Council,PCC,Housing Revenue Account,"Rents, Rates, Taxes and Other Charges","Housing, Neighbourhood and Building Services",Premises-Related Expenditure,Rates,25-Feb-22,6557709,143,OTHER LOCAL AUTHORITY,HAVANT BOROUGH COUNCIL,300000020457057
Portsmouth City Council,PCC,Housing Revenue Account,"Rents, Rates, Taxes and Other Charges","Housing, Neighbourhood and Building Services",Premises-Related Expenditure,Rates,25-Feb-22,6557709,131,OTHER LOCAL AUTHORITY,HAVANT BOROUGH COUNCIL,300000020457057
Portsmouth City Council,PCC,Highways and Transport Services,"Airports, Harbours and Toll Facilities",Portsmouth International Port,Third Party Payments,Private contractors,02-Feb-22,6552657,-253.58,SUPPLIER,CARLISLE SECURITY SERVICES LTD,300000020481764
Portsmouth City Council,PCC,Adult Social Care,Physical Support Older People (85+),Adult Care,Third Party Payments,Other establishments,11-Feb-22,6554993,"2,668.68",SUPPLIER,AGINCARE UK,300000020481869
Portsmouth City Council,PCC,Adult Social Care,Social Care Activities,Adult Care,Third Party Payments,Other establishments,18-Feb-22,6556269,"5,000.00",SUPPLIER,AGINCARE UK,300000020481869
Portsmouth City Council,PCC,Housing Revenue Account,"Rents, Rates, Taxes and Other Charges","Housing, Neighbourhood and Building Services",Premises-Related Expenditure,Rates,25-Feb-22,6557709,226,OTHER LOCAL AUTHORITY,HAVANT BOROUGH COUNCIL,300000020457057
Portsmouth City Council,PCC,Adult Social Care,Assistive Equipment & Technology,Adult Care,Premises-Related Expenditure,"Repairs, alterations and maintenance of buildings",11-Feb-22,6554954,140,SOLETRADER,ALC BUILDING SERVICES,300000020461119
Portsmouth City Council,PCC,Adult Social Care,Assistive Equipment & Technology,Adult Care,Premises-Related Expenditure,"Repairs, alterations and maintenance of buildings",11-Feb-22,6554954,200,SOLETRADER,ALC BUILDING SERVICES,300000020461119
Portsmouth City Council,PCC,Adult Social Care,Assistive Equipment & Technology,Adult Care,Premises-Related Expenditure,"Repairs, alterations and maintenance of buildings",11-Feb-22,6554954,108,SOLETRADER,ALC BUILDING SERVICES,300000020461119
Portsmouth City Council,PCC,Adult Social Care,Assistive Equipment & Technology,Adult Care,Premises-Related Expenditure,"Repairs, alterations and maintenance of buildings",11-Feb-22,6554954,180,SOLETRADER,ALC BUILDING SERVICES,300000020461119
Portsmouth City Council,PCC,Adult Social Care,Learning Disability Support Adults (18 - 64),Adult Care,Third Party Payments,Other establishments,11-Feb-22,6555030,"4,142.88",SUPPLIER,ALLIED CARE ASHSTEAD HOUSE,300000020473831
Portsmouth City Council,PCC,Adult Social Care,Physical Support Older People (85+),Adult Care,Third Party Payments,Other establishments,24-Feb-22,6557518,34.92,SUPPLIER,ALTOGETHER CARE LLP,300000120931464
Portsmouth City Council,PCC,Adult Social Care,Physical Support Adults (18 - 64),Adult Care,Third Party Payments,Other establishments,24-Feb-22,6557518,60.08,SUPPLIER,ALTOGETHER CARE LLP,300000120931464
Portsmouth City Council,PCC,Adult Social Care,Physical Support Older People (85+),Adult Care,Third Party Payments,Other establishments,24-Feb-22,6557518,93.12,SUPPLIER,ALTOGETHER CARE LLP,300000120931464
Portsmouth City Council,PCC,Adult Social Care,Physical Support Older People (85+),Adult Care,Third Party Payments,Other establishments,24-Feb-22,6557518,116.4,SUPPLIER,ALTOGETHER CARE LLP,300000120931464
Portsmouth City Council,PCC,Adult Social Care,Social Care Activities,Adult Care,Third Party Payments,Other establishments,24-Feb-22,6557518,186.24,SUPPLIER,ALTOGETHER CARE LLP,300000120931464
Portsmouth City Council,PCC,Adult Social Care,Physical Support Older People (85+),Adult Care,Third Party Payments,Other establishments,24-Feb-22,6557518,209.52,SUPPLIER,ALTOGETHER CARE LLP,300000120931464
Portsmouth City Council,PCC,Adult Social Care,Physical Support Older People (85+),Adult Care,Third Party Payments,Other establishments,24-Feb-22,6557518,300.4,SUPPLIER,ALTOGETHER CARE LLP,300000120931464
Portsmouth City Council,PCC,Adult Social Care,Physical Support Older People (85+),Adult Care,Third Party Payments,Other establishments,24-Feb-22,6557518,488.88,SUPPLIER,ALTOGETHER CARE LLP,300000120931464
Portsmouth City Council,PCC,Adult Social Care,Support with Memory and Cognition Older People (85+),Adult Care,Third Party Payments,Other establishments,11-Feb-22,6554909,"2,713.48",SUPPLIER,ALTON HOUSE PARTNERSHIP,300000020463909
Portsmouth City Council,PCC,Adult Social Care,Support with Memory and Cognition Older People (85+),Adult Care,Third Party Payments,Other establishments,11-Feb-22,6554909,"2,713.48",SUPPLIER,ALTON HOUSE PARTNERSHIP,300000020463909
Portsmouth City Council,PCC,Adult Social Care,Support with Memory and Cognition Older People (65 - 74),Adult Care,Premises-Related Expenditure,Cleaning and domestic supplies,04-Feb-22,6553528,16.66,SUPPLIER,AMAZON BUSINESS EU SARL,300000020473393
Portsmouth City Council,PCC,Adult Social Care,Support with Memory and Cognition Older People (65 - 74),Adult Care,Supplies and Services,"Clothes, uniform and laundry",01-Feb-22,6552527,22.47,SUPPLIER,AMAZON BUSINESS EU SARL,300000020473393
Portsmouth City Council,PCC,Adult Social Care,Learning Disability Support Adults (18 - 64),Adult Care,Supplies and Services,"Printing, stationery and general office expenses",01-Feb-22,6552527,19,SUPPLIER,AMAZON BUSINESS EU SARL,300000020473393
Portsmouth City Council,PCC,Adult Social Care,Learning Disability Support Adults (18 - 64),Adult Care,Supplies and Services,"Equipment, furniture and materials",02-Feb-22,6552688,7.46,SUPPLIER,AMAZON BUSINESS EU SARL,300000020473393
Portsmouth City Council,PCC,Children's and Education Services,Safeguarding Children and Young Peoples Services,Children's Services and Education,Third Party Payments,Other establishments,02-Feb-22,6552710,371.43,SUPPLIER,LOVE146,300000020473545
Portsmouth City Council,PCC,Children's and Education Services,Safeguarding Children and Young Peoples Services,Children's Services and Education,Third Party Payments,Other establishments,02-Feb-22,6552710,557.14,SUPPLIER,LOVE146,300000020473545
Portsmouth City Council,PCC,Children's and Education Services,Safeguarding Children and Young Peoples Services,Children's Services and Education,Third Party Payments,Other establishments,02-Feb-22,6552710,650,SUPPLIER,LOVE146,300000020473545
Portsmouth City Council,PCC,Children's and Education Services,Safeguarding Children and Young Peoples Services,Children's Services and Education,Third Party Payments,Other establishments,02-Feb-22,6552710,650,SUPPLIER,LOVE146,300000020473545
Portsmouth City Council,PCC,Children's and Education Services,Safeguarding Children and Young Peoples Services,Children's Services and Education,Third Party Payments,Other establishments,02-Feb-22,6552710,650,SUPPLIER,LOVE146,300000020473545
Portsmouth City Council,PCC,Children's and Education Services,Safeguarding Children and Young Peoples Services,Children's Services and Education,Third Party Payments,Other establishments,02-Feb-22,6552710,7.14,SUPPLIER,LOVE146,300000020473545
Portsmouth City Council,PCC,Children's and Education Services,Safeguarding Children and Young Peoples Services,Children's Services and Education,Third Party Payments,Other establishments,02-Feb-22,6552710,14.29,SUPPLIER,LOVE146,300000020473545
Portsmouth City Council,PCC,Children's and Education Services,Safeguarding Children and Young Peoples Services,Children's Services and Education,Third Party Payments,Other establishments,02-Feb-22,6552710,28.57,SUPPLIER,LOVE146,300000020473545
Portsmouth City Council,PCC,Children's and Education Services,Safeguarding Children and Young Peoples Services,Children's Services and Education,Third Party Payments,Other establishments,02-Feb-22,6552710,50,SUPPLIER,LOVE146,300000020473545
Portsmouth City Council,PCC,Children's and Education Services,Safeguarding Children and Young Peoples Services,Children's Services and Education,Third Party Payments,Other establishments,02-Feb-22,6552710,50,SUPPLIER,LOVE146,300000020473545
Portsmouth City Council,PCC,Children's and Education Services,Safeguarding Children and Young Peoples Services,Children's Services and Education,Third Party Payments,Other establishments,02-Feb-22,6552710,50,SUPPLIER,LOVE146,300000020473545
Portsmouth City Council,PCC,Children's and Education Services,Special Schools,Children's Services and Education,Third Party Payments,Other establishments,11-Feb-22,6555073,"-2,736.00",SUPPLIER,TOP TOTS DAY NURSERY LIMITED,300000020457274
Portsmouth City Council,PCC,Housing Services,Housing Strategy,"Housing, Neighbourhood and Building Services",Income,Customer and client receipts,08-Feb-22,6553896,-531,LIMITED COMPANY,LIFTECH SYSTEMS (SE) LIMITED,300000020461913
Portsmouth City Council,PCC,Other,Suspense and Capital Schemes,"Housing, Neighbourhood and Building Services",Supplies and Services,Services,08-Feb-22,6553896,637.2,LIMITED COMPANY,LIFTECH SYSTEMS (SE) LIMITED,300000020461913
Portsmouth City Council,PCC,Other,Suspense and Capital Schemes,"Housing, Neighbourhood and Building Services",Supplies and Services,Services,08-Feb-22,6553896,"3,540.00",LIMITED COMPANY,LIFTECH SYSTEMS (SE) LIMITED,300000020461913
Portsmouth City Council,PCC,Housing Services,Private Sector Housing Renewal,"Housing, Neighbourhood and Building Services",Income,Other grants reimbursements and contributions,08-Feb-22,6553896,-319.5,LIMITED COMPANY,LIFTECH SYSTEMS (SE) LIMITED,300000020461913
Portsmouth City Council,PCC,Other,Suspense and Capital Schemes,Capital - Housing General Fund,Capital Charges,REFCUS,08-Feb-22,6553896,383.4,LIMITED COMPANY,LIFTECH SYSTEMS (SE) LIMITED,300000020461913
Portsmouth City Council,PCC,Other,Suspense and Capital Schemes,Capital - Housing General Fund,Capital Charges,REFCUS,08-Feb-22,6553896,"3,195.00",LIMITED COMPANY,LIFTECH SYSTEMS (SE) LIMITED,300000020461913
Portsmouth City Council,PCC,Children's and Education Services,Safeguarding Children and Young Peoples Services,Children's Services and Education,Third Party Payments,Other establishments,04-Feb-22,6553545,413.72,SUPPLIER,COMPASS FOSTERING LIMITED,300000020462668
Portsmouth City Council,PCC,Children's and Education Services,Safeguarding Children and Young Peoples Services,Children's Services and Education,Third Party Payments,Other establishments,04-Feb-22,6553545,620.58,SUPPLIER,COMPASS FOSTERING LIMITED,300000020462668
Portsmouth City Council,PCC,Children's and Education Services,Safeguarding Children and Young Peoples Services,Children's Services and Education,Third Party Payments,Other establishments,04-Feb-22,6553545,724.01,SUPPLIER,COMPASS FOSTERING LIMITED,300000020462668
Portsmouth City Council,PCC,Children's and Education Services,Safeguarding Children and Young Peoples Services,Children's Services and Education,Third Party Payments,Other establishments,04-Feb-22,6553545,724.01,SUPPLIER,COMPASS FOSTERING LIMITED,300000020462668
Portsmouth City Council,PCC,Children's and Education Services,Safeguarding Children and Young Peoples Services,Children's Services and Education,Third Party Payments,Other establishments,04-Feb-22,6553545,724.01,SUPPLIER,COMPASS FOSTERING LIMITED,300000020462668
Portsmouth City Council,PCC,Children's and Education Services,Children Looked After,Children's Services and Education,Third Party Payments,Other establishments,03-Feb-22,6553389,204.66,SUPPLIER,FAIR WAYS COMMUNITY BENEFIT SOCEITY T/A FAIRWAYS CARE (UK) LTD,300000020459125
Portsmouth City Council,PCC,Children's and Education Services,Children Looked After,Children's Services and Education,Third Party Payments,Other establishments,03-Feb-22,6553389,"1,227.94",SUPPLIER,FAIR WAYS COMMUNITY BENEFIT SOCEITY T/A FAIRWAYS CARE (UK) LTD,300000020459125
Portsmouth City Council,PCC,Children's and Education Services,Children Looked After,Children's Services and Education,Third Party Payments,Other establishments,03-Feb-22,6553389,"1,432.60",SUPPLIER,FAIR WAYS COMMUNITY BENEFIT SOCEITY T/A FAIRWAYS CARE (UK) LTD,300000020459125
Portsmouth City Council,PCC,Children's and Education Services,Children Looked After,Children's Services and Education,Third Party Payments,Other establishments,03-Feb-22,6553220,0.04,SUPPLIER,BLUE SKY FOSTERING,300000020464936
Portsmouth City Council,PCC,Children's and Education Services,Children Looked After,Children's Services and Education,Third Party Payments,Other establishments,03-Feb-22,6553220,110.43,SUPPLIER,BLUE SKY FOSTERING,300000020464936
Portsmouth City Council,PCC,Children's and Education Services,Children Looked After,Children's Services and Education,Third Party Payments,Other establishments,03-Feb-22,6553220,220.86,SUPPLIER,BLUE SKY FOSTERING,300000020464936
Portsmouth City Council,PCC,Children's and Education Services,Children Looked After,Children's Services and Education,Third Party Payments,Other establishments,03-Feb-22,6553220,773,SUPPLIER,BLUE SKY FOSTERING,300000020464936
Portsmouth City Council,PCC,Children's and Education Services,Children Looked After,Children's Services and Education,Third Party Payments,Other establishments,03-Feb-22,6553220,773,SUPPLIER,BLUE SKY FOSTERING,300000020464936
Portsmouth City Council,PCC,Children's and Education Services,Children Looked After,Children's Services and Education,Third Party Payments,Other establishments,03-Feb-22,6553220,773,SUPPLIER,BLUE SKY FOSTERING,300000020464936
Portsmouth City Council,PCC,Children's and Education Services,Children Looked After,Children's Services and Education,Third Party Payments,Other establishments,03-Feb-22,6553220,773,SUPPLIER,BLUE SKY FOSTERING,300000020464936
Portsmouth City Council,PCC,Children's and Education Services,Children Looked After,Children's Services and Education,Third Party Payments,Other establishments,03-Feb-22,6553220,-0.27,SUPPLIER,BLUE SKY FOSTERING,300000020464936
Portsmouth City Council,PCC,Children's and Education Services,Children Looked After,Children's Services and Education,Third Party Payments,Other establishments,03-Feb-22,6553220,110.43,SUPPLIER,BLUE SKY FOSTERING,300000020464936
Portsmouth City Council,PCC,Children's and Education Services,Children Looked After,Children's Services and Education,Third Party Payments,Other establishments,03-Feb-22,6553220,220.86,SUPPLIER,BLUE SKY FOSTERING,300000020464936
Portsmouth City Council,PCC,Children's and Education Services,Children Looked After,Children's Services and Education,Third Party Payments,Other establishments,03-Feb-22,6553220,773,SUPPLIER,BLUE SKY FOSTERING,300000020464936
Portsmouth City Council,PCC,Children's and Education Services,Children Looked After,Children's Services and Education,Third Party Payments,Other establishments,03-Feb-22,6553220,773,SUPPLIER,BLUE SKY FOSTERING,300000020464936
Portsmouth City Council,PCC,Children's and Education Services,Children Looked After,Children's Services and Education,Third Party Payments,Other establishments,03-Feb-22,6553220,773,SUPPLIER,BLUE SKY FOSTERING,300000020464936
Portsmouth City Council,PCC,Children's and Education Services,Children Looked After,Children's Services and Education,Third Party Payments,Other establishments,03-Feb-22,6553220,773,SUPPLIER,BLUE SKY FOSTERING,300000020464936
Portsmouth City Council,PCC,Children's and Education Services,Children Looked After,Children's Services and Education,Third Party Payments,Other establishments,03-Feb-22,6553273,-0.05,SUPPLIER,COMPASS FOSTERING LIMITED,300000020462668
Portsmouth City Council,PCC,Children's and Education Services,Children Looked After,Children's Services and Education,Third Party Payments,Other establishments,03-Feb-22,6553273,490.85,SUPPLIER,COMPASS FOSTERING LIMITED,300000020462668
Portsmouth City Council,PCC,Children's and Education Services,Children Looked After,Children's Services and Education,Third Party Payments,Other establishments,03-Feb-22,6553273,736.27,SUPPLIER,COMPASS FOSTERING LIMITED,300000020462668
Portsmouth City Council,PCC,Children's and Education Services,Children Looked After,Children's Services and Education,Third Party Payments,Other establishments,03-Feb-22,6553273,858.98,SUPPLIER,COMPASS FOSTERING LIMITED,300000020462668
Portsmouth City Council,PCC,Children's and Education Services,Children Looked After,Children's Services and Education,Third Party Payments,Other establishments,03-Feb-22,6553273,858.98,SUPPLIER,COMPASS FOSTERING LIMITED,300000020462668
Portsmouth City Council,PCC,Children's and Education Services,Children Looked After,Children's Services and Education,Third Party Payments,Other establishments,03-Feb-22,6553273,858.98,SUPPLIER,COMPASS FOSTERING LIMITED,300000020462668
Portsmouth City Council,PCC,Children's and Education Services,Asylum seekers,Children's Services and Education,Third Party Payments,Other establishments,03-Feb-22,6553273,0.05,SUPPLIER,COMPASS FOSTERING LIMITED,300000020462668
Portsmouth City Council,PCC,Children's and Education Services,Asylum seekers,Children's Services and Education,Third Party Payments,Other establishments,03-Feb-22,6553273,470.83,SUPPLIER,COMPASS FOSTERING LIMITED,300000020462668
Portsmouth City Council,PCC,Children's and Education Services,Asylum seekers,Children's Services and Education,Third Party Payments,Other establishments,03-Feb-22,6553273,706.25,SUPPLIER,COMPASS FOSTERING LIMITED,300000020462668
Portsmouth City Council,PCC,Children's and Education Services,Asylum seekers,Children's Services and Education,Third Party Payments,Other establishments,03-Feb-22,6553273,823.96,SUPPLIER,COMPASS FOSTERING LIMITED,300000020462668
Portsmouth City Council,PCC,Children's and Education Services,Asylum seekers,Children's Services and Education,Third Party Payments,Other establishments,03-Feb-22,6553273,823.96,SUPPLIER,COMPASS FOSTERING LIMITED,300000020462668
Portsmouth City Council,PCC,Children's and Education Services,Asylum seekers,Children's Services and Education,Third Party Payments,Other establishments,03-Feb-22,6553273,823.96,SUPPLIER,COMPASS FOSTERING LIMITED,300000020462668
Portsmouth City Council,PCC,Children's and Education Services,Safeguarding Children and Young Peoples Services,Children's Services and Education,Third Party Payments,Other establishments,03-Feb-22,6553273,231.16,SUPPLIER,COMPASS FOSTERING LIMITED,300000020462668
Portsmouth City Council,PCC,Children's and Education Services,Safeguarding Children and Young Peoples Services,Children's Services and Education,Third Party Payments,Other establishments,03-Feb-22,6553273,346.74,SUPPLIER,COMPASS FOSTERING LIMITED,300000020462668
Portsmouth City Council,PCC,Children's and Education Services,Safeguarding Children and Young Peoples Services,Children's Services and Education,Third Party Payments,Other establishments,03-Feb-22,6553273,404.53,SUPPLIER,COMPASS FOSTERING LIMITED,300000020462668
Portsmouth City Council,PCC,Children's and Education Services,Safeguarding Children and Young Peoples Services,Children's Services and Education,Third Party Payments,Other establishments,03-Feb-22,6553273,404.53,SUPPLIER,COMPASS FOSTERING LIMITED,300000020462668
Portsmouth City Council,PCC,Children's and Education Services,Safeguarding Children and Young Peoples Services,Children's Services and Education,Third Party Payments,Other establishments,03-Feb-22,6553273,404.53,SUPPLIER,COMPASS FOSTERING LIMITED,300000020462668
Portsmouth City Council,PCC,Children's and Education Services,Safeguarding Children and Young Peoples Services,Children's Services and Education,Third Party Payments,Other establishments,01-Feb-22,6552532,-0.15,SUPPLIER,SAKURA CARE LIMITED,300000020469343
Portsmouth City Council,PCC,Children's and Education Services,Safeguarding Children and Young Peoples Services,Children's Services and Education,Third Party Payments,Other establishments,01-Feb-22,6552532,15.72,SUPPLIER,SAKURA CARE LIMITED,300000020469343
Portsmouth City Council,PCC,Children's and Education Services,Safeguarding Children and Young Peoples Services,Children's Services and Education,Third Party Payments,Other establishments,01-Feb-22,6552532,47.15,SUPPLIER,SAKURA CARE LIMITED,300000020469343
Portsmouth City Council,PCC,Children's and Education Services,Safeguarding Children and Young Peoples Services,Children's Services and Education,Third Party Payments,Other establishments,01-Feb-22,6552532,94.29,SUPPLIER,SAKURA CARE LIMITED,300000020469343
Portsmouth City Council,PCC,Children's and Education Services,Safeguarding Children and Young Peoples Services,Children's Services and Education,Third Party Payments,Other establishments,01-Feb-22,6552532,110,SUPPLIER,SAKURA CARE LIMITED,300000020469343
Portsmouth City Council,PCC,Children's and Education Services,Safeguarding Children and Young Peoples Services,Children's Services and Education,Third Party Payments,Other establishments,01-Feb-22,6552532,110,SUPPLIER,SAKURA CARE LIMITED,300000020469343
Portsmouth City Council,PCC,Children's and Education Services,Safeguarding Children and Young Peoples Services,Children's Services and Education,Third Party Payments,Other establishments,01-Feb-22,6552532,110,SUPPLIER,SAKURA CARE LIMITED,300000020469343
Portsmouth City Council,PCC,Children's and Education Services,Safeguarding Children and Young Peoples Services,Children's Services and Education,Third Party Payments,Other establishments,01-Feb-22,6552532,-123.57,SUPPLIER,SAKURA CARE LIMITED,300000020469343
Portsmouth City Council,PCC,Children's and Education Services,Safeguarding Children and Young Peoples Services,Children's Services and Education,Third Party Payments,Other establishments,01-Feb-22,6552532,-10,SUPPLIER,SAKURA CARE LIMITED,300000020469343
Portsmouth City Council,PCC,Children's and Education Services,Safeguarding Children and Young Peoples Services,Children's Services and Education,Third Party Payments,Other establishments,01-Feb-22,6552532,-10,SUPPLIER,SAKURA CARE LIMITED,300000020469343
Portsmouth City Council,PCC,Children's and Education Services,Safeguarding Children and Young Peoples Services,Children's Services and Education,Third Party Payments,Other establishments,01-Feb-22,6552532,-10,SUPPLIER,SAKURA CARE LIMITED,300000020469343
Portsmouth City Council,PCC,Children's and Education Services,Safeguarding Children and Young Peoples Services,Children's Services and Education,Third Party Payments,Other establishments,01-Feb-22,6552532,-10,SUPPLIER,SAKURA CARE LIMITED,300000020469343
Portsmouth City Council,PCC,Children's and Education Services,Safeguarding Children and Young Peoples Services,Children's Services and Education,Third Party Payments,Other establishments,01-Feb-22,6552532,-2.86,SUPPLIER,SAKURA CARE LIMITED,300000020469343
Portsmouth City Council,PCC,Children's and Education Services,Safeguarding Children and Young Peoples Services,Children's Services and Education,Third Party Payments,Other establishments,01-Feb-22,6552532,-1.43,SUPPLIER,SAKURA CARE LIMITED,300000020469343
Portsmouth City Council,PCC,Children's and Education Services,Safeguarding Children and Young Peoples Services,Children's Services and Education,Third Party Payments,Other establishments,01-Feb-22,6552532,-0.08,SUPPLIER,SAKURA CARE LIMITED,300000020469343
Portsmouth City Council,PCC,Children's and Education Services,Safeguarding Children and Young Peoples Services,Children's Services and Education,Third Party Payments,Other establishments,01-Feb-22,6552532,0.08,SUPPLIER,SAKURA CARE LIMITED,300000020469343
Portsmouth City Council,PCC,Children's and Education Services,Safeguarding Children and Young Peoples Services,Children's Services and Education,Third Party Payments,Other establishments,01-Feb-22,6552532,123.49,SUPPLIER,SAKURA CARE LIMITED,300000020469343
Portsmouth City Council,PCC,Children's and Education Services,Safeguarding Children and Young Peoples Services,Children's Services and Education,Third Party Payments,Other establishments,01-Feb-22,6552532,123.57,SUPPLIER,SAKURA CARE LIMITED,300000020469343
Portsmouth City Council,PCC,Children's and Education Services,Safeguarding Children and Young Peoples Services,Children's Services and Education,Third Party Payments,Other establishments,01-Feb-22,6552532,247.14,SUPPLIER,SAKURA CARE LIMITED,300000020469343
Portsmouth City Council,PCC,Children's and Education Services,Safeguarding Children and Young Peoples Services,Children's Services and Education,Third Party Payments,Other establishments,01-Feb-22,6552532,865,SUPPLIER,SAKURA CARE LIMITED,300000020469343
Portsmouth City Council,PCC,Children's and Education Services,Safeguarding Children and Young Peoples Services,Children's Services and Education,Third Party Payments,Other establishments,01-Feb-22,6552532,865,SUPPLIER,SAKURA CARE LIMITED,300000020469343
Portsmouth City Council,PCC,Children's and Education Services,Safeguarding Children and Young Peoples Services,Children's Services and Education,Third Party Payments,Other establishments,01-Feb-22,6552532,865,SUPPLIER,SAKURA CARE LIMITED,300000020469343
Portsmouth City Council,PCC,Children's and Education Services,Safeguarding Children and Young Peoples Services,Children's Services and Education,Third Party Payments,Other establishments,01-Feb-22,6552532,865,SUPPLIER,SAKURA CARE LIMITED,300000020469343
Portsmouth City Council,PCC,Children's and Education Services,Safeguarding Children and Young Peoples Services,Children's Services and Education,Third Party Payments,Other establishments,01-Feb-22,6552532,-10,SUPPLIER,SAKURA CARE LIMITED,300000020469343
Portsmouth City Council,PCC,Children's and Education Services,Safeguarding Children and Young Peoples Services,Children's Services and Education,Third Party Payments,Other establishments,01-Feb-22,6552532,-10,SUPPLIER,SAKURA CARE LIMITED,300000020469343
Portsmouth City Council,PCC,Children's and Education Services,Safeguarding Children and Young Peoples Services,Children's Services and Education,Third Party Payments,Other establishments,01-Feb-22,6552532,-10,SUPPLIER,SAKURA CARE LIMITED,300000020469343
Portsmouth City Council,PCC,Children's and Education Services,Safeguarding Children and Young Peoples Services,Children's Services and Education,Third Party Payments,Other establishments,01-Feb-22,6552532,-10,SUPPLIER,SAKURA CARE LIMITED,300000020469343
Portsmouth City Council,PCC,Children's and Education Services,Safeguarding Children and Young Peoples Services,Children's Services and Education,Third Party Payments,Other establishments,01-Feb-22,6552532,-2.86,SUPPLIER,SAKURA CARE LIMITED,300000020469343
Portsmouth City Council,PCC,Children's and Education Services,Safeguarding Children and Young Peoples Services,Children's Services and Education,Third Party Payments,Other establishments,01-Feb-22,6552532,-1.43,SUPPLIER,SAKURA CARE LIMITED,300000020469343
Portsmouth City Council,PCC,Children's and Education Services,Safeguarding Children and Young Peoples Services,Children's Services and Education,Third Party Payments,Other establishments,01-Feb-22,6552532,-0.21,SUPPLIER,SAKURA CARE LIMITED,300000020469343
Portsmouth City Council,PCC,Children's and Education Services,Safeguarding Children and Young Peoples Services,Children's Services and Education,Third Party Payments,Other establishments,01-Feb-22,6552532,15.71,SUPPLIER,SAKURA CARE LIMITED,300000020469343
Portsmouth City Council,PCC,Children's and Education Services,Safeguarding Children and Young Peoples Services,Children's Services and Education,Third Party Payments,Other establishments,01-Feb-22,6552532,31.43,SUPPLIER,SAKURA CARE LIMITED,300000020469343
Portsmouth City Council,PCC,Children's and Education Services,Safeguarding Children and Young Peoples Services,Children's Services and Education,Third Party Payments,Other establishments,01-Feb-22,6552532,110,SUPPLIER,SAKURA CARE LIMITED,300000020469343
Portsmouth City Council,PCC,Children's and Education Services,Safeguarding Children and Young Peoples Services,Children's Services and Education,Third Party Payments,Other establishments,01-Feb-22,6552532,110,SUPPLIER,SAKURA CARE LIMITED,300000020469343
Portsmouth City Council,PCC,Children's and Education Services,Safeguarding Children and Young Peoples Services,Children's Services and Education,Third Party Payments,Other establishments,01-Feb-22,6552532,110,SUPPLIER,SAKURA CARE LIMITED,300000020469343
Portsmouth City Council,PCC,Children's and Education Services,Safeguarding Children and Young Peoples Services,Children's Services and Education,Third Party Payments,Other establishments,01-Feb-22,6552532,110,SUPPLIER,SAKURA CARE LIMITED,300000020469343
Portsmouth City Council,PCC,Children's and Education Services,Safeguarding Children and Young Peoples Services,Children's Services and Education,Third Party Payments,Other establishments,01-Feb-22,6552532,123.57,SUPPLIER,SAKURA CARE LIMITED,300000020469343
Portsmouth City Council,PCC,Children's and Education Services,Safeguarding Children and Young Peoples Services,Children's Services and Education,Third Party Payments,Other establishments,01-Feb-22,6552532,247.14,SUPPLIER,SAKURA CARE LIMITED,300000020469343
Portsmouth City Council,PCC,Children's and Education Services,Safeguarding Children and Young Peoples Services,Children's Services and Education,Third Party Payments,Other establishments,01-Feb-22,6552532,865,SUPPLIER,SAKURA CARE LIMITED,300000020469343
Portsmouth City Council,PCC,Children's and Education Services,Safeguarding Children and Young Peoples Services,Children's Services and Education,Third Party Payments,Other establishments,01-Feb-22,6552532,865,SUPPLIER,SAKURA CARE LIMITED,300000020469343
Portsmouth City Council,PCC,Children's and Education Services,Safeguarding Children and Young Peoples Services,Children's Services and Education,Third Party Payments,Other establishments,01-Feb-22,6552532,865,SUPPLIER,SAKURA CARE LIMITED,300000020469343
Portsmouth City Council,PCC,Children's and Education Services,Safeguarding Children and Young Peoples Services,Children's Services and Education,Third Party Payments,Other establishments,01-Feb-22,6552532,865,SUPPLIER,SAKURA CARE LIMITED,300000020469343
Portsmouth City Council,PCC,Children's and Education Services,Safeguarding Children and Young Peoples Services,Children's Services and Education,Third Party Payments,Other establishments,01-Feb-22,6552532,-10,SUPPLIER,SAKURA CARE LIMITED,300000020469343
Portsmouth City Council,PCC,Children's and Education Services,Safeguarding Children and Young Peoples Services,Children's Services and Education,Third Party Payments,Other establishments,01-Feb-22,6552532,-10,SUPPLIER,SAKURA CARE LIMITED,300000020469343
Portsmouth City Council,PCC,Children's and Education Services,Safeguarding Children and Young Peoples Services,Children's Services and Education,Third Party Payments,Other establishments,01-Feb-22,6552532,-10,SUPPLIER,SAKURA CARE LIMITED,300000020469343
Portsmouth City Council,PCC,Children's and Education Services,Safeguarding Children and Young Peoples Services,Children's Services and Education,Third Party Payments,Other establishments,01-Feb-22,6552532,-10,SUPPLIER,SAKURA CARE LIMITED,300000020469343
Portsmouth City Council,PCC,Children's and Education Services,Safeguarding Children and Young Peoples Services,Children's Services and Education,Third Party Payments,Other establishments,01-Feb-22,6552532,-2.86,SUPPLIER,SAKURA CARE LIMITED,300000020469343
Portsmouth City Council,PCC,Children's and Education Services,Safeguarding Children and Young Peoples Services,Children's Services and Education,Third Party Payments,Other establishments,01-Feb-22,6552532,-1.43,SUPPLIER,SAKURA CARE LIMITED,300000020469343
Portsmouth City Council,PCC,Children's and Education Services,Safeguarding Children and Young Peoples Services,Children's Services and Education,Third Party Payments,Other establishments,01-Feb-22,6552532,-0.21,SUPPLIER,SAKURA CARE LIMITED,300000020469343
Portsmouth City Council,PCC,Children's and Education Services,Safeguarding Children and Young Peoples Services,Children's Services and Education,Third Party Payments,Other establishments,01-Feb-22,6552532,15.71,SUPPLIER,SAKURA CARE LIMITED,300000020469343
Portsmouth City Council,PCC,Children's and Education Services,Safeguarding Children and Young Peoples Services,Children's Services and Education,Third Party Payments,Other establishments,01-Feb-22,6552532,31.43,SUPPLIER,SAKURA CARE LIMITED,300000020469343
Portsmouth City Council,PCC,Children's and Education Services,Safeguarding Children and Young Peoples Services,Children's Services and Education,Third Party Payments,Other establishments,01-Feb-22,6552532,110,SUPPLIER,SAKURA CARE LIMITED,300000020469343
Portsmouth City Council,PCC,Children's and Education Services,Safeguarding Children and Young Peoples Services,Children's Services and Education,Third Party Payments,Other establishments,01-Feb-22,6552532,110,SUPPLIER,SAKURA CARE LIMITED,300000020469343
Portsmouth City Council,PCC,Children's and Education Services,Safeguarding Children and Young Peoples Services,Children's Services and Education,Third Party Payments,Other establishments,01-Feb-22,6552532,110,SUPPLIER,SAKURA CARE LIMITED,300000020469343
Portsmouth City Council,PCC,Children's and Education Services,Safeguarding Children and Young Peoples Services,Children's Services and Education,Third Party Payments,Other establishments,01-Feb-22,6552532,110,SUPPLIER,SAKURA CARE LIMITED,300000020469343
Portsmouth City Council,PCC,Children's and Education Services,Safeguarding Children and Young Peoples Services,Children's Services and Education,Third Party Payments,Other establishments,01-Feb-22,6552532,123.57,SUPPLIER,SAKURA CARE LIMITED,300000020469343
Portsmouth City Council,PCC,Children's and Education Services,Safeguarding Children and Young Peoples Services,Children's Services and Education,Third Party Payments,Other establishments,01-Feb-22,6552532,247.14,SUPPLIER,SAKURA CARE LIMITED,300000020469343
Portsmouth City Council,PCC,Children's and Education Services,Safeguarding Children and Young Peoples Services,Children's Services and Education,Third Party Payments,Other establishments,01-Feb-22,6552532,865,SUPPLIER,SAKURA CARE LIMITED,300000020469343
Portsmouth City Council,PCC,Children's and Education Services,Safeguarding Children and Young Peoples Services,Children's Services and Education,Third Party Payments,Other establishments,01-Feb-22,6552532,865,SUPPLIER,SAKURA CARE LIMITED,300000020469343
Portsmouth City Council,PCC,Children's and Education Services,Safeguarding Children and Young Peoples Services,Children's Services and Education,Third Party Payments,Other establishments,01-Feb-22,6552532,865,SUPPLIER,SAKURA CARE LIMITED,300000020469343
Portsmouth City Council,PCC,Children's and Education Services,Safeguarding Children and Young Peoples Services,Children's Services and Education,Third Party Payments,Other establishments,01-Feb-22,6552532,865,SUPPLIER,SAKURA CARE LIMITED,300000020469343
Portsmouth City Council,PCC,Children's and Education Services,Safeguarding Children and Young Peoples Services,Children's Services and Education,Third Party Payments,Other establishments,01-Feb-22,6552532,-10,SUPPLIER,SAKURA CARE LIMITED,300000020469343
Portsmouth City Council,PCC,Children's and Education Services,Safeguarding Children and Young Peoples Services,Children's Services and Education,Third Party Payments,Other establishments,01-Feb-22,6552532,-10,SUPPLIER,SAKURA CARE LIMITED,300000020469343
Portsmouth City Council,PCC,Children's and Education Services,Safeguarding Children and Young Peoples Services,Children's Services and Education,Third Party Payments,Other establishments,01-Feb-22,6552532,-10,SUPPLIER,SAKURA CARE LIMITED,300000020469343
Portsmouth City Council,PCC,Children's and Education Services,Safeguarding Children and Young Peoples Services,Children's Services and Education,Third Party Payments,Other establishments,01-Feb-22,6552532,-10,SUPPLIER,SAKURA CARE LIMITED,300000020469343
Portsmouth City Council,PCC,Children's and Education Services,Safeguarding Children and Young Peoples Services,Children's Services and Education,Third Party Payments,Other establishments,01-Feb-22,6552532,-2.86,SUPPLIER,SAKURA CARE LIMITED,300000020469343
Portsmouth City Council,PCC,Children's and Education Services,Safeguarding Children and Young Peoples Services,Children's Services and Education,Third Party Payments,Other establishments,01-Feb-22,6552532,-1.43,SUPPLIER,SAKURA CARE LIMITED,300000020469343
Portsmouth City Council,PCC,Children's and Education Services,Safeguarding Children and Young Peoples Services,Children's Services and Education,Third Party Payments,Other establishments,01-Feb-22,6552532,-0.21,SUPPLIER,SAKURA CARE LIMITED,300000020469343
Portsmouth City Council,PCC,Children's and Education Services,Safeguarding Children and Young Peoples Services,Children's Services and Education,Third Party Payments,Other establishments,01-Feb-22,6552532,15.71,SUPPLIER,SAKURA CARE LIMITED,300000020469343
Portsmouth City Council,PCC,Children's and Education Services,Safeguarding Children and Young Peoples Services,Children's Services and Education,Third Party Payments,Other establishments,01-Feb-22,6552532,31.43,SUPPLIER,SAKURA CARE LIMITED,300000020469343
Portsmouth City Council,PCC,Children's and Education Services,Safeguarding Children and Young Peoples Services,Children's Services and Education,Third Party Payments,Other establishments,01-Feb-22,6552532,110,SUPPLIER,SAKURA CARE LIMITED,300000020469343
Portsmouth City Council,PCC,Children's and Education Services,Safeguarding Children and Young Peoples Services,Children's Services and Education,Third Party Payments,Other establishments,01-Feb-22,6552532,110,SUPPLIER,SAKURA CARE LIMITED,300000020469343
Portsmouth City Council,PCC,Children's and Education Services,Safeguarding Children and Young Peoples Services,Children's Services and Education,Third Party Payments,Other establishments,01-Feb-22,6552532,110,SUPPLIER,SAKURA CARE LIMITED,300000020469343
Portsmouth City Council,PCC,Children's and Education Services,Safeguarding Children and Young Peoples Services,Children's Services and Education,Third Party Payments,Other establishments,01-Feb-22,6552532,110,SUPPLIER,SAKURA CARE LIMITED,300000020469343
Portsmouth City Council,PCC,Children's and Education Services,Safeguarding Children and Young Peoples Services,Children's Services and Education,Third Party Payments,Other establishments,01-Feb-22,6552532,123.57,SUPPLIER,SAKURA CARE LIMITED,300000020469343
Portsmouth City Council,PCC,Children's and Education Services,Safeguarding Children and Young Peoples Services,Children's Services and Education,Third Party Payments,Other establishments,01-Feb-22,6552532,247.14,SUPPLIER,SAKURA CARE LIMITED,300000020469343
Portsmouth City Council,PCC,Children's and Education Services,Safeguarding Children and Young Peoples Services,Children's Services and Education,Third Party Payments,Other establishments,01-Feb-22,6552532,865,SUPPLIER,SAKURA CARE LIMITED,300000020469343
Portsmouth City Council,PCC,Children's and Education Services,Safeguarding Children and Young Peoples Services,Children's Services and Education,Third Party Payments,Other establishments,01-Feb-22,6552532,865,SUPPLIER,SAKURA CARE LIMITED,300000020469343
Portsmouth City Council,PCC,Children's and Education Services,Safeguarding Children and Young Peoples Services,Children's Services and Education,Third Party Payments,Other establishments,01-Feb-22,6552532,865,SUPPLIER,SAKURA CARE LIMITED,300000020469343
Portsmouth City Council,PCC,Children's and Education Services,Safeguarding Children and Young Peoples Services,Children's Services and Education,Third Party Payments,Other establishments,01-Feb-22,6552532,865,SUPPLIER,SAKURA CARE LIMITED,300000020469343
Portsmouth City Council,PCC,Children's and Education Services,Safeguarding Children and Young Peoples Services,Children's Services and Education,Third Party Payments,Other establishments,01-Feb-22,6552532,-10,SUPPLIER,SAKURA CARE LIMITED,300000020469343
Portsmouth City Council,PCC,Children's and Education Services,Safeguarding Children and Young Peoples Services,Children's Services and Education,Third Party Payments,Other establishments,01-Feb-22,6552532,-10,SUPPLIER,SAKURA CARE LIMITED,300000020469343
Portsmouth City Council,PCC,Children's and Education Services,Safeguarding Children and Young Peoples Services,Children's Services and Education,Third Party Payments,Other establishments,01-Feb-22,6552532,-10,SUPPLIER,SAKURA CARE LIMITED,300000020469343
Portsmouth City Council,PCC,Children's and Education Services,Safeguarding Children and Young Peoples Services,Children's Services and Education,Third Party Payments,Other establishments,01-Feb-22,6552532,-10,SUPPLIER,SAKURA CARE LIMITED,300000020469343
Portsmouth City Council,PCC,Children's and Education Services,Safeguarding Children and Young Peoples Services,Children's Services and Education,Third Party Payments,Other establishments,01-Feb-22,6552532,-2.86,SUPPLIER,SAKURA CARE LIMITED,300000020469343
Portsmouth City Council,PCC,Children's and Education Services,Safeguarding Children and Young Peoples Services,Children's Services and Education,Third Party Payments,Other establishments,01-Feb-22,6552532,-1.43,SUPPLIER,SAKURA CARE LIMITED,300000020469343
Portsmouth City Council,PCC,Children's and Education Services,Safeguarding Children and Young Peoples Services,Children's Services and Education,Third Party Payments,Other establishments,01-Feb-22,6552532,-0.21,SUPPLIER,SAKURA CARE LIMITED,300000020469343
Portsmouth City Council,PCC,Children's and Education Services,Safeguarding Children and Young Peoples Services,Children's Services and Education,Third Party Payments,Other establishments,01-Feb-22,6552532,15.71,SUPPLIER,SAKURA CARE LIMITED,300000020469343
Portsmouth City Council,PCC,Children's and Education Services,Safeguarding Children and Young Peoples Services,Children's Services and Education,Third Party Payments,Other establishments,01-Feb-22,6552532,31.43,SUPPLIER,SAKURA CARE LIMITED,300000020469343
Portsmouth City Council,PCC,Children's and Education Services,Safeguarding Children and Young Peoples Services,Children's Services and Education,Third Party Payments,Other establishments,01-Feb-22,6552532,110,SUPPLIER,SAKURA CARE LIMITED,300000020469343
Portsmouth City Council,PCC,Children's and Education Services,Safeguarding Children and Young Peoples Services,Children's Services and Education,Third Party Payments,Other establishments,01-Feb-22,6552532,110,SUPPLIER,SAKURA CARE LIMITED,300000020469343
Portsmouth City Council,PCC,Children's and Education Services,Safeguarding Children and Young Peoples Services,Children's Services and Education,Third Party Payments,Other establishments,01-Feb-22,6552532,110,SUPPLIER,SAKURA CARE LIMITED,300000020469343
Portsmouth City Council,PCC,Children's and Education Services,Safeguarding Children and Young Peoples Services,Children's Services and Education,Third Party Payments,Other establishments,01-Feb-22,6552532,110,SUPPLIER,SAKURA CARE LIMITED,300000020469343
Portsmouth City Council,PCC,Children's and Education Services,Safeguarding Children and Young Peoples Services,Children's Services and Education,Third Party Payments,Other establishments,01-Feb-22,6552532,123.57,SUPPLIER,SAKURA CARE LIMITED,300000020469343
Portsmouth City Council,PCC,Children's and Education Services,Safeguarding Children and Young Peoples Services,Children's Services and Education,Third Party Payments,Other establishments,01-Feb-22,6552532,247.14,SUPPLIER,SAKURA CARE LIMITED,300000020469343
Portsmouth City Council,PCC,Children's and Education Services,Safeguarding Children and Young Peoples Services,Children's Services and Education,Third Party Payments,Other establishments,01-Feb-22,6552532,865,SUPPLIER,SAKURA CARE LIMITED,300000020469343
Portsmouth City Council,PCC,Children's and Education Services,Safeguarding Children and Young Peoples Services,Children's Services and Education,Third Party Payments,Other establishments,01-Feb-22,6552532,865,SUPPLIER,SAKURA CARE LIMITED,300000020469343
Portsmouth City Council,PCC,Children's and Education Services,Safeguarding Children and Young Peoples Services,Children's Services and Education,Third Party Payments,Other establishments,01-Feb-22,6552532,865,SUPPLIER,SAKURA CARE LIMITED,300000020469343
Portsmouth City Council,PCC,Children's and Education Services,Safeguarding Children and Young Peoples Services,Children's Services and Education,Third Party Payments,Other establishments,01-Feb-22,6552532,865,SUPPLIER,SAKURA CARE LIMITED,300000020469343
Portsmouth City Council,PCC,Children's and Education Services,Safeguarding Children and Young Peoples Services,Children's Services and Education,Third Party Payments,Other establishments,01-Feb-22,6552532,-10,SUPPLIER,SAKURA CARE LIMITED,300000020469343
Portsmouth City Council,PCC,Children's and Education Services,Safeguarding Children and Young Peoples Services,Children's Services and Education,Third Party Payments,Other establishments,01-Feb-22,6552532,-10,SUPPLIER,SAKURA CARE LIMITED,300000020469343
Portsmouth City Council,PCC,Children's and Education Services,Safeguarding Children and Young Peoples Services,Children's Services and Education,Third Party Payments,Other establishments,01-Feb-22,6552532,-10,SUPPLIER,SAKURA CARE LIMITED,300000020469343
Portsmouth City Council,PCC,Children's and Education Services,Safeguarding Children and Young Peoples Services,Children's Services and Education,Third Party Payments,Other establishments,01-Feb-22,6552532,-10,SUPPLIER,SAKURA CARE LIMITED,300000020469343
Portsmouth City Council,PCC,Children's and Education Services,Safeguarding Children and Young Peoples Services,Children's Services and Education,Third Party Payments,Other establishments,01-Feb-22,6552532,-2.86,SUPPLIER,SAKURA CARE LIMITED,300000020469343
Portsmouth City Council,PCC,Children's and Education Services,Safeguarding Children and Young Peoples Services,Children's Services and Education,Third Party Payments,Other establishments,01-Feb-22,6552532,-1.43,SUPPLIER,SAKURA CARE LIMITED,300000020469343
Portsmouth City Council,PCC,Children's and Education Services,Safeguarding Children and Young Peoples Services,Children's Services and Education,Third Party Payments,Other establishments,01-Feb-22,6552532,-0.21,SUPPLIER,SAKURA CARE LIMITED,300000020469343
Portsmouth City Council,PCC,Children's and Education Services,Safeguarding Children and Young Peoples Services,Children's Services and Education,Third Party Payments,Other establishments,01-Feb-22,6552532,15.71,SUPPLIER,SAKURA CARE LIMITED,300000020469343
Portsmouth City Council,PCC,Children's and Education Services,Safeguarding Children and Young Peoples Services,Children's Services and Education,Third Party Payments,Other establishments,01-Feb-22,6552532,31.43,SUPPLIER,SAKURA CARE LIMITED,300000020469343
Portsmouth City Council,PCC,Children's and Education Services,Safeguarding Children and Young Peoples Services,Children's Services and Education,Third Party Payments,Other establishments,01-Feb-22,6552532,110,SUPPLIER,SAKURA CARE LIMITED,300000020469343
Portsmouth City Council,PCC,Children's and Education Services,Safeguarding Children and Young Peoples Services,Children's Services and Education,Third Party Payments,Other establishments,01-Feb-22,6552532,110,SUPPLIER,SAKURA CARE LIMITED,300000020469343
Portsmouth City Council,PCC,Children's and Education Services,Safeguarding Children and Young Peoples Services,Children's Services and Education,Third Party Payments,Other establishments,01-Feb-22,6552532,110,SUPPLIER,SAKURA CARE LIMITED,300000020469343
Portsmouth City Council,PCC,Children's and Education Services,Safeguarding Children and Young Peoples Services,Children's Services and Education,Third Party Payments,Other establishments,01-Feb-22,6552532,110,SUPPLIER,SAKURA CARE LIMITED,300000020469343
Portsmouth City Council,PCC,Children's and Education Services,Safeguarding Children and Young Peoples Services,Children's Services and Education,Third Party Payments,Other establishments,01-Feb-22,6552532,123.57,SUPPLIER,SAKURA CARE LIMITED,300000020469343
Portsmouth City Council,PCC,Children's and Education Services,Safeguarding Children and Young Peoples Services,Children's Services and Education,Third Party Payments,Other establishments,01-Feb-22,6552532,247.14,SUPPLIER,SAKURA CARE LIMITED,300000020469343
Portsmouth City Council,PCC,Children's and Education Services,Safeguarding Children and Young Peoples Services,Children's Services and Education,Third Party Payments,Other establishments,01-Feb-22,6552532,865,SUPPLIER,SAKURA CARE LIMITED,300000020469343
Portsmouth City Council,PCC,Children's and Education Services,Safeguarding Children and Young Peoples Services,Children's Services and Education,Third Party Payments,Other establishments,01-Feb-22,6552532,865,SUPPLIER,SAKURA CARE LIMITED,300000020469343
Portsmouth City Council,PCC,Children's and Education Services,Safeguarding Children and Young Peoples Services,Children's Services and Education,Third Party Payments,Other establishments,01-Feb-22,6552532,865,SUPPLIER,SAKURA CARE LIMITED,300000020469343
Portsmouth City Council,PCC,Children's and Education Services,Safeguarding Children and Young Peoples Services,Children's Services and Education,Third Party Payments,Other establishments,01-Feb-22,6552532,865,SUPPLIER,SAKURA CARE LIMITED,300000020469343
Portsmouth City Council,PCC,Children's and Education Services,Safeguarding Children and Young Peoples Services,Children's Services and Education,Third Party Payments,Other establishments,01-Feb-22,6552532,-10,SUPPLIER,SAKURA CARE LIMITED,300000020469343
Portsmouth City Council,PCC,Children's and Education Services,Safeguarding Children and Young Peoples Services,Children's Services and Education,Third Party Payments,Other establishments,01-Feb-22,6552532,-10,SUPPLIER,SAKURA CARE LIMITED,300000020469343
Portsmouth City Council,PCC,Children's and Education Services,Safeguarding Children and Young Peoples Services,Children's Services and Education,Third Party Payments,Other establishments,01-Feb-22,6552532,-10,SUPPLIER,SAKURA CARE LIMITED,300000020469343
Portsmouth City Council,PCC,Children's and Education Services,Safeguarding Children and Young Peoples Services,Children's Services and Education,Third Party Payments,Other establishments,01-Feb-22,6552532,-10,SUPPLIER,SAKURA CARE LIMITED,300000020469343
Portsmouth City Council,PCC,Children's and Education Services,Safeguarding Children and Young Peoples Services,Children's Services and Education,Third Party Payments,Other establishments,01-Feb-22,6552532,-2.86,SUPPLIER,SAKURA CARE LIMITED,300000020469343
Portsmouth City Council,PCC,Children's and Education Services,Safeguarding Children and Young Peoples Services,Children's Services and Education,Third Party Payments,Other establishments,01-Feb-22,6552532,-1.43,SUPPLIER,SAKURA CARE LIMITED,300000020469343
Portsmouth City Council,PCC,Children's and Education Services,Safeguarding Children and Young Peoples Services,Children's Services and Education,Third Party Payments,Other establishments,01-Feb-22,6552532,-0.21,SUPPLIER,SAKURA CARE LIMITED,300000020469343
Portsmouth City Council,PCC,Children's and Education Services,Safeguarding Children and Young Peoples Services,Children's Services and Education,Third Party Payments,Other establishments,01-Feb-22,6552532,15.71,SUPPLIER,SAKURA CARE LIMITED,300000020469343
Portsmouth City Council,PCC,Children's and Education Services,Safeguarding Children and Young Peoples Services,Children's Services and Education,Third Party Payments,Other establishments,01-Feb-22,6552532,31.43,SUPPLIER,SAKURA CARE LIMITED,300000020469343
Portsmouth City Council,PCC,Children's and Education Services,Safeguarding Children and Young Peoples Services,Children's Services and Education,Third Party Payments,Other establishments,01-Feb-22,6552532,110,SUPPLIER,SAKURA CARE LIMITED,300000020469343
Portsmouth City Council,PCC,Children's and Education Services,Safeguarding Children and Young Peoples Services,Children's Services and Education,Third Party Payments,Other establishments,01-Feb-22,6552532,110,SUPPLIER,SAKURA CARE LIMITED,300000020469343
Portsmouth City Council,PCC,Children's and Education Services,Safeguarding Children and Young Peoples Services,Children's Services and Education,Third Party Payments,Other establishments,01-Feb-22,6552532,110,SUPPLIER,SAKURA CARE LIMITED,300000020469343
Portsmouth City Council,PCC,Children's and Education Services,Safeguarding Children and Young Peoples Services,Children's Services and Education,Third Party Payments,Other establishments,01-Feb-22,6552532,110,SUPPLIER,SAKURA CARE LIMITED,300000020469343
Portsmouth City Council,PCC,Children's and Education Services,Safeguarding Children and Young Peoples Services,Children's Services and Education,Third Party Payments,Other establishments,01-Feb-22,6552532,123.57,SUPPLIER,SAKURA CARE LIMITED,300000020469343
Portsmouth City Council,PCC,Children's and Education Services,Safeguarding Children and Young Peoples Services,Children's Services and Education,Third Party Payments,Other establishments,01-Feb-22,6552532,247.14,SUPPLIER,SAKURA CARE LIMITED,300000020469343
Portsmouth City Council,PCC,Children's and Education Services,Safeguarding Children and Young Peoples Services,Children's Services and Education,Third Party Payments,Other establishments,01-Feb-22,6552532,865,SUPPLIER,SAKURA CARE LIMITED,300000020469343
Portsmouth City Council,PCC,Children's and Education Services,Safeguarding Children and Young Peoples Services,Children's Services and Education,Third Party Payments,Other establishments,01-Feb-22,6552532,865,SUPPLIER,SAKURA CARE LIMITED,300000020469343
Portsmouth City Council,PCC,Children's and Education Services,Safeguarding Children and Young Peoples Services,Children's Services and Education,Third Party Payments,Other establishments,01-Feb-22,6552532,865,SUPPLIER,SAKURA CARE LIMITED,300000020469343
Portsmouth City Council,PCC,Children's and Education Services,Safeguarding Children and Young Peoples Services,Children's Services and Education,Third Party Payments,Other establishments,01-Feb-22,6552532,865,SUPPLIER,SAKURA CARE LIMITED,300000020469343
Portsmouth City Council,PCC,Children's and Education Services,Children Looked After,Children's Services and Education,Third Party Payments,Other establishments,01-Feb-22,6552532,228.57,SUPPLIER,SAKURA CARE LIMITED,300000020469343
Portsmouth City Council,PCC,Children's and Education Services,Children Looked After,Children's Services and Education,Third Party Payments,Other establishments,01-Feb-22,6552532,457.14,SUPPLIER,SAKURA CARE LIMITED,300000020469343
Portsmouth City Council,PCC,Children's and Education Services,Children Looked After,Children's Services and Education,Third Party Payments,Other establishments,01-Feb-22,6552532,"1,600.00",SUPPLIER,SAKURA CARE LIMITED,300000020469343
Portsmouth City Council,PCC,Children's and Education Services,Children Looked After,Children's Services and Education,Third Party Payments,Other establishments,01-Feb-22,6552532,"1,600.00",SUPPLIER,SAKURA CARE LIMITED,300000020469343
Portsmouth City Council,PCC,Children's and Education Services,Children Looked After,Children's Services and Education,Third Party Payments,Other establishments,01-Feb-22,6552532,"1,600.00",SUPPLIER,SAKURA CARE LIMITED,300000020469343
Portsmouth City Council,PCC,Children's and Education Services,Children Looked After,Children's Services and Education,Third Party Payments,Other establishments,01-Feb-22,6552532,"1,600.00",SUPPLIER,SAKURA CARE LIMITED,300000020469343
Portsmouth City Council,PCC,Children's and Education Services,Children Looked After,Children's Services and Education,Third Party Payments,Other establishments,01-Feb-22,6552514,110.61,SUPPLIER,THE CHILDRENS FAMILY TRUST,300000020479545
Portsmouth City Council,PCC,Children's and Education Services,Children Looked After,Children's Services and Education,Third Party Payments,Other establishments,01-Feb-22,6552514,221.22,SUPPLIER,THE CHILDRENS FAMILY TRUST,300000020479545
Portsmouth City Council,PCC,Children's and Education Services,Children Looked After,Children's Services and Education,Third Party Payments,Other establishments,01-Feb-22,6552514,774.27,SUPPLIER,THE CHILDRENS FAMILY TRUST,300000020479545
Portsmouth City Council,PCC,Children's and Education Services,Children Looked After,Children's Services and Education,Third Party Payments,Other establishments,01-Feb-22,6552514,774.27,SUPPLIER,THE CHILDRENS FAMILY TRUST,300000020479545
Portsmouth City Council,PCC,Children's and Education Services,Children Looked After,Children's Services and Education,Third Party Payments,Other establishments,01-Feb-22,6552514,774.27,SUPPLIER,THE CHILDRENS FAMILY TRUST,300000020479545
Portsmouth City Council,PCC,Children's and Education Services,Children Looked After,Children's Services and Education,Third Party Payments,Other establishments,01-Feb-22,6552514,774.27,SUPPLIER,THE CHILDRENS FAMILY TRUST,300000020479545
Portsmouth City Council,PCC,Children's and Education Services,Children Looked After,Children's Services and Education,Third Party Payments,Other establishments,01-Feb-22,6552514,-0.04,SUPPLIER,THE CHILDRENS FAMILY TRUST,300000020479545
Portsmouth City Council,PCC,Children's and Education Services,Children Looked After,Children's Services and Education,Third Party Payments,Other establishments,01-Feb-22,6552514,107.81,SUPPLIER,THE CHILDRENS FAMILY TRUST,300000020479545
Portsmouth City Council,PCC,Children's and Education Services,Children Looked After,Children's Services and Education,Third Party Payments,Other establishments,01-Feb-22,6552514,215.62,SUPPLIER,THE CHILDRENS FAMILY TRUST,300000020479545
Portsmouth City Council,PCC,Children's and Education Services,Children Looked After,Children's Services and Education,Third Party Payments,Other establishments,01-Feb-22,6552514,754.68,SUPPLIER,THE CHILDRENS FAMILY TRUST,300000020479545
Portsmouth City Council,PCC,Children's and Education Services,Children Looked After,Children's Services and Education,Third Party Payments,Other establishments,01-Feb-22,6552514,754.68,SUPPLIER,THE CHILDRENS FAMILY TRUST,300000020479545
Portsmouth City Council,PCC,Children's and Education Services,Children Looked After,Children's Services and Education,Third Party Payments,Other establishments,01-Feb-22,6552514,754.68,SUPPLIER,THE CHILDRENS FAMILY TRUST,300000020479545
Portsmouth City Council,PCC,Children's and Education Services,Children Looked After,Children's Services and Education,Third Party Payments,Other establishments,01-Feb-22,6552514,754.68,SUPPLIER,THE CHILDRENS FAMILY TRUST,300000020479545
Portsmouth City Council,PCC,Children's and Education Services,Children Looked After,Children's Services and Education,Third Party Payments,Other establishments,01-Feb-22,6552514,-0.04,SUPPLIER,THE CHILDRENS FAMILY TRUST,300000020479545
Portsmouth City Council,PCC,Children's and Education Services,Children Looked After,Children's Services and Education,Third Party Payments,Other establishments,01-Feb-22,6552514,110.61,SUPPLIER,THE CHILDRENS FAMILY TRUST,300000020479545
Portsmouth City Council,PCC,Children's and Education Services,Children Looked After,Children's Services and Education,Third Party Payments,Other establishments,01-Feb-22,6552514,221.22,SUPPLIER,THE CHILDRENS FAMILY TRUST,300000020479545
Portsmouth City Council,PCC,Children's and Education Services,Children Looked After,Children's Services and Education,Third Party Payments,Other establishments,01-Feb-22,6552514,774.28,SUPPLIER,THE CHILDRENS FAMILY TRUST,300000020479545
Portsmouth City Council,PCC,Children's and Education Services,Children Looked After,Children's Services and Education,Third Party Payments,Other establishments,01-Feb-22,6552514,774.28,SUPPLIER,THE CHILDRENS FAMILY TRUST,300000020479545
Portsmouth City Council,PCC,Children's and Education Services,Children Looked After,Children's Services and Education,Third Party Payments,Other establishments,01-Feb-22,6552514,774.28,SUPPLIER,THE CHILDRENS FAMILY TRUST,300000020479545
Portsmouth City Council,PCC,Children's and Education Services,Children Looked After,Children's Services and Education,Third Party Payments,Other establishments,01-Feb-22,6552514,774.28,SUPPLIER,THE CHILDRENS FAMILY TRUST,300000020479545
Portsmouth City Council,PCC,Children's and Education Services,Children Looked After,Children's Services and Education,Third Party Payments,Other establishments,01-Feb-22,6552514,109.5,SUPPLIER,THE CHILDRENS FAMILY TRUST,300000020479545
Portsmouth City Council,PCC,Children's and Education Services,Children Looked After,Children's Services and Education,Third Party Payments,Other establishments,01-Feb-22,6552514,219,SUPPLIER,THE CHILDRENS FAMILY TRUST,300000020479545
Portsmouth City Council,PCC,Children's and Education Services,Children Looked After,Children's Services and Education,Third Party Payments,Other establishments,01-Feb-22,6552514,766.5,SUPPLIER,THE CHILDRENS FAMILY TRUST,300000020479545
Portsmouth City Council,PCC,Children's and Education Services,Children Looked After,Children's Services and Education,Third Party Payments,Other establishments,01-Feb-22,6552514,766.5,SUPPLIER,THE CHILDRENS FAMILY TRUST,300000020479545
Portsmouth City Council,PCC,Children's and Education Services,Children Looked After,Children's Services and Education,Third Party Payments,Other establishments,01-Feb-22,6552514,766.5,SUPPLIER,THE CHILDRENS FAMILY TRUST,300000020479545
Portsmouth City Council,PCC,Children's and Education Services,Children Looked After,Children's Services and Education,Third Party Payments,Other establishments,01-Feb-22,6552514,766.5,SUPPLIER,THE CHILDRENS FAMILY TRUST,300000020479545
Portsmouth City Council,PCC,Children's and Education Services,Safeguarding Children and Young Peoples Services,Children's Services and Education,Third Party Payments,Other establishments,01-Feb-22,6552532,-10,SUPPLIER,SAKURA CARE LIMITED,300000020469343
Portsmouth City Council,PCC,Children's and Education Services,Safeguarding Children and Young Peoples Services,Children's Services and Education,Third Party Payments,Other establishments,01-Feb-22,6552532,-10,SUPPLIER,SAKURA CARE LIMITED,300000020469343
Portsmouth City Council,PCC,Children's and Education Services,Safeguarding Children and Young Peoples Services,Children's Services and Education,Third Party Payments,Other establishments,01-Feb-22,6552532,-10,SUPPLIER,SAKURA CARE LIMITED,300000020469343
Portsmouth City Council,PCC,Children's and Education Services,Safeguarding Children and Young Peoples Services,Children's Services and Education,Third Party Payments,Other establishments,01-Feb-22,6552532,-10,SUPPLIER,SAKURA CARE LIMITED,300000020469343
Portsmouth City Council,PCC,Children's and Education Services,Safeguarding Children and Young Peoples Services,Children's Services and Education,Third Party Payments,Other establishments,01-Feb-22,6552532,-2.86,SUPPLIER,SAKURA CARE LIMITED,300000020469343
Portsmouth City Council,PCC,Children's and Education Services,Safeguarding Children and Young Peoples Services,Children's Services and Education,Third Party Payments,Other establishments,01-Feb-22,6552532,-1.43,SUPPLIER,SAKURA CARE LIMITED,300000020469343
Portsmouth City Council,PCC,Children's and Education Services,Safeguarding Children and Young Peoples Services,Children's Services and Education,Third Party Payments,Other establishments,01-Feb-22,6552532,-0.21,SUPPLIER,SAKURA CARE LIMITED,300000020469343
Portsmouth City Council,PCC,Children's and Education Services,Safeguarding Children and Young Peoples Services,Children's Services and Education,Third Party Payments,Other establishments,01-Feb-22,6552532,8.27,SUPPLIER,SAKURA CARE LIMITED,300000020469343
Portsmouth City Council,PCC,Children's and Education Services,Safeguarding Children and Young Peoples Services,Children's Services and Education,Third Party Payments,Other establishments,01-Feb-22,6552532,15.71,SUPPLIER,SAKURA CARE LIMITED,300000020469343
Portsmouth City Council,PCC,Children's and Education Services,Safeguarding Children and Young Peoples Services,Children's Services and Education,Third Party Payments,Other establishments,01-Feb-22,6552532,16.54,SUPPLIER,SAKURA CARE LIMITED,300000020469343
Portsmouth City Council,PCC,Children's and Education Services,Safeguarding Children and Young Peoples Services,Children's Services and Education,Third Party Payments,Other establishments,01-Feb-22,6552532,31.43,SUPPLIER,SAKURA CARE LIMITED,300000020469343
Portsmouth City Council,PCC,Children's and Education Services,Safeguarding Children and Young Peoples Services,Children's Services and Education,Third Party Payments,Other establishments,01-Feb-22,6552532,57.9,SUPPLIER,SAKURA CARE LIMITED,300000020469343
Portsmouth City Council,PCC,Children's and Education Services,Safeguarding Children and Young Peoples Services,Children's Services and Education,Third Party Payments,Other establishments,01-Feb-22,6552532,57.9,SUPPLIER,SAKURA CARE LIMITED,300000020469343
Portsmouth City Council,PCC,Children's and Education Services,Safeguarding Children and Young Peoples Services,Children's Services and Education,Third Party Payments,Other establishments,01-Feb-22,6552532,57.9,SUPPLIER,SAKURA CARE LIMITED,300000020469343
Portsmouth City Council,PCC,Children's and Education Services,Safeguarding Children and Young Peoples Services,Children's Services and Education,Third Party Payments,Other establishments,01-Feb-22,6552532,57.9,SUPPLIER,SAKURA CARE LIMITED,300000020469343
Portsmouth City Council,PCC,Children's and Education Services,Safeguarding Children and Young Peoples Services,Children's Services and Education,Third Party Payments,Other establishments,01-Feb-22,6552532,110,SUPPLIER,SAKURA CARE LIMITED,300000020469343
Portsmouth City Council,PCC,Children's and Education Services,Safeguarding Children and Young Peoples Services,Children's Services and Education,Third Party Payments,Other establishments,01-Feb-22,6552532,110,SUPPLIER,SAKURA CARE LIMITED,300000020469343
Portsmouth City Council,PCC,Children's and Education Services,Safeguarding Children and Young Peoples Services,Children's Services and Education,Third Party Payments,Other establishments,01-Feb-22,6552532,110,SUPPLIER,SAKURA CARE LIMITED,300000020469343
Portsmouth City Council,PCC,Children's and Education Services,Safeguarding Children and Young Peoples Services,Children's Services and Education,Third Party Payments,Other establishments,01-Feb-22,6552532,110,SUPPLIER,SAKURA CARE LIMITED,300000020469343
Portsmouth City Council,PCC,Children's and Education Services,Safeguarding Children and Young Peoples Services,Children's Services and Education,Third Party Payments,Other establishments,01-Feb-22,6552532,123.57,SUPPLIER,SAKURA CARE LIMITED,300000020469343
Portsmouth City Council,PCC,Children's and Education Services,Safeguarding Children and Young Peoples Services,Children's Services and Education,Third Party Payments,Other establishments,01-Feb-22,6552532,247.14,SUPPLIER,SAKURA CARE LIMITED,300000020469343
Portsmouth City Council,PCC,Children's and Education Services,Safeguarding Children and Young Peoples Services,Children's Services and Education,Third Party Payments,Other establishments,01-Feb-22,6552532,865,SUPPLIER,SAKURA CARE LIMITED,300000020469343
Portsmouth City Council,PCC,Children's and Education Services,Safeguarding Children and Young Peoples Services,Children's Services and Education,Third Party Payments,Other establishments,01-Feb-22,6552532,865,SUPPLIER,SAKURA CARE LIMITED,300000020469343
Portsmouth City Council,PCC,Children's and Education Services,Safeguarding Children and Young Peoples Services,Children's Services and Education,Third Party Payments,Other establishments,01-Feb-22,6552532,865,SUPPLIER,SAKURA CARE LIMITED,300000020469343
Portsmouth City Council,PCC,Children's and Education Services,Safeguarding Children and Young Peoples Services,Children's Services and Education,Third Party Payments,Other establishments,01-Feb-22,6552532,865,SUPPLIER,SAKURA CARE LIMITED,300000020469343
Portsmouth City Council,PCC,Children's and Education Services,Children Looked After,Children's Services and Education,Third Party Payments,Other establishments,08-Feb-22,6553891,446.43,SUPPLIER,LIBRE LIVING LIMITED,300000020474688
Portsmouth City Council,PCC,Children's and Education Services,Children Looked After,Children's Services and Education,Third Party Payments,Other establishments,08-Feb-22,6553891,892.86,SUPPLIER,LIBRE LIVING LIMITED,300000020474688
Portsmouth City Council,PCC,Children's and Education Services,Children Looked After,Children's Services and Education,Third Party Payments,Other establishments,08-Feb-22,6553891,"3,125.00",SUPPLIER,LIBRE LIVING LIMITED,300000020474688
Portsmouth City Council,PCC,Children's and Education Services,Children Looked After,Children's Services and Education,Third Party Payments,Other establishments,08-Feb-22,6553891,"3,125.00",SUPPLIER,LIBRE LIVING LIMITED,300000020474688
Portsmouth City Council,PCC,Children's and Education Services,Children Looked After,Children's Services and Education,Third Party Payments,Other establishments,08-Feb-22,6553891,"3,125.00",SUPPLIER,LIBRE LIVING LIMITED,300000020474688
Portsmouth City Council,PCC,Children's and Education Services,Children Looked After,Children's Services and Education,Third Party Payments,Other establishments,08-Feb-22,6553891,"3,125.00",SUPPLIER,LIBRE LIVING LIMITED,300000020474688
Portsmouth City Council,PCC,Housing Services,Housing Strategy,"Housing, Neighbourhood and Building Services",Income,Customer and client receipts,08-Feb-22,6553896,-337.5,LIMITED COMPANY,LIFTECH SYSTEMS (SE) LIMITED,300000020461913
Portsmouth City Council,PCC,Other,Suspense and Capital Schemes,"Housing, Neighbourhood and Building Services",Supplies and Services,Services,08-Feb-22,6553896,405,LIMITED COMPANY,LIFTECH SYSTEMS (SE) LIMITED,300000020461913
Portsmouth City Council,PCC,Other,Suspense and Capital Schemes,"Housing, Neighbourhood and Building Services",Supplies and Services,Services,08-Feb-22,6553896,"2,250.00",LIMITED COMPANY,LIFTECH SYSTEMS (SE) LIMITED,300000020461913
Portsmouth City Council,PCC,Children's and Education Services,Management and Support Services,Children's Services and Education,Third Party Payments,Other establishments,10-Feb-22,6554570,"1,506.46",SUPPLIER,KINGS GROUP ACADEMIES,300000020484231
Portsmouth City Council,PCC,Children's and Education Services,Management and Support Services,Children's Services and Education,Third Party Payments,Other establishments,10-Feb-22,6554569,"12,650.21",SUPPLIER,THE SALTERNS ACADEMY TRUST T/A ADMIRAL LORD NELSON SCHOOL,300000020477978
Portsmouth City Council,PCC,Adult Social Care,Physical Support Older People (85+),Adult Care,Third Party Payments,Other establishments,02-Feb-22,6552608,56,PRIVATE PROVIDER,Classified as 'personal data' (under the Data Protection Act 2018),300000020467205
Portsmouth City Council,PCC,Adult Social Care,Physical Support Older People (85+),Adult Care,Third Party Payments,Other establishments,02-Feb-22,6552608,210,PRIVATE PROVIDER,Classified as 'personal data' (under the Data Protection Act 2018),300000020467205
Portsmouth City Council,PCC,Adult Social Care,Physical Support Older People (85+),Adult Care,Third Party Payments,Other establishments,02-Feb-22,6552608,224,PRIVATE PROVIDER,Classified as 'personal data' (under the Data Protection Act 2018),300000020467205
Portsmouth City Council,PCC,Adult Social Care,Physical Support Older People (85+),Adult Care,Third Party Payments,Other establishments,02-Feb-22,6552608,490,PRIVATE PROVIDER,Classified as 'personal data' (under the Data Protection Act 2018),300000020467205
Portsmouth City Council,PCC,Housing Services,Private Sector Housing Renewal,"Housing, Neighbourhood and Building Services",Income,Other grants reimbursements and contributions,08-Feb-22,6553896,"-1,168.50",LIMITED COMPANY,LIFTECH SYSTEMS (SE) LIMITED,300000020461913
Portsmouth City Council,PCC,Other,Suspense and Capital Schemes,Capital - Housing General Fund,Capital Charges,REFCUS,08-Feb-22,6553896,"1,402.20",LIMITED COMPANY,LIFTECH SYSTEMS (SE) LIMITED,300000020461913
Portsmouth City Council,PCC,Other,Suspense and Capital Schemes,Capital - Housing General Fund,Capital Charges,REFCUS,08-Feb-22,6553896,"3,810.00",LIMITED COMPANY,LIFTECH SYSTEMS (SE) LIMITED,300000020461913
Portsmouth City Council,PCC,Adult Social Care,Learning Disability Support Adults (18 - 64),Adult Care,Supplies and Services,"Equipment, furniture and materials",02-Feb-22,6552688,8.34,SUPPLIER,AMAZON BUSINESS EU SARL,300000020473393
Portsmouth City Council,PCC,Adult Social Care,Learning Disability Support Adults (18 - 64),Adult Care,Supplies and Services,"Equipment, furniture and materials",02-Feb-22,6552688,4.99,SUPPLIER,AMAZON BUSINESS EU SARL,300000020473393
Portsmouth City Council,PCC,Adult Social Care,Learning Disability Support Adults (18 - 64),Adult Care,Supplies and Services,"Equipment, furniture and materials",02-Feb-22,6552688,6.25,SUPPLIER,AMAZON BUSINESS EU SARL,300000020473393
Portsmouth City Council,PCC,Children's and Education Services,Children Looked After,Children's Services and Education,Third Party Payments,Other establishments,04-Feb-22,6553471,525,PRIVATE PROVIDER,Classified as 'personal data' (under the Data Protection Act 2018),300000020483403
Portsmouth City Council,PCC,Children's and Education Services,Children Looked After,Children's Services and Education,Third Party Payments,Other establishments,02-Feb-22,6552741,"-2,500.00",LIMITED COMPANY,CHRYSALIS ASSOCIATES LTD,300000048531256
Portsmouth City Council,PCC,Children's and Education Services,Children Looked After,Children's Services and Education,Third Party Payments,Other establishments,02-Feb-22,6552741,"5,000.00",LIMITED COMPANY,CHRYSALIS ASSOCIATES LTD,300000048531256
Portsmouth City Council,PCC,Children's and Education Services,Family Support Services,Children's Services and Education,Third Party Payments,Other establishments,03-Feb-22,6553259,700,PRIVATE PROVIDER,WATERFIELDS LETTINGS LTD,300000020474297
Portsmouth City Council,PCC,Children's and Education Services,Children Looked After,Children's Services and Education,Third Party Payments,Other establishments,08-Feb-22,6553782,"2,401.07",LIMITED COMPANY,Anderida Adolescent Care,300000201508412
Portsmouth City Council,PCC,Children's and Education Services,Children Looked After,Children's Services and Education,Third Party Payments,Other establishments,08-Feb-22,6553782,"6,002.68",LIMITED COMPANY,Anderida Adolescent Care,300000201508412
Portsmouth City Council,PCC,Children's and Education Services,Children Looked After,Children's Services and Education,Third Party Payments,Other establishments,08-Feb-22,6553782,"8,403.75",LIMITED COMPANY,Anderida Adolescent Care,300000201508412
Portsmouth City Council,PCC,Children's and Education Services,Children Looked After,Children's Services and Education,Third Party Payments,Other establishments,08-Feb-22,6553782,"8,403.75",LIMITED COMPANY,Anderida Adolescent Care,300000201508412
Portsmouth City Council,PCC,Children's and Education Services,Children Looked After,Children's Services and Education,Third Party Payments,Other establishments,08-Feb-22,6553782,"8,403.75",LIMITED COMPANY,Anderida Adolescent Care,300000201508412
Portsmouth City Council,PCC,Children's and Education Services,Children Looked After,Children's Services and Education,Third Party Payments,Other establishments,14-Feb-22,6555216,-751.37,SUPPLIER,FOSTERING SOLUTIONS,300000009793967
Portsmouth City Council,PCC,Children's and Education Services,Children Looked After,Children's Services and Education,Third Party Payments,Other establishments,14-Feb-22,6555216,-107.34,SUPPLIER,FOSTERING SOLUTIONS,300000009793967
Portsmouth City Council,PCC,Children's and Education Services,Children Looked After,Children's Services and Education,Third Party Payments,Other establishments,14-Feb-22,6555216,-0.06,SUPPLIER,FOSTERING SOLUTIONS,300000009793967
Portsmouth City Council,PCC,Children's and Education Services,Children Looked After,Children's Services and Education,Third Party Payments,Other establishments,14-Feb-22,6555216,0.06,SUPPLIER,FOSTERING SOLUTIONS,300000009793967
Portsmouth City Council,PCC,Children's and Education Services,Children Looked After,Children's Services and Education,Third Party Payments,Other establishments,14-Feb-22,6555216,429.35,SUPPLIER,FOSTERING SOLUTIONS,300000009793967
Portsmouth City Council,PCC,Children's and Education Services,Safeguarding Children and Young Peoples Services,Children's Services and Education,Third Party Payments,Other establishments,10-Feb-22,6554689,-10,SUPPLIER,PATHWAYS TO INDEPENDENCE HOUSING (UK) LIMITED,300000020480095
Portsmouth City Council,PCC,Children's and Education Services,Safeguarding Children and Young Peoples Services,Children's Services and Education,Third Party Payments,Other establishments,10-Feb-22,6554689,-10,SUPPLIER,PATHWAYS TO INDEPENDENCE HOUSING (UK) LIMITED,300000020480095
Portsmouth City Council,PCC,Children's and Education Services,Safeguarding Children and Young Peoples Services,Children's Services and Education,Third Party Payments,Other establishments,10-Feb-22,6554689,-10,SUPPLIER,PATHWAYS TO INDEPENDENCE HOUSING (UK) LIMITED,300000020480095
Portsmouth City Council,PCC,Children's and Education Services,Safeguarding Children and Young Peoples Services,Children's Services and Education,Third Party Payments,Other establishments,10-Feb-22,6554689,-8.87,SUPPLIER,PATHWAYS TO INDEPENDENCE HOUSING (UK) LIMITED,300000020480095
Portsmouth City Council,PCC,Children's and Education Services,Safeguarding Children and Young Peoples Services,Children's Services and Education,Third Party Payments,Other establishments,10-Feb-22,6554689,-8.57,SUPPLIER,PATHWAYS TO INDEPENDENCE HOUSING (UK) LIMITED,300000020480095
Portsmouth City Council,PCC,Children's and Education Services,Safeguarding Children and Young Peoples Services,Children's Services and Education,Third Party Payments,Other establishments,10-Feb-22,6554689,-5.71,SUPPLIER,PATHWAYS TO INDEPENDENCE HOUSING (UK) LIMITED,300000020480095
Portsmouth City Council,PCC,Children's and Education Services,Safeguarding Children and Young Peoples Services,Children's Services and Education,Third Party Payments,Other establishments,10-Feb-22,6554689,60,SUPPLIER,PATHWAYS TO INDEPENDENCE HOUSING (UK) LIMITED,300000020480095
Portsmouth City Council,PCC,Children's and Education Services,Safeguarding Children and Young Peoples Services,Children's Services and Education,Third Party Payments,Other establishments,10-Feb-22,6554689,90,SUPPLIER,PATHWAYS TO INDEPENDENCE HOUSING (UK) LIMITED,300000020480095
Portsmouth City Council,PCC,Children's and Education Services,Safeguarding Children and Young Peoples Services,Children's Services and Education,Third Party Payments,Other establishments,10-Feb-22,6554689,105,SUPPLIER,PATHWAYS TO INDEPENDENCE HOUSING (UK) LIMITED,300000020480095
Portsmouth City Council,PCC,Children's and Education Services,Safeguarding Children and Young Peoples Services,Children's Services and Education,Third Party Payments,Other establishments,10-Feb-22,6554689,105,SUPPLIER,PATHWAYS TO INDEPENDENCE HOUSING (UK) LIMITED,300000020480095
Portsmouth City Council,PCC,Children's and Education Services,Safeguarding Children and Young Peoples Services,Children's Services and Education,Third Party Payments,Other establishments,10-Feb-22,6554689,105,SUPPLIER,PATHWAYS TO INDEPENDENCE HOUSING (UK) LIMITED,300000020480095
Portsmouth City Council,PCC,Children's and Education Services,Safeguarding Children and Young Peoples Services,Children's Services and Education,Third Party Payments,Other establishments,10-Feb-22,6554689,238.86,SUPPLIER,PATHWAYS TO INDEPENDENCE HOUSING (UK) LIMITED,300000020480095
Portsmouth City Council,PCC,Children's and Education Services,Safeguarding Children and Young Peoples Services,Children's Services and Education,Third Party Payments,Other establishments,10-Feb-22,6554689,358.29,SUPPLIER,PATHWAYS TO INDEPENDENCE HOUSING (UK) LIMITED,300000020480095
Portsmouth City Council,PCC,Children's and Education Services,Safeguarding Children and Young Peoples Services,Children's Services and Education,Third Party Payments,Other establishments,10-Feb-22,6554689,418,SUPPLIER,PATHWAYS TO INDEPENDENCE HOUSING (UK) LIMITED,300000020480095
Portsmouth City Council,PCC,Children's and Education Services,Safeguarding Children and Young Peoples Services,Children's Services and Education,Third Party Payments,Other establishments,10-Feb-22,6554689,418,SUPPLIER,PATHWAYS TO INDEPENDENCE HOUSING (UK) LIMITED,300000020480095
Portsmouth City Council,PCC,Children's and Education Services,Safeguarding Children and Young Peoples Services,Children's Services and Education,Third Party Payments,Other establishments,10-Feb-22,6554689,418,SUPPLIER,PATHWAYS TO INDEPENDENCE HOUSING (UK) LIMITED,300000020480095
Portsmouth City Council,PCC,Children's and Education Services,Safeguarding Children and Young Peoples Services,Children's Services and Education,Third Party Payments,Other establishments,10-Feb-22,6554689,-10,SUPPLIER,PATHWAYS TO INDEPENDENCE HOUSING (UK) LIMITED,300000020480095
Portsmouth City Council,PCC,Children's and Education Services,Safeguarding Children and Young Peoples Services,Children's Services and Education,Third Party Payments,Other establishments,10-Feb-22,6554689,-10,SUPPLIER,PATHWAYS TO INDEPENDENCE HOUSING (UK) LIMITED,300000020480095
Portsmouth City Council,PCC,Children's and Education Services,Safeguarding Children and Young Peoples Services,Children's Services and Education,Third Party Payments,Other establishments,10-Feb-22,6554689,-10,SUPPLIER,PATHWAYS TO INDEPENDENCE HOUSING (UK) LIMITED,300000020480095
Portsmouth City Council,PCC,Children's and Education Services,Safeguarding Children and Young Peoples Services,Children's Services and Education,Third Party Payments,Other establishments,10-Feb-22,6554689,-8.57,SUPPLIER,PATHWAYS TO INDEPENDENCE HOUSING (UK) LIMITED,300000020480095
Portsmouth City Council,PCC,Children's and Education Services,Safeguarding Children and Young Peoples Services,Children's Services and Education,Third Party Payments,Other establishments,10-Feb-22,6554689,-5.71,SUPPLIER,PATHWAYS TO INDEPENDENCE HOUSING (UK) LIMITED,300000020480095
Portsmouth City Council,PCC,Children's and Education Services,Safeguarding Children and Young Peoples Services,Children's Services and Education,Third Party Payments,Other establishments,10-Feb-22,6554689,-0.19,SUPPLIER,PATHWAYS TO INDEPENDENCE HOUSING (UK) LIMITED,300000020480095
Portsmouth City Council,PCC,Children's and Education Services,Safeguarding Children and Young Peoples Services,Children's Services and Education,Third Party Payments,Other establishments,10-Feb-22,6554689,60,SUPPLIER,PATHWAYS TO INDEPENDENCE HOUSING (UK) LIMITED,300000020480095
Portsmouth City Council,PCC,Children's and Education Services,Safeguarding Children and Young Peoples Services,Children's Services and Education,Third Party Payments,Other establishments,10-Feb-22,6554689,90,SUPPLIER,PATHWAYS TO INDEPENDENCE HOUSING (UK) LIMITED,300000020480095
Portsmouth City Council,PCC,Children's and Education Services,Safeguarding Children and Young Peoples Services,Children's Services and Education,Third Party Payments,Other establishments,10-Feb-22,6554689,105,SUPPLIER,PATHWAYS TO INDEPENDENCE HOUSING (UK) LIMITED,300000020480095
Portsmouth City Council,PCC,Children's and Education Services,Safeguarding Children and Young Peoples Services,Children's Services and Education,Third Party Payments,Other establishments,10-Feb-22,6554689,105,SUPPLIER,PATHWAYS TO INDEPENDENCE HOUSING (UK) LIMITED,300000020480095
Portsmouth City Council,PCC,Children's and Education Services,Safeguarding Children and Young Peoples Services,Children's Services and Education,Third Party Payments,Other establishments,10-Feb-22,6554689,105,SUPPLIER,PATHWAYS TO INDEPENDENCE HOUSING (UK) LIMITED,300000020480095
Portsmouth City Council,PCC,Children's and Education Services,Safeguarding Children and Young Peoples Services,Children's Services and Education,Third Party Payments,Other establishments,10-Feb-22,6554689,238.86,SUPPLIER,PATHWAYS TO INDEPENDENCE HOUSING (UK) LIMITED,300000020480095
Portsmouth City Council,PCC,Children's and Education Services,Safeguarding Children and Young Peoples Services,Children's Services and Education,Third Party Payments,Other establishments,10-Feb-22,6554689,358.29,SUPPLIER,PATHWAYS TO INDEPENDENCE HOUSING (UK) LIMITED,300000020480095
Portsmouth City Council,PCC,Children's and Education Services,Safeguarding Children and Young Peoples Services,Children's Services and Education,Third Party Payments,Other establishments,10-Feb-22,6554689,418,SUPPLIER,PATHWAYS TO INDEPENDENCE HOUSING (UK) LIMITED,300000020480095
Portsmouth City Council,PCC,Children's and Education Services,Safeguarding Children and Young Peoples Services,Children's Services and Education,Third Party Payments,Other establishments,10-Feb-22,6554689,418,SUPPLIER,PATHWAYS TO INDEPENDENCE HOUSING (UK) LIMITED,300000020480095
Portsmouth City Council,PCC,Children's and Education Services,Safeguarding Children and Young Peoples Services,Children's Services and Education,Third Party Payments,Other establishments,10-Feb-22,6554689,418,SUPPLIER,PATHWAYS TO INDEPENDENCE HOUSING (UK) LIMITED,300000020480095
Portsmouth City Council,PCC,Children's and Education Services,Asylum seekers,Children's Services and Education,Third Party Payments,Other establishments,01-Feb-22,6552532,23.99,SUPPLIER,SAKURA CARE LIMITED,300000020469343
Portsmouth City Council,PCC,Children's and Education Services,Children Looked After,Children's Services and Education,Third Party Payments,Other establishments,10-Feb-22,6554713,582.57,SUPPLIER,FAIR WAYS COMMUNITY BENEFIT SOCEITY T/A FAIRWAYS CARE (UK) LTD,300000020459125
Portsmouth City Council,PCC,Children's and Education Services,Children Looked After,Children's Services and Education,Third Party Payments,Other establishments,10-Feb-22,6554713,"3,495.43",SUPPLIER,FAIR WAYS COMMUNITY BENEFIT SOCEITY T/A FAIRWAYS CARE (UK) LTD,300000020459125
Portsmouth City Council,PCC,Children's and Education Services,Children Looked After,Children's Services and Education,Third Party Payments,Other establishments,10-Feb-22,6554713,"4,078.00",SUPPLIER,FAIR WAYS COMMUNITY BENEFIT SOCEITY T/A FAIRWAYS CARE (UK) LTD,300000020459125
Portsmouth City Council,PCC,Children's and Education Services,Safeguarding Children and Young Peoples Services,Children's Services and Education,Third Party Payments,Other establishments,10-Feb-22,6554591,-0.05,SUPPLIER,TWO SAINTS LTD,300000020462955
Portsmouth City Council,PCC,Children's and Education Services,Safeguarding Children and Young Peoples Services,Children's Services and Education,Third Party Payments,Other establishments,10-Feb-22,6554591,106.21,SUPPLIER,TWO SAINTS LTD,300000020462955
Portsmouth City Council,PCC,Children's and Education Services,Safeguarding Children and Young Peoples Services,Children's Services and Education,Third Party Payments,Other establishments,10-Feb-22,6554591,159.31,SUPPLIER,TWO SAINTS LTD,300000020462955
Portsmouth City Council,PCC,Children's and Education Services,Safeguarding Children and Young Peoples Services,Children's Services and Education,Third Party Payments,Other establishments,10-Feb-22,6554591,185.86,SUPPLIER,TWO SAINTS LTD,300000020462955
Portsmouth City Council,PCC,Children's and Education Services,Safeguarding Children and Young Peoples Services,Children's Services and Education,Third Party Payments,Other establishments,10-Feb-22,6554591,185.86,SUPPLIER,TWO SAINTS LTD,300000020462955
Portsmouth City Council,PCC,Children's and Education Services,Safeguarding Children and Young Peoples Services,Children's Services and Education,Third Party Payments,Other establishments,10-Feb-22,6554591,185.86,SUPPLIER,TWO SAINTS LTD,300000020462955
Portsmouth City Council,PCC,Children's and Education Services,Safeguarding Children and Young Peoples Services,Children's Services and Education,Third Party Payments,Other establishments,10-Feb-22,6554591,-0.05,SUPPLIER,TWO SAINTS LTD,300000020462955
Portsmouth City Council,PCC,Children's and Education Services,Safeguarding Children and Young Peoples Services,Children's Services and Education,Third Party Payments,Other establishments,10-Feb-22,6554591,106.21,SUPPLIER,TWO SAINTS LTD,300000020462955
Portsmouth City Council,PCC,Children's and Education Services,Safeguarding Children and Young Peoples Services,Children's Services and Education,Third Party Payments,Other establishments,10-Feb-22,6554591,159.31,SUPPLIER,TWO SAINTS LTD,300000020462955
Portsmouth City Council,PCC,Children's and Education Services,Safeguarding Children and Young Peoples Services,Children's Services and Education,Third Party Payments,Other establishments,10-Feb-22,6554591,185.86,SUPPLIER,TWO SAINTS LTD,300000020462955
Portsmouth City Council,PCC,Children's and Education Services,Safeguarding Children and Young Peoples Services,Children's Services and Education,Third Party Payments,Other establishments,10-Feb-22,6554591,185.86,SUPPLIER,TWO SAINTS LTD,300000020462955
Portsmouth City Council,PCC,Children's and Education Services,Safeguarding Children and Young Peoples Services,Children's Services and Education,Third Party Payments,Other establishments,10-Feb-22,6554591,185.86,SUPPLIER,TWO SAINTS LTD,300000020462955
Portsmouth City Council,PCC,Children's and Education Services,Safeguarding Children and Young Peoples Services,Children's Services and Education,Third Party Payments,Other establishments,10-Feb-22,6554591,-0.05,SUPPLIER,TWO SAINTS LTD,300000020462955
Portsmouth City Council,PCC,Children's and Education Services,Safeguarding Children and Young Peoples Services,Children's Services and Education,Third Party Payments,Other establishments,10-Feb-22,6554591,106.21,SUPPLIER,TWO SAINTS LTD,300000020462955
Portsmouth City Council,PCC,Children's and Education Services,Safeguarding Children and Young Peoples Services,Children's Services and Education,Third Party Payments,Other establishments,10-Feb-22,6554591,159.31,SUPPLIER,TWO SAINTS LTD,300000020462955
Portsmouth City Council,PCC,Children's and Education Services,Safeguarding Children and Young Peoples Services,Children's Services and Education,Third Party Payments,Other establishments,10-Feb-22,6554591,185.86,SUPPLIER,TWO SAINTS LTD,300000020462955
Portsmouth City Council,PCC,Children's and Education Services,Safeguarding Children and Young Peoples Services,Children's Services and Education,Third Party Payments,Other establishments,10-Feb-22,6554591,185.86,SUPPLIER,TWO SAINTS LTD,300000020462955
Portsmouth City Council,PCC,Children's and Education Services,Safeguarding Children and Young Peoples Services,Children's Services and Education,Third Party Payments,Other establishments,10-Feb-22,6554591,185.86,SUPPLIER,TWO SAINTS LTD,300000020462955
Portsmouth City Council,PCC,Children's and Education Services,Safeguarding Children and Young Peoples Services,Children's Services and Education,Third Party Payments,Other establishments,10-Feb-22,6554591,-0.05,SUPPLIER,TWO SAINTS LTD,300000020462955
Portsmouth City Council,PCC,Children's and Education Services,Safeguarding Children and Young Peoples Services,Children's Services and Education,Third Party Payments,Other establishments,10-Feb-22,6554591,106.21,SUPPLIER,TWO SAINTS LTD,300000020462955
Portsmouth City Council,PCC,Children's and Education Services,Safeguarding Children and Young Peoples Services,Children's Services and Education,Third Party Payments,Other establishments,10-Feb-22,6554591,159.31,SUPPLIER,TWO SAINTS LTD,300000020462955
Portsmouth City Council,PCC,Children's and Education Services,Safeguarding Children and Young Peoples Services,Children's Services and Education,Third Party Payments,Other establishments,10-Feb-22,6554591,185.86,SUPPLIER,TWO SAINTS LTD,300000020462955
Portsmouth City Council,PCC,Children's and Education Services,Safeguarding Children and Young Peoples Services,Children's Services and Education,Third Party Payments,Other establishments,10-Feb-22,6554591,185.86,SUPPLIER,TWO SAINTS LTD,300000020462955
Portsmouth City Council,PCC,Children's and Education Services,Safeguarding Children and Young Peoples Services,Children's Services and Education,Third Party Payments,Other establishments,10-Feb-22,6554591,185.86,SUPPLIER,TWO SAINTS LTD,300000020462955
Portsmouth City Council,PCC,Children's and Education Services,Children Looked After,Children's Services and Education,Third Party Payments,Other establishments,10-Feb-22,6554713,204.66,SUPPLIER,FAIR WAYS COMMUNITY BENEFIT SOCEITY T/A FAIRWAYS CARE (UK) LTD,300000020459125
Portsmouth City Council,PCC,Children's and Education Services,Children Looked After,Children's Services and Education,Third Party Payments,Other establishments,10-Feb-22,6554713,"1,227.94",SUPPLIER,FAIR WAYS COMMUNITY BENEFIT SOCEITY T/A FAIRWAYS CARE (UK) LTD,300000020459125
Portsmouth City Council,PCC,Children's and Education Services,Children Looked After,Children's Services and Education,Third Party Payments,Other establishments,10-Feb-22,6554713,"1,432.60",SUPPLIER,FAIR WAYS COMMUNITY BENEFIT SOCEITY T/A FAIRWAYS CARE (UK) LTD,300000020459125
Portsmouth City Council,PCC,Children's and Education Services,Children Looked After,Children's Services and Education,Third Party Payments,Other establishments,01-Feb-22,6552473,236.32,SUPPLIER,FOSTERING SOLUTIONS,300000009793967
Portsmouth City Council,PCC,Children's and Education Services,Children Looked After,Children's Services and Education,Third Party Payments,Other establishments,01-Feb-22,6552473,708.96,SUPPLIER,FOSTERING SOLUTIONS,300000009793967
Portsmouth City Council,PCC,Children's and Education Services,Children Looked After,Children's Services and Education,Third Party Payments,Other establishments,01-Feb-22,6552473,827.12,SUPPLIER,FOSTERING SOLUTIONS,300000009793967
Portsmouth City Council,PCC,Children's and Education Services,Safeguarding Children and Young Peoples Services,Children's Services and Education,Third Party Payments,Other establishments,01-Feb-22,6552532,24.99,SUPPLIER,SAKURA CARE LIMITED,300000020469343
Portsmouth City Council,PCC,Children's and Education Services,Safeguarding Children and Young Peoples Services,Children's Services and Education,Third Party Payments,Other establishments,01-Feb-22,6552532,23.99,SUPPLIER,SAKURA CARE LIMITED,300000020469343
Portsmouth City Council,PCC,Children's and Education Services,Safeguarding Children and Young Peoples Services,Children's Services and Education,Third Party Payments,Other establishments,01-Feb-22,6552532,44.33,SUPPLIER,SAKURA CARE LIMITED,300000020469343
Portsmouth City Council,PCC,Children's and Education Services,Children Looked After,Children's Services and Education,Third Party Payments,Other establishments,10-Feb-22,6554721,205.63,SUPPLIER,CORE ASSETS GROUP,300000020461175
Portsmouth City Council,PCC,Children's and Education Services,Children Looked After,Children's Services and Education,Third Party Payments,Other establishments,10-Feb-22,6554721,411.26,SUPPLIER,CORE ASSETS GROUP,300000020461175
Portsmouth City Council,PCC,Children's and Education Services,Children Looked After,Children's Services and Education,Third Party Payments,Other establishments,10-Feb-22,6554721,"1,439.41",SUPPLIER,CORE ASSETS GROUP,300000020461175
Portsmouth City Council,PCC,Children's and Education Services,Children Looked After,Children's Services and Education,Third Party Payments,Other establishments,10-Feb-22,6554721,"1,439.41",SUPPLIER,CORE ASSETS GROUP,300000020461175
Portsmouth City Council,PCC,Children's and Education Services,Children Looked After,Children's Services and Education,Third Party Payments,Other establishments,10-Feb-22,6554721,"1,439.41",SUPPLIER,CORE ASSETS GROUP,300000020461175
Portsmouth City Council,PCC,Children's and Education Services,Children Looked After,Children's Services and Education,Third Party Payments,Other establishments,10-Feb-22,6554721,"1,439.41",SUPPLIER,CORE ASSETS GROUP,300000020461175
Portsmouth City Council,PCC,Adult Social Care,Learning Disability Support Adults (18 - 64),Adult Care,Supplies and Services,"Printing, stationery and general office expenses",02-Feb-22,6552688,5.82,SUPPLIER,AMAZON BUSINESS EU SARL,300000020473393
Portsmouth City Council,PCC,Adult Social Care,Learning Disability Support Adults (18 - 64),Adult Care,Supplies and Services,"Equipment, furniture and materials",04-Feb-22,6553528,4.17,SUPPLIER,AMAZON BUSINESS EU SARL,300000020473393
Portsmouth City Council,PCC,Adult Social Care,Learning Disability Support Adults (18 - 64),Adult Care,Supplies and Services,"Equipment, furniture and materials",04-Feb-22,6553528,6.63,SUPPLIER,AMAZON BUSINESS EU SARL,300000020473393
Portsmouth City Council,PCC,Adult Social Care,Physical Support Older People (85+),Adult Care,Third Party Payments,Other establishments,22-Feb-22,6556792,"1,486.24",SUPPLIER,ABICARE SERVICES LTD,300000020470310
Portsmouth City Council,PCC,Adult Social Care,Physical Support Older People (85+),Adult Care,Third Party Payments,Other establishments,22-Feb-22,6556792,"2,002.56",SUPPLIER,ABICARE SERVICES LTD,300000020470310
Portsmouth City Council,PCC,Adult Social Care,Social Care Activities,Adult Care,Third Party Payments,Other establishments,14-Feb-22,6555203,379.52,SUPPLIER,ADDICTION RECOVERY CENTRES LTD,300000020478689
Portsmouth City Council,PCC,Adult Social Care,Commissioning & service delivery,Adult Care,Third Party Payments,Other establishments,14-Feb-22,6555203,"3,195.10",SUPPLIER,ADDICTION RECOVERY CENTRES LTD,300000020478689
Portsmouth City Council,PCC,Children's and Education Services,Primary Schools,Children's Services and Education,Premises-Related Expenditure,Energy costs,15-Feb-22,6555402,-704.7,LIMITED COMPANY,GAZPROM MARKETING AND TRADING LTD,300000250807105
Portsmouth City Council,PCC,Children's and Education Services,Primary Schools,Children's Services and Education,Premises-Related Expenditure,Energy costs,15-Feb-22,6555402,"-6,528.00",LIMITED COMPANY,GAZPROM MARKETING AND TRADING LTD,300000250807105
Portsmouth City Council,PCC,Children's and Education Services,Primary Schools,Children's Services and Education,Premises-Related Expenditure,Energy costs,15-Feb-22,6555402,"4,005.09",LIMITED COMPANY,GAZPROM MARKETING AND TRADING LTD,300000250807105
Portsmouth City Council,PCC,Adult Social Care,Physical Support Older People (85+),Adult Care,Third Party Payments,Other establishments,02-Feb-22,6552608,140,PRIVATE PROVIDER,Classified as 'personal data' (under the Data Protection Act 2018),300000020467205
Portsmouth City Council,PCC,Children's and Education Services,Asylum seekers,Children's Services and Education,Third Party Payments,Other establishments,10-Feb-22,6554689,-10,SUPPLIER,PATHWAYS TO INDEPENDENCE HOUSING (UK) LIMITED,300000020480095
Portsmouth City Council,PCC,Children's and Education Services,Asylum seekers,Children's Services and Education,Third Party Payments,Other establishments,10-Feb-22,6554689,-10,SUPPLIER,PATHWAYS TO INDEPENDENCE HOUSING (UK) LIMITED,300000020480095
Portsmouth City Council,PCC,Children's and Education Services,Asylum seekers,Children's Services and Education,Third Party Payments,Other establishments,10-Feb-22,6554689,-10,SUPPLIER,PATHWAYS TO INDEPENDENCE HOUSING (UK) LIMITED,300000020480095
Portsmouth City Council,PCC,Children's and Education Services,Asylum seekers,Children's Services and Education,Third Party Payments,Other establishments,10-Feb-22,6554689,-8.57,SUPPLIER,PATHWAYS TO INDEPENDENCE HOUSING (UK) LIMITED,300000020480095
Portsmouth City Council,PCC,Children's and Education Services,Asylum seekers,Children's Services and Education,Third Party Payments,Other establishments,10-Feb-22,6554689,-4.29,SUPPLIER,PATHWAYS TO INDEPENDENCE HOUSING (UK) LIMITED,300000020480095
Portsmouth City Council,PCC,Children's and Education Services,Asylum seekers,Children's Services and Education,Third Party Payments,Other establishments,10-Feb-22,6554689,-1.43,SUPPLIER,PATHWAYS TO INDEPENDENCE HOUSING (UK) LIMITED,300000020480095
Portsmouth City Council,PCC,Children's and Education Services,Asylum seekers,Children's Services and Education,Third Party Payments,Other establishments,10-Feb-22,6554689,-0.18,SUPPLIER,PATHWAYS TO INDEPENDENCE HOUSING (UK) LIMITED,300000020480095
Portsmouth City Council,PCC,Children's and Education Services,Asylum seekers,Children's Services and Education,Third Party Payments,Other establishments,10-Feb-22,6554689,59.72,SUPPLIER,PATHWAYS TO INDEPENDENCE HOUSING (UK) LIMITED,300000020480095
Portsmouth City Council,PCC,Children's and Education Services,Asylum seekers,Children's Services and Education,Third Party Payments,Other establishments,10-Feb-22,6554689,60,SUPPLIER,PATHWAYS TO INDEPENDENCE HOUSING (UK) LIMITED,300000020480095
Portsmouth City Council,PCC,Children's and Education Services,Asylum seekers,Children's Services and Education,Third Party Payments,Other establishments,10-Feb-22,6554689,90,SUPPLIER,PATHWAYS TO INDEPENDENCE HOUSING (UK) LIMITED,300000020480095
Portsmouth City Council,PCC,Children's and Education Services,Asylum seekers,Children's Services and Education,Third Party Payments,Other establishments,10-Feb-22,6554689,105,SUPPLIER,PATHWAYS TO INDEPENDENCE HOUSING (UK) LIMITED,300000020480095
Portsmouth City Council,PCC,Children's and Education Services,Asylum seekers,Children's Services and Education,Third Party Payments,Other establishments,10-Feb-22,6554689,105,SUPPLIER,PATHWAYS TO INDEPENDENCE HOUSING (UK) LIMITED,300000020480095
Portsmouth City Council,PCC,Children's and Education Services,Asylum seekers,Children's Services and Education,Third Party Payments,Other establishments,10-Feb-22,6554689,105,SUPPLIER,PATHWAYS TO INDEPENDENCE HOUSING (UK) LIMITED,300000020480095
Portsmouth City Council,PCC,Children's and Education Services,Asylum seekers,Children's Services and Education,Third Party Payments,Other establishments,10-Feb-22,6554689,179.14,SUPPLIER,PATHWAYS TO INDEPENDENCE HOUSING (UK) LIMITED,300000020480095
Portsmouth City Council,PCC,Children's and Education Services,Asylum seekers,Children's Services and Education,Third Party Payments,Other establishments,10-Feb-22,6554689,358.29,SUPPLIER,PATHWAYS TO INDEPENDENCE HOUSING (UK) LIMITED,300000020480095
Portsmouth City Council,PCC,Children's and Education Services,Asylum seekers,Children's Services and Education,Third Party Payments,Other establishments,10-Feb-22,6554689,418,SUPPLIER,PATHWAYS TO INDEPENDENCE HOUSING (UK) LIMITED,300000020480095
Portsmouth City Council,PCC,Children's and Education Services,Asylum seekers,Children's Services and Education,Third Party Payments,Other establishments,10-Feb-22,6554689,418,SUPPLIER,PATHWAYS TO INDEPENDENCE HOUSING (UK) LIMITED,300000020480095
Portsmouth City Council,PCC,Children's and Education Services,Asylum seekers,Children's Services and Education,Third Party Payments,Other establishments,10-Feb-22,6554689,418,SUPPLIER,PATHWAYS TO INDEPENDENCE HOUSING (UK) LIMITED,300000020480095
Portsmouth City Council,PCC,Children's and Education Services,Asylum seekers,Children's Services and Education,Third Party Payments,Other establishments,10-Feb-22,6554689,-10,SUPPLIER,PATHWAYS TO INDEPENDENCE HOUSING (UK) LIMITED,300000020480095
Portsmouth City Council,PCC,Children's and Education Services,Asylum seekers,Children's Services and Education,Third Party Payments,Other establishments,10-Feb-22,6554689,-10,SUPPLIER,PATHWAYS TO INDEPENDENCE HOUSING (UK) LIMITED,300000020480095
Portsmouth City Council,PCC,Children's and Education Services,Asylum seekers,Children's Services and Education,Third Party Payments,Other establishments,10-Feb-22,6554689,-10,SUPPLIER,PATHWAYS TO INDEPENDENCE HOUSING (UK) LIMITED,300000020480095
Portsmouth City Council,PCC,Children's and Education Services,Asylum seekers,Children's Services and Education,Third Party Payments,Other establishments,10-Feb-22,6554689,-8.57,SUPPLIER,PATHWAYS TO INDEPENDENCE HOUSING (UK) LIMITED,300000020480095
Portsmouth City Council,PCC,Children's and Education Services,Asylum seekers,Children's Services and Education,Third Party Payments,Other establishments,10-Feb-22,6554689,-5.71,SUPPLIER,PATHWAYS TO INDEPENDENCE HOUSING (UK) LIMITED,300000020480095
Portsmouth City Council,PCC,Children's and Education Services,Asylum seekers,Children's Services and Education,Third Party Payments,Other establishments,10-Feb-22,6554689,-0.19,SUPPLIER,PATHWAYS TO INDEPENDENCE HOUSING (UK) LIMITED,300000020480095
Portsmouth City Council,PCC,Children's and Education Services,Asylum seekers,Children's Services and Education,Third Party Payments,Other establishments,10-Feb-22,6554689,60,SUPPLIER,PATHWAYS TO INDEPENDENCE HOUSING (UK) LIMITED,300000020480095
Portsmouth City Council,PCC,Children's and Education Services,Asylum seekers,Children's Services and Education,Third Party Payments,Other establishments,10-Feb-22,6554689,90,SUPPLIER,PATHWAYS TO INDEPENDENCE HOUSING (UK) LIMITED,300000020480095
Portsmouth City Council,PCC,Children's and Education Services,Asylum seekers,Children's Services and Education,Third Party Payments,Other establishments,10-Feb-22,6554689,105,SUPPLIER,PATHWAYS TO INDEPENDENCE HOUSING (UK) LIMITED,300000020480095
Portsmouth City Council,PCC,Children's and Education Services,Asylum seekers,Children's Services and Education,Third Party Payments,Other establishments,10-Feb-22,6554689,105,SUPPLIER,PATHWAYS TO INDEPENDENCE HOUSING (UK) LIMITED,300000020480095
Portsmouth City Council,PCC,Children's and Education Services,Asylum seekers,Children's Services and Education,Third Party Payments,Other establishments,10-Feb-22,6554689,105,SUPPLIER,PATHWAYS TO INDEPENDENCE HOUSING (UK) LIMITED,300000020480095
Portsmouth City Council,PCC,Children's and Education Services,Asylum seekers,Children's Services and Education,Third Party Payments,Other establishments,10-Feb-22,6554689,238.86,SUPPLIER,PATHWAYS TO INDEPENDENCE HOUSING (UK) LIMITED,300000020480095
Portsmouth City Council,PCC,Children's and Education Services,Asylum seekers,Children's Services and Education,Third Party Payments,Other establishments,10-Feb-22,6554689,358.29,SUPPLIER,PATHWAYS TO INDEPENDENCE HOUSING (UK) LIMITED,300000020480095
Portsmouth City Council,PCC,Children's and Education Services,Asylum seekers,Children's Services and Education,Third Party Payments,Other establishments,10-Feb-22,6554689,418,SUPPLIER,PATHWAYS TO INDEPENDENCE HOUSING (UK) LIMITED,300000020480095
Portsmouth City Council,PCC,Children's and Education Services,Asylum seekers,Children's Services and Education,Third Party Payments,Other establishments,10-Feb-22,6554689,418,SUPPLIER,PATHWAYS TO INDEPENDENCE HOUSING (UK) LIMITED,300000020480095
Portsmouth City Council,PCC,Children's and Education Services,Asylum seekers,Children's Services and Education,Third Party Payments,Other establishments,10-Feb-22,6554689,418,SUPPLIER,PATHWAYS TO INDEPENDENCE HOUSING (UK) LIMITED,300000020480095
Portsmouth City Council,PCC,Children's and Education Services,Safeguarding Children and Young Peoples Services,Children's Services and Education,Third Party Payments,Other establishments,10-Feb-22,6554689,-0.01,SUPPLIER,PATHWAYS TO INDEPENDENCE HOUSING (UK) LIMITED,300000020480095
Portsmouth City Council,PCC,Children's and Education Services,Safeguarding Children and Young Peoples Services,Children's Services and Education,Third Party Payments,Other establishments,10-Feb-22,6554689,60,SUPPLIER,PATHWAYS TO INDEPENDENCE HOUSING (UK) LIMITED,300000020480095
Portsmouth City Council,PCC,Children's and Education Services,Safeguarding Children and Young Peoples Services,Children's Services and Education,Third Party Payments,Other establishments,10-Feb-22,6554689,90,SUPPLIER,PATHWAYS TO INDEPENDENCE HOUSING (UK) LIMITED,300000020480095
Portsmouth City Council,PCC,Children's and Education Services,Safeguarding Children and Young Peoples Services,Children's Services and Education,Third Party Payments,Other establishments,10-Feb-22,6554689,105,SUPPLIER,PATHWAYS TO INDEPENDENCE HOUSING (UK) LIMITED,300000020480095
Portsmouth City Council,PCC,Children's and Education Services,Safeguarding Children and Young Peoples Services,Children's Services and Education,Third Party Payments,Other establishments,10-Feb-22,6554689,105,SUPPLIER,PATHWAYS TO INDEPENDENCE HOUSING (UK) LIMITED,300000020480095
Portsmouth City Council,PCC,Children's and Education Services,Safeguarding Children and Young Peoples Services,Children's Services and Education,Third Party Payments,Other establishments,10-Feb-22,6554689,105,SUPPLIER,PATHWAYS TO INDEPENDENCE HOUSING (UK) LIMITED,300000020480095
Portsmouth City Council,PCC,Children's and Education Services,Safeguarding Children and Young Peoples Services,Children's Services and Education,Third Party Payments,Other establishments,10-Feb-22,6554689,119.1,SUPPLIER,PATHWAYS TO INDEPENDENCE HOUSING (UK) LIMITED,300000020480095
Portsmouth City Council,PCC,Children's and Education Services,Safeguarding Children and Young Peoples Services,Children's Services and Education,Third Party Payments,Other establishments,10-Feb-22,6554689,178.65,SUPPLIER,PATHWAYS TO INDEPENDENCE HOUSING (UK) LIMITED,300000020480095
Portsmouth City Council,PCC,Children's and Education Services,Safeguarding Children and Young Peoples Services,Children's Services and Education,Third Party Payments,Other establishments,10-Feb-22,6554689,208.42,SUPPLIER,PATHWAYS TO INDEPENDENCE HOUSING (UK) LIMITED,300000020480095
Portsmouth City Council,PCC,Children's and Education Services,Safeguarding Children and Young Peoples Services,Children's Services and Education,Third Party Payments,Other establishments,10-Feb-22,6554689,208.42,SUPPLIER,PATHWAYS TO INDEPENDENCE HOUSING (UK) LIMITED,300000020480095
Portsmouth City Council,PCC,Children's and Education Services,Safeguarding Children and Young Peoples Services,Children's Services and Education,Third Party Payments,Other establishments,10-Feb-22,6554689,208.42,SUPPLIER,PATHWAYS TO INDEPENDENCE HOUSING (UK) LIMITED,300000020480095
Portsmouth City Council,PCC,Children's and Education Services,Safeguarding Children and Young Peoples Services,Children's Services and Education,Third Party Payments,Other establishments,08-Feb-22,6553885,-14.57,SUPPLIER,HORIZON CARE AND EDUCATION GROUP LTD,300000020480667
Portsmouth City Council,PCC,Children's and Education Services,Safeguarding Children and Young Peoples Services,Children's Services and Education,Third Party Payments,Other establishments,08-Feb-22,6553885,313.28,SUPPLIER,HORIZON CARE AND EDUCATION GROUP LTD,300000020480667
Portsmouth City Council,PCC,Children's and Education Services,Safeguarding Children and Young Peoples Services,Children's Services and Education,Third Party Payments,Other establishments,08-Feb-22,6553885,469.92,SUPPLIER,HORIZON CARE AND EDUCATION GROUP LTD,300000020480667
Portsmouth City Council,PCC,Children's and Education Services,Safeguarding Children and Young Peoples Services,Children's Services and Education,Third Party Payments,Other establishments,08-Feb-22,6553885,548.24,SUPPLIER,HORIZON CARE AND EDUCATION GROUP LTD,300000020480667
Portsmouth City Council,PCC,Children's and Education Services,Safeguarding Children and Young Peoples Services,Children's Services and Education,Third Party Payments,Other establishments,08-Feb-22,6553885,548.24,SUPPLIER,HORIZON CARE AND EDUCATION GROUP LTD,300000020480667
Portsmouth City Council,PCC,Children's and Education Services,Safeguarding Children and Young Peoples Services,Children's Services and Education,Third Party Payments,Other establishments,08-Feb-22,6553885,548.24,SUPPLIER,HORIZON CARE AND EDUCATION GROUP LTD,300000020480667
Portsmouth City Council,PCC,Children's and Education Services,Safeguarding Children and Young Peoples Services,Children's Services and Education,Third Party Payments,Other establishments,08-Feb-22,6553885,-189.71,SUPPLIER,HORIZON CARE AND EDUCATION GROUP LTD,300000020480667
Portsmouth City Council,PCC,Children's and Education Services,Safeguarding Children and Young Peoples Services,Children's Services and Education,Third Party Payments,Other establishments,08-Feb-22,6553885,-0.02,SUPPLIER,HORIZON CARE AND EDUCATION GROUP LTD,300000020480667
Portsmouth City Council,PCC,Children's and Education Services,Safeguarding Children and Young Peoples Services,Children's Services and Education,Third Party Payments,Other establishments,08-Feb-22,6553885,0.02,SUPPLIER,HORIZON CARE AND EDUCATION GROUP LTD,300000020480667
Portsmouth City Council,PCC,Children's and Education Services,Safeguarding Children and Young Peoples Services,Children's Services and Education,Third Party Payments,Other establishments,08-Feb-22,6553885,189.71,SUPPLIER,HORIZON CARE AND EDUCATION GROUP LTD,300000020480667
Portsmouth City Council,PCC,Children's and Education Services,Safeguarding Children and Young Peoples Services,Children's Services and Education,Third Party Payments,Other establishments,08-Feb-22,6553885,189.71,SUPPLIER,HORIZON CARE AND EDUCATION GROUP LTD,300000020480667
Portsmouth City Council,PCC,Children's and Education Services,Safeguarding Children and Young Peoples Services,Children's Services and Education,Third Party Payments,Other establishments,08-Feb-22,6553885,189.73,SUPPLIER,HORIZON CARE AND EDUCATION GROUP LTD,300000020480667
Portsmouth City Council,PCC,Children's and Education Services,Children Looked After,Children's Services and Education,Third Party Payments,Other establishments,08-Feb-22,6553885,-4.6,SUPPLIER,HORIZON CARE AND EDUCATION GROUP LTD,300000020480667
Portsmouth City Council,PCC,Children's and Education Services,Children Looked After,Children's Services and Education,Third Party Payments,Other establishments,08-Feb-22,6553885,321.15,SUPPLIER,HORIZON CARE AND EDUCATION GROUP LTD,300000020480667
Portsmouth City Council,PCC,Children's and Education Services,Children Looked After,Children's Services and Education,Third Party Payments,Other establishments,08-Feb-22,6553885,481.73,SUPPLIER,HORIZON CARE AND EDUCATION GROUP LTD,300000020480667
Portsmouth City Council,PCC,Children's and Education Services,Children Looked After,Children's Services and Education,Third Party Payments,Other establishments,08-Feb-22,6553885,562.02,SUPPLIER,HORIZON CARE AND EDUCATION GROUP LTD,300000020480667
Portsmouth City Council,PCC,Children's and Education Services,Children Looked After,Children's Services and Education,Third Party Payments,Other establishments,08-Feb-22,6553885,562.02,SUPPLIER,HORIZON CARE AND EDUCATION GROUP LTD,300000020480667
Portsmouth City Council,PCC,Children's and Education Services,Children Looked After,Children's Services and Education,Third Party Payments,Other establishments,08-Feb-22,6553885,562.02,SUPPLIER,HORIZON CARE AND EDUCATION GROUP LTD,300000020480667
Portsmouth City Council,PCC,Children's and Education Services,Children Looked After,Children's Services and Education,Third Party Payments,Other establishments,08-Feb-22,6553885,-14.57,SUPPLIER,HORIZON CARE AND EDUCATION GROUP LTD,300000020480667
Portsmouth City Council,PCC,Children's and Education Services,Children Looked After,Children's Services and Education,Third Party Payments,Other establishments,08-Feb-22,6553885,322.44,SUPPLIER,HORIZON CARE AND EDUCATION GROUP LTD,300000020480667
Portsmouth City Council,PCC,Children's and Education Services,Children Looked After,Children's Services and Education,Third Party Payments,Other establishments,08-Feb-22,6553885,483.66,SUPPLIER,HORIZON CARE AND EDUCATION GROUP LTD,300000020480667
Portsmouth City Council,PCC,Children's and Education Services,Children Looked After,Children's Services and Education,Third Party Payments,Other establishments,08-Feb-22,6553885,564.27,SUPPLIER,HORIZON CARE AND EDUCATION GROUP LTD,300000020480667
Portsmouth City Council,PCC,Children's and Education Services,Children Looked After,Children's Services and Education,Third Party Payments,Other establishments,08-Feb-22,6553885,564.27,SUPPLIER,HORIZON CARE AND EDUCATION GROUP LTD,300000020480667
Portsmouth City Council,PCC,Children's and Education Services,Children Looked After,Children's Services and Education,Third Party Payments,Other establishments,08-Feb-22,6553885,564.27,SUPPLIER,HORIZON CARE AND EDUCATION GROUP LTD,300000020480667
Portsmouth City Council,PCC,Children's and Education Services,Children Looked After,Children's Services and Education,Third Party Payments,Other establishments,08-Feb-22,6553885,0.05,SUPPLIER,HORIZON CARE AND EDUCATION GROUP LTD,300000020480667
Portsmouth City Council,PCC,Children's and Education Services,Children Looked After,Children's Services and Education,Third Party Payments,Other establishments,08-Feb-22,6553885,397.71,SUPPLIER,HORIZON CARE AND EDUCATION GROUP LTD,300000020480667
Portsmouth City Council,PCC,Children's and Education Services,Children Looked After,Children's Services and Education,Third Party Payments,Other establishments,08-Feb-22,6553885,596.57,SUPPLIER,HORIZON CARE AND EDUCATION GROUP LTD,300000020480667
Portsmouth City Council,PCC,Children's and Education Services,Children Looked After,Children's Services and Education,Third Party Payments,Other establishments,08-Feb-22,6553885,696,SUPPLIER,HORIZON CARE AND EDUCATION GROUP LTD,300000020480667
Portsmouth City Council,PCC,Children's and Education Services,Children Looked After,Children's Services and Education,Third Party Payments,Other establishments,08-Feb-22,6553885,696,SUPPLIER,HORIZON CARE AND EDUCATION GROUP LTD,300000020480667
Portsmouth City Council,PCC,Children's and Education Services,Children Looked After,Children's Services and Education,Third Party Payments,Other establishments,08-Feb-22,6553885,696,SUPPLIER,HORIZON CARE AND EDUCATION GROUP LTD,300000020480667
Portsmouth City Council,PCC,Children's and Education Services,Safeguarding Children and Young Peoples Services,Children's Services and Education,Third Party Payments,Other establishments,08-Feb-22,6553885,-1.81,SUPPLIER,HORIZON CARE AND EDUCATION GROUP LTD,300000020480667
Portsmouth City Council,PCC,Children's and Education Services,Safeguarding Children and Young Peoples Services,Children's Services and Education,Third Party Payments,Other establishments,08-Feb-22,6553885,320.79,SUPPLIER,HORIZON CARE AND EDUCATION GROUP LTD,300000020480667
Portsmouth City Council,PCC,Children's and Education Services,Safeguarding Children and Young Peoples Services,Children's Services and Education,Third Party Payments,Other establishments,08-Feb-22,6553885,481.19,SUPPLIER,HORIZON CARE AND EDUCATION GROUP LTD,300000020480667
Portsmouth City Council,PCC,Children's and Education Services,Safeguarding Children and Young Peoples Services,Children's Services and Education,Third Party Payments,Other establishments,08-Feb-22,6553885,561.39,SUPPLIER,HORIZON CARE AND EDUCATION GROUP LTD,300000020480667
Portsmouth City Council,PCC,Children's and Education Services,Safeguarding Children and Young Peoples Services,Children's Services and Education,Third Party Payments,Other establishments,08-Feb-22,6553885,561.39,SUPPLIER,HORIZON CARE AND EDUCATION GROUP LTD,300000020480667
Portsmouth City Council,PCC,Children's and Education Services,Safeguarding Children and Young Peoples Services,Children's Services and Education,Third Party Payments,Other establishments,08-Feb-22,6553885,561.39,SUPPLIER,HORIZON CARE AND EDUCATION GROUP LTD,300000020480667
Portsmouth City Council,PCC,Children's and Education Services,Children Looked After,Children's Services and Education,Third Party Payments,Other establishments,08-Feb-22,6553885,-1.81,SUPPLIER,HORIZON CARE AND EDUCATION GROUP LTD,300000020480667
Portsmouth City Council,PCC,Children's and Education Services,Children Looked After,Children's Services and Education,Third Party Payments,Other establishments,08-Feb-22,6553885,320.79,SUPPLIER,HORIZON CARE AND EDUCATION GROUP LTD,300000020480667
Portsmouth City Council,PCC,Children's and Education Services,Children Looked After,Children's Services and Education,Third Party Payments,Other establishments,08-Feb-22,6553885,481.19,SUPPLIER,HORIZON CARE AND EDUCATION GROUP LTD,300000020480667
Portsmouth City Council,PCC,Children's and Education Services,Children Looked After,Children's Services and Education,Third Party Payments,Other establishments,08-Feb-22,6553885,561.39,SUPPLIER,HORIZON CARE AND EDUCATION GROUP LTD,300000020480667
Portsmouth City Council,PCC,Children's and Education Services,Children Looked After,Children's Services and Education,Third Party Payments,Other establishments,08-Feb-22,6553885,561.39,SUPPLIER,HORIZON CARE AND EDUCATION GROUP LTD,300000020480667
Portsmouth City Council,PCC,Children's and Education Services,Children Looked After,Children's Services and Education,Third Party Payments,Other establishments,08-Feb-22,6553885,561.39,SUPPLIER,HORIZON CARE AND EDUCATION GROUP LTD,300000020480667
Portsmouth City Council,PCC,Children's and Education Services,Children Looked After,Children's Services and Education,Third Party Payments,Other establishments,08-Feb-22,6553885,-1.35,SUPPLIER,HORIZON CARE AND EDUCATION GROUP LTD,300000020480667
Portsmouth City Council,PCC,Children's and Education Services,Children Looked After,Children's Services and Education,Third Party Payments,Other establishments,08-Feb-22,6553885,321.16,SUPPLIER,HORIZON CARE AND EDUCATION GROUP LTD,300000020480667
Portsmouth City Council,PCC,Children's and Education Services,Children Looked After,Children's Services and Education,Third Party Payments,Other establishments,08-Feb-22,6553885,401.45,SUPPLIER,HORIZON CARE AND EDUCATION GROUP LTD,300000020480667
Portsmouth City Council,PCC,Children's and Education Services,Safeguarding Children and Young Peoples Services,Children's Services and Education,Third Party Payments,Other establishments,08-Feb-22,6553885,0.05,SUPPLIER,HORIZON CARE AND EDUCATION GROUP LTD,300000020480667
Portsmouth City Council,PCC,Children's and Education Services,Safeguarding Children and Young Peoples Services,Children's Services and Education,Third Party Payments,Other establishments,08-Feb-22,6553885,397.71,SUPPLIER,HORIZON CARE AND EDUCATION GROUP LTD,300000020480667
Portsmouth City Council,PCC,Children's and Education Services,Safeguarding Children and Young Peoples Services,Children's Services and Education,Third Party Payments,Other establishments,08-Feb-22,6553885,596.57,SUPPLIER,HORIZON CARE AND EDUCATION GROUP LTD,300000020480667
Portsmouth City Council,PCC,Children's and Education Services,Safeguarding Children and Young Peoples Services,Children's Services and Education,Third Party Payments,Other establishments,08-Feb-22,6553885,696,SUPPLIER,HORIZON CARE AND EDUCATION GROUP LTD,300000020480667
Portsmouth City Council,PCC,Children's and Education Services,Safeguarding Children and Young Peoples Services,Children's Services and Education,Third Party Payments,Other establishments,08-Feb-22,6553885,696,SUPPLIER,HORIZON CARE AND EDUCATION GROUP LTD,300000020480667
Portsmouth City Council,PCC,Children's and Education Services,Safeguarding Children and Young Peoples Services,Children's Services and Education,Third Party Payments,Other establishments,08-Feb-22,6553885,696,SUPPLIER,HORIZON CARE AND EDUCATION GROUP LTD,300000020480667
Portsmouth City Council,PCC,Children's and Education Services,Children Looked After,Children's Services and Education,Third Party Payments,Other establishments,08-Feb-22,6553885,50,SUPPLIER,HORIZON CARE AND EDUCATION GROUP LTD,300000020480667
Portsmouth City Council,PCC,Children's and Education Services,Children Looked After,Children's Services and Education,Third Party Payments,Other establishments,08-Feb-22,6553891,"-3,175.00",SUPPLIER,LIBRE LIVING LIMITED,300000020474688
Portsmouth City Council,PCC,Children's and Education Services,Children Looked After,Children's Services and Education,Third Party Payments,Other establishments,08-Feb-22,6553891,"-3,175.00",SUPPLIER,LIBRE LIVING LIMITED,300000020474688
Portsmouth City Council,PCC,Children's and Education Services,Children Looked After,Children's Services and Education,Third Party Payments,Other establishments,08-Feb-22,6553891,"-3,175.00",SUPPLIER,LIBRE LIVING LIMITED,300000020474688
Portsmouth City Council,PCC,Children's and Education Services,Children Looked After,Children's Services and Education,Third Party Payments,Other establishments,08-Feb-22,6553891,-453.57,SUPPLIER,LIBRE LIVING LIMITED,300000020474688
Portsmouth City Council,PCC,Children's and Education Services,Children Looked After,Children's Services and Education,Third Party Payments,Other establishments,08-Feb-22,6553891,-0.01,SUPPLIER,LIBRE LIVING LIMITED,300000020474688
Portsmouth City Council,PCC,Children's and Education Services,Children Looked After,Children's Services and Education,Third Party Payments,Other establishments,08-Feb-22,6553891,446.43,SUPPLIER,LIBRE LIVING LIMITED,300000020474688
Portsmouth City Council,PCC,Children's and Education Services,Children Looked After,Children's Services and Education,Third Party Payments,Other establishments,08-Feb-22,6553891,"1,339.29",SUPPLIER,LIBRE LIVING LIMITED,300000020474688
Portsmouth City Council,PCC,Children's and Education Services,Children Looked After,Children's Services and Education,Third Party Payments,Other establishments,08-Feb-22,6553891,"1,814.29",SUPPLIER,LIBRE LIVING LIMITED,300000020474688
Portsmouth City Council,PCC,Children's and Education Services,Children Looked After,Children's Services and Education,Third Party Payments,Other establishments,08-Feb-22,6553891,"3,125.00",SUPPLIER,LIBRE LIVING LIMITED,300000020474688
Portsmouth City Council,PCC,Children's and Education Services,Children Looked After,Children's Services and Education,Third Party Payments,Other establishments,08-Feb-22,6553891,"3,125.00",SUPPLIER,LIBRE LIVING LIMITED,300000020474688
Portsmouth City Council,PCC,Children's and Education Services,Children Looked After,Children's Services and Education,Third Party Payments,Other establishments,08-Feb-22,6553891,"-3,175.00",SUPPLIER,LIBRE LIVING LIMITED,300000020474688
Portsmouth City Council,PCC,Children's and Education Services,Children Looked After,Children's Services and Education,Third Party Payments,Other establishments,08-Feb-22,6553891,"-3,175.00",SUPPLIER,LIBRE LIVING LIMITED,300000020474688
Portsmouth City Council,PCC,Children's and Education Services,Children Looked After,Children's Services and Education,Third Party Payments,Other establishments,08-Feb-22,6553891,"-3,175.00",SUPPLIER,LIBRE LIVING LIMITED,300000020474688
Portsmouth City Council,PCC,Children's and Education Services,Children Looked After,Children's Services and Education,Third Party Payments,Other establishments,08-Feb-22,6553891,"-2,721.43",SUPPLIER,LIBRE LIVING LIMITED,300000020474688
Portsmouth City Council,PCC,Children's and Education Services,Children Looked After,Children's Services and Education,Third Party Payments,Other establishments,08-Feb-22,6553891,"-1,360.71",SUPPLIER,LIBRE LIVING LIMITED,300000020474688
Portsmouth City Council,PCC,Children's and Education Services,Children Looked After,Children's Services and Education,Third Party Payments,Other establishments,08-Feb-22,6553891,-0.01,SUPPLIER,LIBRE LIVING LIMITED,300000020474688
Portsmouth City Council,PCC,Children's and Education Services,Children Looked After,Children's Services and Education,Third Party Payments,Other establishments,08-Feb-22,6553891,"1,339.29",SUPPLIER,LIBRE LIVING LIMITED,300000020474688
Portsmouth City Council,PCC,Children's and Education Services,Children Looked After,Children's Services and Education,Third Party Payments,Other establishments,08-Feb-22,6553891,"2,678.57",SUPPLIER,LIBRE LIVING LIMITED,300000020474688
Portsmouth City Council,PCC,Children's and Education Services,Children Looked After,Children's Services and Education,Third Party Payments,Other establishments,08-Feb-22,6553891,"3,125.00",SUPPLIER,LIBRE LIVING LIMITED,300000020474688
Portsmouth City Council,PCC,Children's and Education Services,Children Looked After,Children's Services and Education,Third Party Payments,Other establishments,08-Feb-22,6553891,"3,125.00",SUPPLIER,LIBRE LIVING LIMITED,300000020474688
Portsmouth City Council,PCC,Children's and Education Services,Children Looked After,Children's Services and Education,Third Party Payments,Other establishments,08-Feb-22,6553891,"3,125.00",SUPPLIER,LIBRE LIVING LIMITED,300000020474688
Portsmouth City Council,PCC,Children's and Education Services,Children Looked After,Children's Services and Education,Third Party Payments,Other establishments,08-Feb-22,6553891,"-3,175.00",SUPPLIER,LIBRE LIVING LIMITED,300000020474688
Portsmouth City Council,PCC,Children's and Education Services,Children Looked After,Children's Services and Education,Third Party Payments,Other establishments,08-Feb-22,6553891,"-3,175.00",SUPPLIER,LIBRE LIVING LIMITED,300000020474688
Portsmouth City Council,PCC,Children's and Education Services,Children Looked After,Children's Services and Education,Third Party Payments,Other establishments,08-Feb-22,6553891,"-3,175.00",SUPPLIER,LIBRE LIVING LIMITED,300000020474688
Portsmouth City Council,PCC,Children's and Education Services,Children Looked After,Children's Services and Education,Third Party Payments,Other establishments,08-Feb-22,6553891,"-2,721.43",SUPPLIER,LIBRE LIVING LIMITED,300000020474688
Portsmouth City Council,PCC,Children's and Education Services,Children Looked After,Children's Services and Education,Third Party Payments,Other establishments,08-Feb-22,6553891,"-1,814.29",SUPPLIER,LIBRE LIVING LIMITED,300000020474688
Portsmouth City Council,PCC,Children's and Education Services,Children Looked After,Children's Services and Education,Third Party Payments,Other establishments,08-Feb-22,6553891,0.01,SUPPLIER,LIBRE LIVING LIMITED,300000020474688
Portsmouth City Council,PCC,Children's and Education Services,Children Looked After,Children's Services and Education,Third Party Payments,Other establishments,08-Feb-22,6553891,"1,785.71",SUPPLIER,LIBRE LIVING LIMITED,300000020474688
Portsmouth City Council,PCC,Children's and Education Services,Children Looked After,Children's Services and Education,Third Party Payments,Other establishments,08-Feb-22,6553891,"2,678.57",SUPPLIER,LIBRE LIVING LIMITED,300000020474688
Portsmouth City Council,PCC,Children's and Education Services,Children Looked After,Children's Services and Education,Third Party Payments,Other establishments,08-Feb-22,6553891,"3,125.00",SUPPLIER,LIBRE LIVING LIMITED,300000020474688
Portsmouth City Council,PCC,Children's and Education Services,Children Looked After,Children's Services and Education,Third Party Payments,Other establishments,08-Feb-22,6553891,"3,125.00",SUPPLIER,LIBRE LIVING LIMITED,300000020474688
Portsmouth City Council,PCC,Children's and Education Services,Children Looked After,Children's Services and Education,Third Party Payments,Other establishments,08-Feb-22,6553891,"3,125.00",SUPPLIER,LIBRE LIVING LIMITED,300000020474688
Portsmouth City Council,PCC,Children's and Education Services,Children Looked After,Children's Services and Education,Premises-Related Expenditure,Rents,28-Feb-22,6557938,750,SUPPLIER,Classified as 'personal data' (under the Data Protection Act 2018),300000020481725
Portsmouth City Council,PCC,Children's and Education Services,Children Looked After,Children's Services and Education,Third Party Payments,Other establishments,10-Feb-22,6554721,117.81,SUPPLIER,CORE ASSETS GROUP,300000020461175
Portsmouth City Council,PCC,Children's and Education Services,Children Looked After,Children's Services and Education,Third Party Payments,Other establishments,10-Feb-22,6554721,235.62,SUPPLIER,CORE ASSETS GROUP,300000020461175
Portsmouth City Council,PCC,Children's and Education Services,Children Looked After,Children's Services and Education,Third Party Payments,Other establishments,10-Feb-22,6554721,824.67,SUPPLIER,CORE ASSETS GROUP,300000020461175
Portsmouth City Council,PCC,Children's and Education Services,Children Looked After,Children's Services and Education,Third Party Payments,Other establishments,10-Feb-22,6554721,824.67,SUPPLIER,CORE ASSETS GROUP,300000020461175
Portsmouth City Council,PCC,Children's and Education Services,Children Looked After,Children's Services and Education,Third Party Payments,Other establishments,10-Feb-22,6554721,824.67,SUPPLIER,CORE ASSETS GROUP,300000020461175
Portsmouth City Council,PCC,Children's and Education Services,Children Looked After,Children's Services and Education,Third Party Payments,Other establishments,10-Feb-22,6554721,824.67,SUPPLIER,CORE ASSETS GROUP,300000020461175
Portsmouth City Council,PCC,Children's and Education Services,Children Looked After,Children's Services and Education,Third Party Payments,Other establishments,14-Feb-22,6555216,0.22,SUPPLIER,FOSTERING SOLUTIONS,300000009793967
Portsmouth City Council,PCC,Children's and Education Services,Children Looked After,Children's Services and Education,Third Party Payments,Other establishments,14-Feb-22,6555216,115.79,SUPPLIER,FOSTERING SOLUTIONS,300000009793967
Portsmouth City Council,PCC,Children's and Education Services,Children Looked After,Children's Services and Education,Third Party Payments,Other establishments,14-Feb-22,6555216,231.59,SUPPLIER,FOSTERING SOLUTIONS,300000009793967
Portsmouth City Council,PCC,Children's and Education Services,Children Looked After,Children's Services and Education,Third Party Payments,Other establishments,14-Feb-22,6555216,810.55,SUPPLIER,FOSTERING SOLUTIONS,300000009793967
Portsmouth City Council,PCC,Children's and Education Services,Children Looked After,Children's Services and Education,Third Party Payments,Other establishments,14-Feb-22,6555216,810.55,SUPPLIER,FOSTERING SOLUTIONS,300000009793967
Portsmouth City Council,PCC,Children's and Education Services,Children Looked After,Children's Services and Education,Third Party Payments,Other establishments,14-Feb-22,6555216,810.55,SUPPLIER,FOSTERING SOLUTIONS,300000009793967
Portsmouth City Council,PCC,Children's and Education Services,Children Looked After,Children's Services and Education,Third Party Payments,Other establishments,14-Feb-22,6555216,810.55,SUPPLIER,FOSTERING SOLUTIONS,300000009793967
Portsmouth City Council,PCC,Children's and Education Services,Children Looked After,Children's Services and Education,Third Party Payments,Other establishments,14-Feb-22,6555216,0.06,SUPPLIER,FOSTERING SOLUTIONS,300000009793967
Portsmouth City Council,PCC,Children's and Education Services,Children Looked After,Children's Services and Education,Third Party Payments,Other establishments,14-Feb-22,6555216,107.34,SUPPLIER,FOSTERING SOLUTIONS,300000009793967
Portsmouth City Council,PCC,Children's and Education Services,Children Looked After,Children's Services and Education,Third Party Payments,Other establishments,14-Feb-22,6555216,214.68,SUPPLIER,FOSTERING SOLUTIONS,300000009793967
Portsmouth City Council,PCC,Children's and Education Services,Children Looked After,Children's Services and Education,Third Party Payments,Other establishments,14-Feb-22,6555216,751.37,SUPPLIER,FOSTERING SOLUTIONS,300000009793967
Portsmouth City Council,PCC,Children's and Education Services,Children Looked After,Children's Services and Education,Third Party Payments,Other establishments,14-Feb-22,6555216,751.37,SUPPLIER,FOSTERING SOLUTIONS,300000009793967
Portsmouth City Council,PCC,Children's and Education Services,Children Looked After,Children's Services and Education,Third Party Payments,Other establishments,14-Feb-22,6555216,751.37,SUPPLIER,FOSTERING SOLUTIONS,300000009793967
Portsmouth City Council,PCC,Children's and Education Services,Children Looked After,Children's Services and Education,Third Party Payments,Other establishments,14-Feb-22,6555216,751.37,SUPPLIER,FOSTERING SOLUTIONS,300000009793967
Portsmouth City Council,PCC,Children's and Education Services,Other Children and Family Services,Children's Services and Education,Supplies and Services,Services,15-Feb-22,6555371,-330,SUPPLIER,AA GLOBAL LANGUAGE SERVICES LTD,300000020483226
Portsmouth City Council,PCC,Children's and Education Services,Other Children and Family Services,Children's Services and Education,Supplies and Services,Services,15-Feb-22,6555371,"3,000.00",SUPPLIER,AA GLOBAL LANGUAGE SERVICES LTD,300000020483226
Portsmouth City Council,PCC,Children's and Education Services,Family Support Services,Children's Services and Education,Supplies and Services,Services,15-Feb-22,6555371,48,SUPPLIER,AA GLOBAL LANGUAGE SERVICES LTD,300000020483226
Portsmouth City Council,PCC,Children's and Education Services,Other Children and Family Services,Children's Services and Education,Supplies and Services,Services,15-Feb-22,6555371,-25,SUPPLIER,AA GLOBAL LANGUAGE SERVICES LTD,300000020483226
Portsmouth City Council,PCC,Children's and Education Services,Other Children and Family Services,Children's Services and Education,Supplies and Services,Services,15-Feb-22,6555371,140,SUPPLIER,AA GLOBAL LANGUAGE SERVICES LTD,300000020483226
Portsmouth City Council,PCC,Children's and Education Services,Family Support Services,Children's Services and Education,Supplies and Services,Services,15-Feb-22,6555371,-28.6,SUPPLIER,AA GLOBAL LANGUAGE SERVICES LTD,300000020483226
Portsmouth City Council,PCC,Children's and Education Services,Family Support Services,Children's Services and Education,Supplies and Services,Services,15-Feb-22,6555371,171.6,SUPPLIER,AA GLOBAL LANGUAGE SERVICES LTD,300000020483226
Portsmouth City Council,PCC,Children's and Education Services,Family Support Services,Children's Services and Education,Third Party Payments,Other establishments,15-Feb-22,6555381,"1,170.00",SUPPLIER,HOPE INTO ACTION PORTSMOUTH,300000020472723
Portsmouth City Council,PCC,Children's and Education Services,Family Support Services,Children's Services and Education,Third Party Payments,Other establishments,02-Feb-22,6552690,700,SUPPLIER,HOPE INTO ACTION PORTSMOUTH,300000020472723
Portsmouth City Council,PCC,Adult Social Care,Social Care Activities,Adult Care,Third Party Payments,Other establishments,14-Feb-22,6555203,"4,649.14",SUPPLIER,ADDICTION RECOVERY CENTRES LTD,300000020478689
Portsmouth City Council,PCC,Adult Social Care,Physical Support Older People (85+),Adult Care,Third Party Payments,Other establishments,02-Feb-22,6552612,23.3,SUPPLIER,ADMIRAL CARE LTD,300000020477405
Portsmouth City Council,PCC,Adult Social Care,Physical Support Older People (85+),Adult Care,Third Party Payments,Other establishments,02-Feb-22,6552612,30.56,SUPPLIER,ADMIRAL CARE LTD,300000020477405
Portsmouth City Council,PCC,Adult Social Care,Physical Support Older People (85+),Adult Care,Third Party Payments,Other establishments,02-Feb-22,6552612,32.08,SUPPLIER,ADMIRAL CARE LTD,300000020477405
Portsmouth City Council,PCC,Adult Social Care,Mental Health Support Older People (65 - 74),Adult Care,Third Party Payments,Other establishments,02-Feb-22,6552612,35.52,SUPPLIER,ADMIRAL CARE LTD,300000020477405
Portsmouth City Council,PCC,Adult Social Care,Mental Health Support Older People (65 - 74),Adult Care,Third Party Payments,Other establishments,02-Feb-22,6552612,35.52,SUPPLIER,ADMIRAL CARE LTD,300000020477405
Portsmouth City Council,PCC,Adult Social Care,Mental Health Support Older People (65 - 74),Adult Care,Third Party Payments,Other establishments,02-Feb-22,6552612,37.28,SUPPLIER,ADMIRAL CARE LTD,300000020477405
Portsmouth City Council,PCC,Adult Social Care,Mental Health Support Older People (65 - 74),Adult Care,Third Party Payments,Other establishments,02-Feb-22,6552612,37.28,SUPPLIER,ADMIRAL CARE LTD,300000020477405
Portsmouth City Council,PCC,Adult Social Care,Physical Support Older People (85+),Adult Care,Third Party Payments,Other establishments,02-Feb-22,6552612,44.4,SUPPLIER,ADMIRAL CARE LTD,300000020477405
Portsmouth City Council,PCC,Adult Social Care,Physical Support Adults (18 - 64),Adult Care,Third Party Payments,Other establishments,02-Feb-22,6552612,53.28,SUPPLIER,ADMIRAL CARE LTD,300000020477405
Portsmouth City Council,PCC,Adult Social Care,Physical Support Older People (85+),Adult Care,Third Party Payments,Other establishments,02-Feb-22,6552612,53.28,SUPPLIER,ADMIRAL CARE LTD,300000020477405
Portsmouth City Council,PCC,Adult Social Care,Physical Support Older People (85+),Adult Care,Third Party Payments,Other establishments,02-Feb-22,6552612,53.28,SUPPLIER,ADMIRAL CARE LTD,300000020477405
Portsmouth City Council,PCC,Adult Social Care,Physical Support Adults (18 - 64),Adult Care,Third Party Payments,Other establishments,02-Feb-22,6552612,55.92,SUPPLIER,ADMIRAL CARE LTD,300000020477405
Portsmouth City Council,PCC,Adult Social Care,Mental Health Support Older People (65 - 74),Adult Care,Third Party Payments,Other establishments,02-Feb-22,6552612,62.16,SUPPLIER,ADMIRAL CARE LTD,300000020477405
Portsmouth City Council,PCC,Adult Social Care,Mental Health Support Older People (65 - 74),Adult Care,Third Party Payments,Other establishments,02-Feb-22,6552612,65.24,SUPPLIER,ADMIRAL CARE LTD,300000020477405
Portsmouth City Council,PCC,Adult Social Care,Mental Health Support Older People (65 - 74),Adult Care,Third Party Payments,Other establishments,02-Feb-22,6552612,71.04,SUPPLIER,ADMIRAL CARE LTD,300000020477405
Portsmouth City Council,PCC,Adult Social Care,Mental Health Support Older People (65 - 74),Adult Care,Third Party Payments,Other establishments,02-Feb-22,6552612,71.04,SUPPLIER,ADMIRAL CARE LTD,300000020477405
Portsmouth City Council,PCC,Adult Social Care,Mental Health Support Older People (65 - 74),Adult Care,Third Party Payments,Other establishments,02-Feb-22,6552612,74.56,SUPPLIER,ADMIRAL CARE LTD,300000020477405
Portsmouth City Council,PCC,Adult Social Care,Mental Health Support Older People (65 - 74),Adult Care,Third Party Payments,Other establishments,02-Feb-22,6552612,74.56,SUPPLIER,ADMIRAL CARE LTD,300000020477405
Portsmouth City Council,PCC,Adult Social Care,Social Care Activities,Adult Care,Third Party Payments,Other establishments,02-Feb-22,6552612,93.2,SUPPLIER,ADMIRAL CARE LTD,300000020477405
Portsmouth City Council,PCC,Adult Social Care,Social Care Activities,Adult Care,Third Party Payments,Other establishments,02-Feb-22,6552612,93.2,SUPPLIER,ADMIRAL CARE LTD,300000020477405
Portsmouth City Council,PCC,Adult Social Care,Physical Support Older People (85+),Adult Care,Third Party Payments,Other establishments,02-Feb-22,6552612,111.84,SUPPLIER,ADMIRAL CARE LTD,300000020477405
Portsmouth City Council,PCC,Adult Social Care,Physical Support Older People (85+),Adult Care,Third Party Payments,Other establishments,02-Feb-22,6552612,111.84,SUPPLIER,ADMIRAL CARE LTD,300000020477405
Portsmouth City Council,PCC,Adult Social Care,Social Support - Support for Carer,Adult Care,Third Party Payments,Other establishments,02-Feb-22,6552612,122.24,SUPPLIER,ADMIRAL CARE LTD,300000020477405
Portsmouth City Council,PCC,Adult Social Care,Physical Support Older People (85+),Adult Care,Third Party Payments,Other establishments,02-Feb-22,6552612,124.32,SUPPLIER,ADMIRAL CARE LTD,300000020477405
Portsmouth City Council,PCC,Adult Social Care,Physical Support Older People (85+),Adult Care,Third Party Payments,Other establishments,02-Feb-22,6552612,124.32,SUPPLIER,ADMIRAL CARE LTD,300000020477405
Portsmouth City Council,PCC,Adult Social Care,Physical Support Older People (85+),Adult Care,Third Party Payments,Other establishments,02-Feb-22,6552612,124.32,SUPPLIER,ADMIRAL CARE LTD,300000020477405
Portsmouth City Council,PCC,Adult Social Care,Physical Support Older People (85+),Adult Care,Third Party Payments,Other establishments,02-Feb-22,6552612,130.05,SUPPLIER,ADMIRAL CARE LTD,300000020477405
Portsmouth City Council,PCC,Adult Social Care,Physical Support Older People (85+),Adult Care,Third Party Payments,Other establishments,02-Feb-22,6552612,130.48,SUPPLIER,ADMIRAL CARE LTD,300000020477405
Portsmouth City Council,PCC,Adult Social Care,Physical Support Older People (85+),Adult Care,Third Party Payments,Other establishments,02-Feb-22,6552612,130.48,SUPPLIER,ADMIRAL CARE LTD,300000020477405
Portsmouth City Council,PCC,Adult Social Care,Mental Health Support Older People (65 - 74),Adult Care,Third Party Payments,Other establishments,02-Feb-22,6552612,142.08,SUPPLIER,ADMIRAL CARE LTD,300000020477405
Portsmouth City Council,PCC,Adult Social Care,Social Support - Support for Carer,Adult Care,Third Party Payments,Other establishments,02-Feb-22,6552612,144.36,SUPPLIER,ADMIRAL CARE LTD,300000020477405
Portsmouth City Council,PCC,Adult Social Care,Mental Health Support Older People (65 - 74),Adult Care,Third Party Payments,Other establishments,02-Feb-22,6552612,149.12,SUPPLIER,ADMIRAL CARE LTD,300000020477405
Portsmouth City Council,PCC,Adult Social Care,Physical Support Older People (85+),Adult Care,Third Party Payments,Other establishments,02-Feb-22,6552612,155.4,SUPPLIER,ADMIRAL CARE LTD,300000020477405
Portsmouth City Council,PCC,Adult Social Care,Learning Disability Support Adults (18 - 64),Adult Care,Third Party Payments,Other establishments,11-Feb-22,6554992,"2,826.04",SUPPLIER, ACHIEVE TOGETHER LIMITED,300000020469986
Portsmouth City Council,PCC,Adult Social Care,Learning Disability Support Adults (18 - 64),Adult Care,Third Party Payments,Other establishments,11-Feb-22,6554992,"6,084.68",SUPPLIER, ACHIEVE TOGETHER LIMITED,300000020469986
Portsmouth City Council,PCC,Adult Social Care,Learning Disability Support Adults (18 - 64),Adult Care,Third Party Payments,Other establishments,11-Feb-22,6554992,"6,099.52",SUPPLIER, ACHIEVE TOGETHER LIMITED,300000020469986
Portsmouth City Council,PCC,Adult Social Care,Learning Disability Support Adults (18 - 64),Adult Care,Third Party Payments,Other establishments,11-Feb-22,6554992,"7,079.80",SUPPLIER, ACHIEVE TOGETHER LIMITED,300000020469986
Portsmouth City Council,PCC,Adult Social Care,Learning Disability Support Adults (18 - 64),Adult Care,Third Party Payments,Other establishments,11-Feb-22,6554992,"7,190.96",SUPPLIER, ACHIEVE TOGETHER LIMITED,300000020469986
Portsmouth City Council,PCC,Adult Social Care,Learning Disability Support Adults (18 - 64),Adult Care,Third Party Payments,Other establishments,11-Feb-22,6554992,"7,384.72",SUPPLIER, ACHIEVE TOGETHER LIMITED,300000020469986
Portsmouth City Council,PCC,Housing Services,Housing Strategy,"Housing, Neighbourhood and Building Services",Income,Customer and client receipts,10-Feb-22,6554705,-619.5,LIMITED COMPANY,LIFTECH SYSTEMS (SE) LIMITED,300000020461913
Portsmouth City Council,PCC,Other,Suspense and Capital Schemes,"Housing, Neighbourhood and Building Services",Supplies and Services,Services,10-Feb-22,6554705,743.4,LIMITED COMPANY,LIFTECH SYSTEMS (SE) LIMITED,300000020461913
Portsmouth City Council,PCC,Other,Suspense and Capital Schemes,"Housing, Neighbourhood and Building Services",Supplies and Services,Services,10-Feb-22,6554705,"4,130.00",LIMITED COMPANY,LIFTECH SYSTEMS (SE) LIMITED,300000020461913
Portsmouth City Council,PCC,Housing Services,Private Sector Housing Renewal,"Housing, Neighbourhood and Building Services",Income,Other grants reimbursements and contributions,16-Feb-22,6555741,-388.5,LIMITED COMPANY,LIFTECH SYSTEMS (SE) LIMITED,300000020461913
Portsmouth City Council,PCC,Other,Suspense and Capital Schemes,Capital - Housing General Fund,Capital Charges,REFCUS,16-Feb-22,6555741,466.2,LIMITED COMPANY,LIFTECH SYSTEMS (SE) LIMITED,300000020461913
Portsmouth City Council,PCC,Other,Suspense and Capital Schemes,Capital - Housing General Fund,Capital Charges,REFCUS,16-Feb-22,6555741,"3,885.00",LIMITED COMPANY,LIFTECH SYSTEMS (SE) LIMITED,300000020461913
Portsmouth City Council,PCC,Children's and Education Services,Children Looked After,Children's Services and Education,Third Party Payments,Other establishments,16-Feb-22,6555952,582.57,SUPPLIER,FAIR WAYS COMMUNITY BENEFIT SOCEITY T/A FAIRWAYS CARE (UK) LTD,300000020459125
Portsmouth City Council,PCC,Children's and Education Services,Children Looked After,Children's Services and Education,Third Party Payments,Other establishments,16-Feb-22,6555952,"3,495.43",SUPPLIER,FAIR WAYS COMMUNITY BENEFIT SOCEITY T/A FAIRWAYS CARE (UK) LTD,300000020459125
Portsmouth City Council,PCC,Children's and Education Services,Children Looked After,Children's Services and Education,Third Party Payments,Other establishments,16-Feb-22,6555952,"4,078.00",SUPPLIER,FAIR WAYS COMMUNITY BENEFIT SOCEITY T/A FAIRWAYS CARE (UK) LTD,300000020459125
Portsmouth City Council,PCC,Children's and Education Services,Children Looked After,Children's Services and Education,Third Party Payments,Other establishments,16-Feb-22,6555952,0.13,SUPPLIER,FAIR WAYS COMMUNITY BENEFIT SOCEITY T/A FAIRWAYS CARE (UK) LTD,300000020459125
Portsmouth City Council,PCC,Children's and Education Services,Children Looked After,Children's Services and Education,Third Party Payments,Other establishments,16-Feb-22,6555952,689.56,SUPPLIER,FAIR WAYS COMMUNITY BENEFIT SOCEITY T/A FAIRWAYS CARE (UK) LTD,300000020459125
Portsmouth City Council,PCC,Children's and Education Services,Children Looked After,Children's Services and Education,Third Party Payments,Other establishments,16-Feb-22,6555952,"1,379.11",SUPPLIER,FAIR WAYS COMMUNITY BENEFIT SOCEITY T/A FAIRWAYS CARE (UK) LTD,300000020459125
Portsmouth City Council,PCC,Children's and Education Services,Children Looked After,Children's Services and Education,Third Party Payments,Other establishments,16-Feb-22,6555952,"4,826.89",SUPPLIER,FAIR WAYS COMMUNITY BENEFIT SOCEITY T/A FAIRWAYS CARE (UK) LTD,300000020459125
Portsmouth City Council,PCC,Children's and Education Services,Children Looked After,Children's Services and Education,Third Party Payments,Other establishments,16-Feb-22,6555952,"4,826.89",SUPPLIER,FAIR WAYS COMMUNITY BENEFIT SOCEITY T/A FAIRWAYS CARE (UK) LTD,300000020459125
Portsmouth City Council,PCC,Children's and Education Services,Children Looked After,Children's Services and Education,Third Party Payments,Other establishments,16-Feb-22,6555952,"4,826.89",SUPPLIER,FAIR WAYS COMMUNITY BENEFIT SOCEITY T/A FAIRWAYS CARE (UK) LTD,300000020459125
Portsmouth City Council,PCC,Children's and Education Services,Children Looked After,Children's Services and Education,Third Party Payments,Other establishments,16-Feb-22,6555952,"4,826.89",SUPPLIER,FAIR WAYS COMMUNITY BENEFIT SOCEITY T/A FAIRWAYS CARE (UK) LTD,300000020459125
Portsmouth City Council,PCC,Children's and Education Services,Asylum seekers,Children's Services and Education,Third Party Payments,Other establishments,16-Feb-22,6555952,-0.22,SUPPLIER,FAIR WAYS COMMUNITY BENEFIT SOCEITY T/A FAIRWAYS CARE (UK) LTD,300000020459125
Portsmouth City Council,PCC,Children's and Education Services,Asylum seekers,Children's Services and Education,Third Party Payments,Other establishments,16-Feb-22,6555952,130.97,SUPPLIER,FAIR WAYS COMMUNITY BENEFIT SOCEITY T/A FAIRWAYS CARE (UK) LTD,300000020459125
Portsmouth City Council,PCC,Children's and Education Services,Asylum seekers,Children's Services and Education,Third Party Payments,Other establishments,16-Feb-22,6555952,261.93,SUPPLIER,FAIR WAYS COMMUNITY BENEFIT SOCEITY T/A FAIRWAYS CARE (UK) LTD,300000020459125
Portsmouth City Council,PCC,Children's and Education Services,Asylum seekers,Children's Services and Education,Third Party Payments,Other establishments,16-Feb-22,6555952,916.77,SUPPLIER,FAIR WAYS COMMUNITY BENEFIT SOCEITY T/A FAIRWAYS CARE (UK) LTD,300000020459125
Portsmouth City Council,PCC,Children's and Education Services,Asylum seekers,Children's Services and Education,Third Party Payments,Other establishments,16-Feb-22,6555952,916.77,SUPPLIER,FAIR WAYS COMMUNITY BENEFIT SOCEITY T/A FAIRWAYS CARE (UK) LTD,300000020459125
Portsmouth City Council,PCC,Children's and Education Services,Asylum seekers,Children's Services and Education,Third Party Payments,Other establishments,16-Feb-22,6555952,916.77,SUPPLIER,FAIR WAYS COMMUNITY BENEFIT SOCEITY T/A FAIRWAYS CARE (UK) LTD,300000020459125
Portsmouth City Council,PCC,Children's and Education Services,Asylum seekers,Children's Services and Education,Third Party Payments,Other establishments,16-Feb-22,6555952,916.77,SUPPLIER,FAIR WAYS COMMUNITY BENEFIT SOCEITY T/A FAIRWAYS CARE (UK) LTD,300000020459125
Portsmouth City Council,PCC,Children's and Education Services,Safeguarding Children and Young Peoples Services,Children's Services and Education,Third Party Payments,Other establishments,11-Feb-22,6555007,-10,SUPPLIER,LILIAN DAVIS GROUP LTD,300000020467263
Portsmouth City Council,PCC,Children's and Education Services,Safeguarding Children and Young Peoples Services,Children's Services and Education,Third Party Payments,Other establishments,11-Feb-22,6555007,-10,SUPPLIER,LILIAN DAVIS GROUP LTD,300000020467263
Portsmouth City Council,PCC,Children's and Education Services,Safeguarding Children and Young Peoples Services,Children's Services and Education,Third Party Payments,Other establishments,11-Feb-22,6555007,-10,SUPPLIER,LILIAN DAVIS GROUP LTD,300000020467263
Portsmouth City Council,PCC,Children's and Education Services,Safeguarding Children and Young Peoples Services,Children's Services and Education,Third Party Payments,Other establishments,11-Feb-22,6555007,-10,SUPPLIER,LILIAN DAVIS GROUP LTD,300000020467263
Portsmouth City Council,PCC,Children's and Education Services,Safeguarding Children and Young Peoples Services,Children's Services and Education,Third Party Payments,Other establishments,11-Feb-22,6555007,-2.86,SUPPLIER,LILIAN DAVIS GROUP LTD,300000020467263
Portsmouth City Council,PCC,Children's and Education Services,Safeguarding Children and Young Peoples Services,Children's Services and Education,Third Party Payments,Other establishments,11-Feb-22,6555007,-1.43,SUPPLIER,LILIAN DAVIS GROUP LTD,300000020467263
Portsmouth City Council,PCC,Children's and Education Services,Safeguarding Children and Young Peoples Services,Children's Services and Education,Third Party Payments,Other establishments,11-Feb-22,6555007,0.01,SUPPLIER,LILIAN DAVIS GROUP LTD,300000020467263
Portsmouth City Council,PCC,Children's and Education Services,Safeguarding Children and Young Peoples Services,Children's Services and Education,Third Party Payments,Other establishments,11-Feb-22,6555007,17.86,SUPPLIER,LILIAN DAVIS GROUP LTD,300000020467263
Portsmouth City Council,PCC,Children's and Education Services,Safeguarding Children and Young Peoples Services,Children's Services and Education,Third Party Payments,Other establishments,11-Feb-22,6555007,35.71,SUPPLIER,LILIAN DAVIS GROUP LTD,300000020467263
Portsmouth City Council,PCC,Children's and Education Services,Safeguarding Children and Young Peoples Services,Children's Services and Education,Third Party Payments,Other establishments,11-Feb-22,6555007,55,SUPPLIER,LILIAN DAVIS GROUP LTD,300000020467263
Portsmouth City Council,PCC,Children's and Education Services,Safeguarding Children and Young Peoples Services,Children's Services and Education,Third Party Payments,Other establishments,11-Feb-22,6555007,110,SUPPLIER,LILIAN DAVIS GROUP LTD,300000020467263
Portsmouth City Council,PCC,Children's and Education Services,Safeguarding Children and Young Peoples Services,Children's Services and Education,Third Party Payments,Other establishments,11-Feb-22,6555007,125,SUPPLIER,LILIAN DAVIS GROUP LTD,300000020467263
Portsmouth City Council,PCC,Children's and Education Services,Safeguarding Children and Young Peoples Services,Children's Services and Education,Third Party Payments,Other establishments,11-Feb-22,6555007,125,SUPPLIER,LILIAN DAVIS GROUP LTD,300000020467263
Portsmouth City Council,PCC,Children's and Education Services,Safeguarding Children and Young Peoples Services,Children's Services and Education,Third Party Payments,Other establishments,11-Feb-22,6555007,125,SUPPLIER,LILIAN DAVIS GROUP LTD,300000020467263
Portsmouth City Council,PCC,Children's and Education Services,Safeguarding Children and Young Peoples Services,Children's Services and Education,Third Party Payments,Other establishments,11-Feb-22,6555007,125,SUPPLIER,LILIAN DAVIS GROUP LTD,300000020467263
Portsmouth City Council,PCC,Children's and Education Services,Safeguarding Children and Young Peoples Services,Children's Services and Education,Third Party Payments,Other establishments,11-Feb-22,6555007,385,SUPPLIER,LILIAN DAVIS GROUP LTD,300000020467263
Portsmouth City Council,PCC,Children's and Education Services,Safeguarding Children and Young Peoples Services,Children's Services and Education,Third Party Payments,Other establishments,11-Feb-22,6555007,385,SUPPLIER,LILIAN DAVIS GROUP LTD,300000020467263
Portsmouth City Council,PCC,Children's and Education Services,Safeguarding Children and Young Peoples Services,Children's Services and Education,Third Party Payments,Other establishments,11-Feb-22,6555007,385,SUPPLIER,LILIAN DAVIS GROUP LTD,300000020467263
Portsmouth City Council,PCC,Children's and Education Services,Safeguarding Children and Young Peoples Services,Children's Services and Education,Third Party Payments,Other establishments,11-Feb-22,6555007,385,SUPPLIER,LILIAN DAVIS GROUP LTD,300000020467263
Portsmouth City Council,PCC,Children's and Education Services,Safeguarding Children and Young Peoples Services,Children's Services and Education,Third Party Payments,Other establishments,11-Feb-22,6555007,-10,SUPPLIER,LILIAN DAVIS GROUP LTD,300000020467263
Portsmouth City Council,PCC,Children's and Education Services,Safeguarding Children and Young Peoples Services,Children's Services and Education,Third Party Payments,Other establishments,11-Feb-22,6555007,-10,SUPPLIER,LILIAN DAVIS GROUP LTD,300000020467263
Portsmouth City Council,PCC,Children's and Education Services,Safeguarding Children and Young Peoples Services,Children's Services and Education,Third Party Payments,Other establishments,11-Feb-22,6555007,-10,SUPPLIER,LILIAN DAVIS GROUP LTD,300000020467263
Portsmouth City Council,PCC,Children's and Education Services,Safeguarding Children and Young Peoples Services,Children's Services and Education,Third Party Payments,Other establishments,11-Feb-22,6555007,-10,SUPPLIER,LILIAN DAVIS GROUP LTD,300000020467263
Portsmouth City Council,PCC,Children's and Education Services,Safeguarding Children and Young Peoples Services,Children's Services and Education,Third Party Payments,Other establishments,11-Feb-22,6555007,-2.86,SUPPLIER,LILIAN DAVIS GROUP LTD,300000020467263
Portsmouth City Council,PCC,Children's and Education Services,Safeguarding Children and Young Peoples Services,Children's Services and Education,Third Party Payments,Other establishments,11-Feb-22,6555007,-1.43,SUPPLIER,LILIAN DAVIS GROUP LTD,300000020467263
Portsmouth City Council,PCC,Children's and Education Services,Safeguarding Children and Young Peoples Services,Children's Services and Education,Third Party Payments,Other establishments,11-Feb-22,6555007,0.01,SUPPLIER,LILIAN DAVIS GROUP LTD,300000020467263
Portsmouth City Council,PCC,Children's and Education Services,Safeguarding Children and Young Peoples Services,Children's Services and Education,Third Party Payments,Other establishments,11-Feb-22,6555007,8.27,SUPPLIER,LILIAN DAVIS GROUP LTD,300000020467263
Portsmouth City Council,PCC,Children's and Education Services,Safeguarding Children and Young Peoples Services,Children's Services and Education,Third Party Payments,Other establishments,11-Feb-22,6555007,10.71,SUPPLIER,LILIAN DAVIS GROUP LTD,300000020467263
Portsmouth City Council,PCC,Children's and Education Services,Safeguarding Children and Young Peoples Services,Children's Services and Education,Third Party Payments,Other establishments,11-Feb-22,6555007,16.54,SUPPLIER,LILIAN DAVIS GROUP LTD,300000020467263
Portsmouth City Council,PCC,Children's and Education Services,Safeguarding Children and Young Peoples Services,Children's Services and Education,Third Party Payments,Other establishments,11-Feb-22,6555007,21.43,SUPPLIER,LILIAN DAVIS GROUP LTD,300000020467263
Portsmouth City Council,PCC,Children's and Education Services,Safeguarding Children and Young Peoples Services,Children's Services and Education,Third Party Payments,Other establishments,11-Feb-22,6555007,57.9,SUPPLIER,LILIAN DAVIS GROUP LTD,300000020467263
Portsmouth City Council,PCC,Children's and Education Services,Safeguarding Children and Young Peoples Services,Children's Services and Education,Third Party Payments,Other establishments,11-Feb-22,6555007,57.9,SUPPLIER,LILIAN DAVIS GROUP LTD,300000020467263
Portsmouth City Council,PCC,Children's and Education Services,Safeguarding Children and Young Peoples Services,Children's Services and Education,Third Party Payments,Other establishments,11-Feb-22,6555007,57.9,SUPPLIER,LILIAN DAVIS GROUP LTD,300000020467263
Portsmouth City Council,PCC,Children's and Education Services,Safeguarding Children and Young Peoples Services,Children's Services and Education,Third Party Payments,Other establishments,11-Feb-22,6555007,57.9,SUPPLIER,LILIAN DAVIS GROUP LTD,300000020467263
Portsmouth City Council,PCC,Children's and Education Services,Safeguarding Children and Young Peoples Services,Children's Services and Education,Third Party Payments,Other establishments,11-Feb-22,6555007,62.86,SUPPLIER,LILIAN DAVIS GROUP LTD,300000020467263
Portsmouth City Council,PCC,Children's and Education Services,Safeguarding Children and Young Peoples Services,Children's Services and Education,Third Party Payments,Other establishments,11-Feb-22,6555007,75,SUPPLIER,LILIAN DAVIS GROUP LTD,300000020467263
Portsmouth City Council,PCC,Children's and Education Services,Safeguarding Children and Young Peoples Services,Children's Services and Education,Third Party Payments,Other establishments,11-Feb-22,6555007,75,SUPPLIER,LILIAN DAVIS GROUP LTD,300000020467263
Portsmouth City Council,PCC,Children's and Education Services,Safeguarding Children and Young Peoples Services,Children's Services and Education,Third Party Payments,Other establishments,11-Feb-22,6555007,75,SUPPLIER,LILIAN DAVIS GROUP LTD,300000020467263
Portsmouth City Council,PCC,Children's and Education Services,Safeguarding Children and Young Peoples Services,Children's Services and Education,Third Party Payments,Other establishments,11-Feb-22,6555007,75,SUPPLIER,LILIAN DAVIS GROUP LTD,300000020467263
Portsmouth City Council,PCC,Children's and Education Services,Safeguarding Children and Young Peoples Services,Children's Services and Education,Third Party Payments,Other establishments,11-Feb-22,6555007,125.71,SUPPLIER,LILIAN DAVIS GROUP LTD,300000020467263
Portsmouth City Council,PCC,Children's and Education Services,Safeguarding Children and Young Peoples Services,Children's Services and Education,Third Party Payments,Other establishments,11-Feb-22,6555007,440,SUPPLIER,LILIAN DAVIS GROUP LTD,300000020467263
Portsmouth City Council,PCC,Children's and Education Services,Safeguarding Children and Young Peoples Services,Children's Services and Education,Third Party Payments,Other establishments,11-Feb-22,6555007,440,SUPPLIER,LILIAN DAVIS GROUP LTD,300000020467263
Portsmouth City Council,PCC,Children's and Education Services,Safeguarding Children and Young Peoples Services,Children's Services and Education,Third Party Payments,Other establishments,11-Feb-22,6555007,440,SUPPLIER,LILIAN DAVIS GROUP LTD,300000020467263
Portsmouth City Council,PCC,Children's and Education Services,Safeguarding Children and Young Peoples Services,Children's Services and Education,Third Party Payments,Other establishments,11-Feb-22,6555007,440,SUPPLIER,LILIAN DAVIS GROUP LTD,300000020467263
Portsmouth City Council,PCC,Children's and Education Services,Safeguarding Children and Young Peoples Services,Children's Services and Education,Third Party Payments,Other establishments,11-Feb-22,6555007,-10,SUPPLIER,LILIAN DAVIS GROUP LTD,300000020467263
Portsmouth City Council,PCC,Children's and Education Services,Safeguarding Children and Young Peoples Services,Children's Services and Education,Third Party Payments,Other establishments,11-Feb-22,6555007,-10,SUPPLIER,LILIAN DAVIS GROUP LTD,300000020467263
Portsmouth City Council,PCC,Children's and Education Services,Safeguarding Children and Young Peoples Services,Children's Services and Education,Third Party Payments,Other establishments,11-Feb-22,6555007,-10,SUPPLIER,LILIAN DAVIS GROUP LTD,300000020467263
Portsmouth City Council,PCC,Children's and Education Services,Safeguarding Children and Young Peoples Services,Children's Services and Education,Third Party Payments,Other establishments,11-Feb-22,6555007,-10,SUPPLIER,LILIAN DAVIS GROUP LTD,300000020467263
Portsmouth City Council,PCC,Children's and Education Services,Safeguarding Children and Young Peoples Services,Children's Services and Education,Third Party Payments,Other establishments,11-Feb-22,6555007,-2.86,SUPPLIER,LILIAN DAVIS GROUP LTD,300000020467263
Portsmouth City Council,PCC,Children's and Education Services,Safeguarding Children and Young Peoples Services,Children's Services and Education,Third Party Payments,Other establishments,11-Feb-22,6555007,-1.43,SUPPLIER,LILIAN DAVIS GROUP LTD,300000020467263
Portsmouth City Council,PCC,Children's and Education Services,Safeguarding Children and Young Peoples Services,Children's Services and Education,Third Party Payments,Other establishments,11-Feb-22,6555007,17.86,SUPPLIER,LILIAN DAVIS GROUP LTD,300000020467263
Portsmouth City Council,PCC,Children's and Education Services,Safeguarding Children and Young Peoples Services,Children's Services and Education,Third Party Payments,Other establishments,11-Feb-22,6555007,35.71,SUPPLIER,LILIAN DAVIS GROUP LTD,300000020467263
Portsmouth City Council,PCC,Children's and Education Services,Safeguarding Children and Young Peoples Services,Children's Services and Education,Third Party Payments,Other establishments,11-Feb-22,6555007,62.14,SUPPLIER,LILIAN DAVIS GROUP LTD,300000020467263
Portsmouth City Council,PCC,Children's and Education Services,Safeguarding Children and Young Peoples Services,Children's Services and Education,Third Party Payments,Other establishments,11-Feb-22,6555007,124.29,SUPPLIER,LILIAN DAVIS GROUP LTD,300000020467263
Portsmouth City Council,PCC,Children's and Education Services,Safeguarding Children and Young Peoples Services,Children's Services and Education,Third Party Payments,Other establishments,11-Feb-22,6555007,125,SUPPLIER,LILIAN DAVIS GROUP LTD,300000020467263
Portsmouth City Council,PCC,Children's and Education Services,Safeguarding Children and Young Peoples Services,Children's Services and Education,Third Party Payments,Other establishments,11-Feb-22,6555007,125,SUPPLIER,LILIAN DAVIS GROUP LTD,300000020467263
Portsmouth City Council,PCC,Children's and Education Services,Safeguarding Children and Young Peoples Services,Children's Services and Education,Third Party Payments,Other establishments,11-Feb-22,6555007,125,SUPPLIER,LILIAN DAVIS GROUP LTD,300000020467263
Portsmouth City Council,PCC,Children's and Education Services,Safeguarding Children and Young Peoples Services,Children's Services and Education,Third Party Payments,Other establishments,11-Feb-22,6555007,125,SUPPLIER,LILIAN DAVIS GROUP LTD,300000020467263
Portsmouth City Council,PCC,Children's and Education Services,Safeguarding Children and Young Peoples Services,Children's Services and Education,Third Party Payments,Other establishments,11-Feb-22,6555007,435,SUPPLIER,LILIAN DAVIS GROUP LTD,300000020467263
Portsmouth City Council,PCC,Children's and Education Services,Safeguarding Children and Young Peoples Services,Children's Services and Education,Third Party Payments,Other establishments,11-Feb-22,6555007,435,SUPPLIER,LILIAN DAVIS GROUP LTD,300000020467263
Portsmouth City Council,PCC,Children's and Education Services,Safeguarding Children and Young Peoples Services,Children's Services and Education,Third Party Payments,Other establishments,11-Feb-22,6555007,435,SUPPLIER,LILIAN DAVIS GROUP LTD,300000020467263
Portsmouth City Council,PCC,Children's and Education Services,Safeguarding Children and Young Peoples Services,Children's Services and Education,Third Party Payments,Other establishments,11-Feb-22,6555007,435,SUPPLIER,LILIAN DAVIS GROUP LTD,300000020467263
Portsmouth City Council,PCC,Children's and Education Services,Safeguarding Children and Young Peoples Services,Children's Services and Education,Third Party Payments,Other establishments,11-Feb-22,6555007,-10,SUPPLIER,LILIAN DAVIS GROUP LTD,300000020467263
Portsmouth City Council,PCC,Children's and Education Services,Safeguarding Children and Young Peoples Services,Children's Services and Education,Third Party Payments,Other establishments,11-Feb-22,6555007,-10,SUPPLIER,LILIAN DAVIS GROUP LTD,300000020467263
Portsmouth City Council,PCC,Children's and Education Services,Safeguarding Children and Young Peoples Services,Children's Services and Education,Third Party Payments,Other establishments,11-Feb-22,6555007,-10,SUPPLIER,LILIAN DAVIS GROUP LTD,300000020467263
Portsmouth City Council,PCC,Children's and Education Services,Safeguarding Children and Young Peoples Services,Children's Services and Education,Third Party Payments,Other establishments,11-Feb-22,6555007,-10,SUPPLIER,LILIAN DAVIS GROUP LTD,300000020467263
Portsmouth City Council,PCC,Children's and Education Services,Safeguarding Children and Young Peoples Services,Children's Services and Education,Third Party Payments,Other establishments,11-Feb-22,6555007,-2.86,SUPPLIER,LILIAN DAVIS GROUP LTD,300000020467263
Portsmouth City Council,PCC,Children's and Education Services,Safeguarding Children and Young Peoples Services,Children's Services and Education,Third Party Payments,Other establishments,11-Feb-22,6555007,-1.43,SUPPLIER,LILIAN DAVIS GROUP LTD,300000020467263
Portsmouth City Council,PCC,Children's and Education Services,Safeguarding Children and Young Peoples Services,Children's Services and Education,Third Party Payments,Other establishments,11-Feb-22,6555007,17.86,SUPPLIER,LILIAN DAVIS GROUP LTD,300000020467263
Portsmouth City Council,PCC,Children's and Education Services,Safeguarding Children and Young Peoples Services,Children's Services and Education,Third Party Payments,Other establishments,11-Feb-22,6555007,35.71,SUPPLIER,LILIAN DAVIS GROUP LTD,300000020467263
Portsmouth City Council,PCC,Children's and Education Services,Safeguarding Children and Young Peoples Services,Children's Services and Education,Third Party Payments,Other establishments,11-Feb-22,6555007,62.14,SUPPLIER,LILIAN DAVIS GROUP LTD,300000020467263
Portsmouth City Council,PCC,Children's and Education Services,Safeguarding Children and Young Peoples Services,Children's Services and Education,Third Party Payments,Other establishments,11-Feb-22,6555007,124.29,SUPPLIER,LILIAN DAVIS GROUP LTD,300000020467263
Portsmouth City Council,PCC,Children's and Education Services,Safeguarding Children and Young Peoples Services,Children's Services and Education,Third Party Payments,Other establishments,11-Feb-22,6555007,125,SUPPLIER,LILIAN DAVIS GROUP LTD,300000020467263
Portsmouth City Council,PCC,Children's and Education Services,Safeguarding Children and Young Peoples Services,Children's Services and Education,Third Party Payments,Other establishments,11-Feb-22,6555007,125,SUPPLIER,LILIAN DAVIS GROUP LTD,300000020467263
Portsmouth City Council,PCC,Children's and Education Services,Safeguarding Children and Young Peoples Services,Children's Services and Education,Third Party Payments,Other establishments,11-Feb-22,6555007,125,SUPPLIER,LILIAN DAVIS GROUP LTD,300000020467263
Portsmouth City Council,PCC,Children's and Education Services,Safeguarding Children and Young Peoples Services,Children's Services and Education,Third Party Payments,Other establishments,11-Feb-22,6555007,125,SUPPLIER,LILIAN DAVIS GROUP LTD,300000020467263
Portsmouth City Council,PCC,Children's and Education Services,Safeguarding Children and Young Peoples Services,Children's Services and Education,Third Party Payments,Other establishments,11-Feb-22,6555007,435,SUPPLIER,LILIAN DAVIS GROUP LTD,300000020467263
Portsmouth City Council,PCC,Children's and Education Services,Safeguarding Children and Young Peoples Services,Children's Services and Education,Third Party Payments,Other establishments,11-Feb-22,6555007,435,SUPPLIER,LILIAN DAVIS GROUP LTD,300000020467263
Portsmouth City Council,PCC,Children's and Education Services,Safeguarding Children and Young Peoples Services,Children's Services and Education,Third Party Payments,Other establishments,11-Feb-22,6555007,435,SUPPLIER,LILIAN DAVIS GROUP LTD,300000020467263
Portsmouth City Council,PCC,Children's and Education Services,Safeguarding Children and Young Peoples Services,Children's Services and Education,Third Party Payments,Other establishments,11-Feb-22,6555007,435,SUPPLIER,LILIAN DAVIS GROUP LTD,300000020467263
Portsmouth City Council,PCC,Children's and Education Services,Safeguarding Children and Young Peoples Services,Children's Services and Education,Third Party Payments,Other establishments,11-Feb-22,6555007,-10,SUPPLIER,LILIAN DAVIS GROUP LTD,300000020467263
Portsmouth City Council,PCC,Children's and Education Services,Safeguarding Children and Young Peoples Services,Children's Services and Education,Third Party Payments,Other establishments,11-Feb-22,6555007,-10,SUPPLIER,LILIAN DAVIS GROUP LTD,300000020467263
Portsmouth City Council,PCC,Children's and Education Services,Safeguarding Children and Young Peoples Services,Children's Services and Education,Third Party Payments,Other establishments,11-Feb-22,6555007,-10,SUPPLIER,LILIAN DAVIS GROUP LTD,300000020467263
Portsmouth City Council,PCC,Children's and Education Services,Safeguarding Children and Young Peoples Services,Children's Services and Education,Third Party Payments,Other establishments,11-Feb-22,6555007,-10,SUPPLIER,LILIAN DAVIS GROUP LTD,300000020467263
Portsmouth City Council,PCC,Children's and Education Services,Safeguarding Children and Young Peoples Services,Children's Services and Education,Third Party Payments,Other establishments,11-Feb-22,6555007,-2.86,SUPPLIER,LILIAN DAVIS GROUP LTD,300000020467263
Portsmouth City Council,PCC,Children's and Education Services,Safeguarding Children and Young Peoples Services,Children's Services and Education,Third Party Payments,Other establishments,11-Feb-22,6555007,-1.43,SUPPLIER,LILIAN DAVIS GROUP LTD,300000020467263
Portsmouth City Council,PCC,Children's and Education Services,Safeguarding Children and Young Peoples Services,Children's Services and Education,Third Party Payments,Other establishments,11-Feb-22,6555007,0.01,SUPPLIER,LILIAN DAVIS GROUP LTD,300000020467263
Portsmouth City Council,PCC,Children's and Education Services,Safeguarding Children and Young Peoples Services,Children's Services and Education,Third Party Payments,Other establishments,11-Feb-22,6555007,10.71,SUPPLIER,LILIAN DAVIS GROUP LTD,300000020467263
Portsmouth City Council,PCC,Children's and Education Services,Safeguarding Children and Young Peoples Services,Children's Services and Education,Third Party Payments,Other establishments,11-Feb-22,6555007,21.43,SUPPLIER,LILIAN DAVIS GROUP LTD,300000020467263
Portsmouth City Council,PCC,Children's and Education Services,Safeguarding Children and Young Peoples Services,Children's Services and Education,Third Party Payments,Other establishments,11-Feb-22,6555007,62.14,SUPPLIER,LILIAN DAVIS GROUP LTD,300000020467263
Portsmouth City Council,PCC,Children's and Education Services,Safeguarding Children and Young Peoples Services,Children's Services and Education,Third Party Payments,Other establishments,11-Feb-22,6555007,75,SUPPLIER,LILIAN DAVIS GROUP LTD,300000020467263
Portsmouth City Council,PCC,Children's and Education Services,Safeguarding Children and Young Peoples Services,Children's Services and Education,Third Party Payments,Other establishments,11-Feb-22,6555007,75,SUPPLIER,LILIAN DAVIS GROUP LTD,300000020467263
Portsmouth City Council,PCC,Children's and Education Services,Safeguarding Children and Young Peoples Services,Children's Services and Education,Third Party Payments,Other establishments,11-Feb-22,6555007,75,SUPPLIER,LILIAN DAVIS GROUP LTD,300000020467263
Portsmouth City Council,PCC,Children's and Education Services,Safeguarding Children and Young Peoples Services,Children's Services and Education,Third Party Payments,Other establishments,11-Feb-22,6555007,75,SUPPLIER,LILIAN DAVIS GROUP LTD,300000020467263
Portsmouth City Council,PCC,Children's and Education Services,Safeguarding Children and Young Peoples Services,Children's Services and Education,Third Party Payments,Other establishments,11-Feb-22,6555007,124.29,SUPPLIER,LILIAN DAVIS GROUP LTD,300000020467263
Portsmouth City Council,PCC,Children's and Education Services,Safeguarding Children and Young Peoples Services,Children's Services and Education,Third Party Payments,Other establishments,11-Feb-22,6555007,435,SUPPLIER,LILIAN DAVIS GROUP LTD,300000020467263
Portsmouth City Council,PCC,Children's and Education Services,Safeguarding Children and Young Peoples Services,Children's Services and Education,Third Party Payments,Other establishments,11-Feb-22,6555007,435,SUPPLIER,LILIAN DAVIS GROUP LTD,300000020467263
Portsmouth City Council,PCC,Children's and Education Services,Safeguarding Children and Young Peoples Services,Children's Services and Education,Third Party Payments,Other establishments,11-Feb-22,6555007,435,SUPPLIER,LILIAN DAVIS GROUP LTD,300000020467263
Portsmouth City Council,PCC,Children's and Education Services,Safeguarding Children and Young Peoples Services,Children's Services and Education,Third Party Payments,Other establishments,11-Feb-22,6555007,435,SUPPLIER,LILIAN DAVIS GROUP LTD,300000020467263
Portsmouth City Council,PCC,Children's and Education Services,Safeguarding Children and Young Peoples Services,Children's Services and Education,Third Party Payments,Other establishments,11-Feb-22,6555007,-10,SUPPLIER,LILIAN DAVIS GROUP LTD,300000020467263
Portsmouth City Council,PCC,Children's and Education Services,Safeguarding Children and Young Peoples Services,Children's Services and Education,Third Party Payments,Other establishments,11-Feb-22,6555007,-10,SUPPLIER,LILIAN DAVIS GROUP LTD,300000020467263
Portsmouth City Council,PCC,Children's and Education Services,Safeguarding Children and Young Peoples Services,Children's Services and Education,Third Party Payments,Other establishments,11-Feb-22,6555007,-10,SUPPLIER,LILIAN DAVIS GROUP LTD,300000020467263
Portsmouth City Council,PCC,Children's and Education Services,Safeguarding Children and Young Peoples Services,Children's Services and Education,Third Party Payments,Other establishments,11-Feb-22,6555007,-10,SUPPLIER,LILIAN DAVIS GROUP LTD,300000020467263
Portsmouth City Council,PCC,Children's and Education Services,Safeguarding Children and Young Peoples Services,Children's Services and Education,Third Party Payments,Other establishments,11-Feb-22,6555007,-2.86,SUPPLIER,LILIAN DAVIS GROUP LTD,300000020467263
Portsmouth City Council,PCC,Children's and Education Services,Safeguarding Children and Young Peoples Services,Children's Services and Education,Third Party Payments,Other establishments,11-Feb-22,6555007,-1.43,SUPPLIER,LILIAN DAVIS GROUP LTD,300000020467263
Portsmouth City Council,PCC,Children's and Education Services,Safeguarding Children and Young Peoples Services,Children's Services and Education,Third Party Payments,Other establishments,11-Feb-22,6555007,17.86,SUPPLIER,LILIAN DAVIS GROUP LTD,300000020467263
Portsmouth City Council,PCC,Children's and Education Services,Safeguarding Children and Young Peoples Services,Children's Services and Education,Third Party Payments,Other establishments,11-Feb-22,6555007,35.71,SUPPLIER,LILIAN DAVIS GROUP LTD,300000020467263
Portsmouth City Council,PCC,Children's and Education Services,Safeguarding Children and Young Peoples Services,Children's Services and Education,Third Party Payments,Other establishments,11-Feb-22,6555007,55.43,SUPPLIER,LILIAN DAVIS GROUP LTD,300000020467263
Portsmouth City Council,PCC,Children's and Education Services,Safeguarding Children and Young Peoples Services,Children's Services and Education,Third Party Payments,Other establishments,11-Feb-22,6555007,110.86,SUPPLIER,LILIAN DAVIS GROUP LTD,300000020467263
Portsmouth City Council,PCC,Children's and Education Services,Safeguarding Children and Young Peoples Services,Children's Services and Education,Third Party Payments,Other establishments,11-Feb-22,6555007,125,SUPPLIER,LILIAN DAVIS GROUP LTD,300000020467263
Portsmouth City Council,PCC,Children's and Education Services,Safeguarding Children and Young Peoples Services,Children's Services and Education,Third Party Payments,Other establishments,11-Feb-22,6555007,125,SUPPLIER,LILIAN DAVIS GROUP LTD,300000020467263
Portsmouth City Council,PCC,Children's and Education Services,Safeguarding Children and Young Peoples Services,Children's Services and Education,Third Party Payments,Other establishments,11-Feb-22,6555007,125,SUPPLIER,LILIAN DAVIS GROUP LTD,300000020467263
Portsmouth City Council,PCC,Children's and Education Services,Safeguarding Children and Young Peoples Services,Children's Services and Education,Third Party Payments,Other establishments,11-Feb-22,6555007,125,SUPPLIER,LILIAN DAVIS GROUP LTD,300000020467263
Portsmouth City Council,PCC,Children's and Education Services,Safeguarding Children and Young Peoples Services,Children's Services and Education,Third Party Payments,Other establishments,11-Feb-22,6555007,388,SUPPLIER,LILIAN DAVIS GROUP LTD,300000020467263
Portsmouth City Council,PCC,Children's and Education Services,Safeguarding Children and Young Peoples Services,Children's Services and Education,Third Party Payments,Other establishments,11-Feb-22,6555007,388,SUPPLIER,LILIAN DAVIS GROUP LTD,300000020467263
Portsmouth City Council,PCC,Children's and Education Services,Safeguarding Children and Young Peoples Services,Children's Services and Education,Third Party Payments,Other establishments,11-Feb-22,6555007,388,SUPPLIER,LILIAN DAVIS GROUP LTD,300000020467263
Portsmouth City Council,PCC,Children's and Education Services,Safeguarding Children and Young Peoples Services,Children's Services and Education,Third Party Payments,Other establishments,11-Feb-22,6555007,388,SUPPLIER,LILIAN DAVIS GROUP LTD,300000020467263
Portsmouth City Council,PCC,Children's and Education Services,Safeguarding Children and Young Peoples Services,Children's Services and Education,Third Party Payments,Other establishments,11-Feb-22,6555007,-10,SUPPLIER,LILIAN DAVIS GROUP LTD,300000020467263
Portsmouth City Council,PCC,Children's and Education Services,Safeguarding Children and Young Peoples Services,Children's Services and Education,Third Party Payments,Other establishments,11-Feb-22,6555007,-10,SUPPLIER,LILIAN DAVIS GROUP LTD,300000020467263
Portsmouth City Council,PCC,Children's and Education Services,Safeguarding Children and Young Peoples Services,Children's Services and Education,Third Party Payments,Other establishments,11-Feb-22,6555007,-10,SUPPLIER,LILIAN DAVIS GROUP LTD,300000020467263
Portsmouth City Council,PCC,Children's and Education Services,Safeguarding Children and Young Peoples Services,Children's Services and Education,Third Party Payments,Other establishments,11-Feb-22,6555007,-10,SUPPLIER,LILIAN DAVIS GROUP LTD,300000020467263
Portsmouth City Council,PCC,Children's and Education Services,Safeguarding Children and Young Peoples Services,Children's Services and Education,Third Party Payments,Other establishments,11-Feb-22,6555007,-2.86,SUPPLIER,LILIAN DAVIS GROUP LTD,300000020467263
Portsmouth City Council,PCC,Children's and Education Services,Safeguarding Children and Young Peoples Services,Children's Services and Education,Third Party Payments,Other establishments,11-Feb-22,6555007,-1.43,SUPPLIER,LILIAN DAVIS GROUP LTD,300000020467263
Portsmouth City Council,PCC,Children's and Education Services,Safeguarding Children and Young Peoples Services,Children's Services and Education,Third Party Payments,Other establishments,11-Feb-22,6555007,0.01,SUPPLIER,LILIAN DAVIS GROUP LTD,300000020467263
Portsmouth City Council,PCC,Children's and Education Services,Safeguarding Children and Young Peoples Services,Children's Services and Education,Third Party Payments,Other establishments,11-Feb-22,6555007,17.86,SUPPLIER,LILIAN DAVIS GROUP LTD,300000020467263
Portsmouth City Council,PCC,Children's and Education Services,Safeguarding Children and Young Peoples Services,Children's Services and Education,Third Party Payments,Other establishments,11-Feb-22,6555007,35.71,SUPPLIER,LILIAN DAVIS GROUP LTD,300000020467263
Portsmouth City Council,PCC,Children's and Education Services,Safeguarding Children and Young Peoples Services,Children's Services and Education,Third Party Payments,Other establishments,11-Feb-22,6555007,55.86,SUPPLIER,LILIAN DAVIS GROUP LTD,300000020467263
Portsmouth City Council,PCC,Children's and Education Services,Safeguarding Children and Young Peoples Services,Children's Services and Education,Third Party Payments,Other establishments,11-Feb-22,6555007,111.71,SUPPLIER,LILIAN DAVIS GROUP LTD,300000020467263
Portsmouth City Council,PCC,Children's and Education Services,Safeguarding Children and Young Peoples Services,Children's Services and Education,Third Party Payments,Other establishments,11-Feb-22,6555007,125,SUPPLIER,LILIAN DAVIS GROUP LTD,300000020467263
Portsmouth City Council,PCC,Children's and Education Services,Safeguarding Children and Young Peoples Services,Children's Services and Education,Third Party Payments,Other establishments,11-Feb-22,6555007,125,SUPPLIER,LILIAN DAVIS GROUP LTD,300000020467263
Portsmouth City Council,PCC,Children's and Education Services,Safeguarding Children and Young Peoples Services,Children's Services and Education,Third Party Payments,Other establishments,11-Feb-22,6555007,125,SUPPLIER,LILIAN DAVIS GROUP LTD,300000020467263
Portsmouth City Council,PCC,Children's and Education Services,Safeguarding Children and Young Peoples Services,Children's Services and Education,Third Party Payments,Other establishments,11-Feb-22,6555007,125,SUPPLIER,LILIAN DAVIS GROUP LTD,300000020467263
Portsmouth City Council,PCC,Children's and Education Services,Safeguarding Children and Young Peoples Services,Children's Services and Education,Third Party Payments,Other establishments,11-Feb-22,6555007,391,SUPPLIER,LILIAN DAVIS GROUP LTD,300000020467263
Portsmouth City Council,PCC,Children's and Education Services,Safeguarding Children and Young Peoples Services,Children's Services and Education,Third Party Payments,Other establishments,11-Feb-22,6555007,391,SUPPLIER,LILIAN DAVIS GROUP LTD,300000020467263
Portsmouth City Council,PCC,Children's and Education Services,Safeguarding Children and Young Peoples Services,Children's Services and Education,Third Party Payments,Other establishments,11-Feb-22,6555007,391,SUPPLIER,LILIAN DAVIS GROUP LTD,300000020467263
Portsmouth City Council,PCC,Children's and Education Services,Safeguarding Children and Young Peoples Services,Children's Services and Education,Third Party Payments,Other establishments,11-Feb-22,6555007,391,SUPPLIER,LILIAN DAVIS GROUP LTD,300000020467263
Portsmouth City Council,PCC,Adult Social Care,Physical Support Older People (85+),Adult Care,Third Party Payments,Other establishments,02-Feb-22,6552612,155.4,SUPPLIER,ADMIRAL CARE LTD,300000020477405
Portsmouth City Council,PCC,Adult Social Care,Mental Health Support Older People (65 - 74),Adult Care,Third Party Payments,Other establishments,02-Feb-22,6552612,173.4,SUPPLIER,ADMIRAL CARE LTD,300000020477405
Portsmouth City Council,PCC,Adult Social Care,Social Support - Support for Carer,Adult Care,Third Party Payments,Other establishments,02-Feb-22,6552612,183.36,SUPPLIER,ADMIRAL CARE LTD,300000020477405
Portsmouth City Council,PCC,Adult Social Care,Social Support - Support for Carer,Adult Care,Third Party Payments,Other establishments,02-Feb-22,6552612,183.36,SUPPLIER,ADMIRAL CARE LTD,300000020477405
Portsmouth City Council,PCC,Adult Social Care,Social Support - Support for Carer,Adult Care,Third Party Payments,Other establishments,02-Feb-22,6552612,192.48,SUPPLIER,ADMIRAL CARE LTD,300000020477405
Portsmouth City Council,PCC,Adult Social Care,Social Support - Support for Carer,Adult Care,Third Party Payments,Other establishments,02-Feb-22,6552612,192.48,SUPPLIER,ADMIRAL CARE LTD,300000020477405
Portsmouth City Council,PCC,Adult Social Care,Physical Support Older People (85+),Adult Care,Third Party Payments,Other establishments,02-Feb-22,6552612,433.5,SUPPLIER,ADMIRAL CARE LTD,300000020477405
Portsmouth City Council,PCC,Adult Social Care,Physical Support Older People (85+),Adult Care,Third Party Payments,Other establishments,02-Feb-22,6552612,239.76,SUPPLIER,ADMIRAL CARE LTD,300000020477405
Portsmouth City Council,PCC,Adult Social Care,Physical Support Older People (85+),Adult Care,Third Party Payments,Other establishments,02-Feb-22,6552612,248.64,SUPPLIER,ADMIRAL CARE LTD,300000020477405
Portsmouth City Council,PCC,Adult Social Care,Physical Support Older People (85+),Adult Care,Third Party Payments,Other establishments,02-Feb-22,6552612,248.64,SUPPLIER,ADMIRAL CARE LTD,300000020477405
Portsmouth City Council,PCC,Adult Social Care,Physical Support Older People (85+),Adult Care,Third Party Payments,Other establishments,02-Feb-22,6552612,248.64,SUPPLIER,ADMIRAL CARE LTD,300000020477405
Portsmouth City Council,PCC,Adult Social Care,Physical Support Older People (85+),Adult Care,Third Party Payments,Other establishments,02-Feb-22,6552612,248.64,SUPPLIER,ADMIRAL CARE LTD,300000020477405
Portsmouth City Council,PCC,Adult Social Care,Mental Health Support Older People (65 - 74),Adult Care,Third Party Payments,Other establishments,02-Feb-22,6552612,251.64,SUPPLIER,ADMIRAL CARE LTD,300000020477405
Portsmouth City Council,PCC,Adult Social Care,Mental Health Support Older People (65 - 74),Adult Care,Third Party Payments,Other establishments,02-Feb-22,6552612,251.64,SUPPLIER,ADMIRAL CARE LTD,300000020477405
Portsmouth City Council,PCC,Adult Social Care,Mental Health Support Older People (65 - 74),Adult Care,Third Party Payments,Other establishments,02-Feb-22,6552612,257.52,SUPPLIER,ADMIRAL CARE LTD,300000020477405
Portsmouth City Council,PCC,Adult Social Care,Mental Health Support Older People (65 - 74),Adult Care,Third Party Payments,Other establishments,02-Feb-22,6552612,257.52,SUPPLIER,ADMIRAL CARE LTD,300000020477405
Portsmouth City Council,PCC,Adult Social Care,Learning Disability Support Adults (18 - 64),Adult Care,Third Party Payments,Other establishments,11-Feb-22,6554992,"7,647.64",SUPPLIER, ACHIEVE TOGETHER LIMITED,300000020469986
Portsmouth City Council,PCC,Adult Social Care,Learning Disability Support Adults (18 - 64),Adult Care,Third Party Payments,Other establishments,11-Feb-22,6554992,"7,784.28",SUPPLIER, ACHIEVE TOGETHER LIMITED,300000020469986
Portsmouth City Council,PCC,Adult Social Care,Learning Disability Support Adults (18 - 64),Adult Care,Third Party Payments,Other establishments,11-Feb-22,6554992,"8,061.48",SUPPLIER, ACHIEVE TOGETHER LIMITED,300000020469986
Portsmouth City Council,PCC,Adult Social Care,Learning Disability Support Adults (18 - 64),Adult Care,Third Party Payments,Other establishments,11-Feb-22,6554992,"11,039.00",SUPPLIER, ACHIEVE TOGETHER LIMITED,300000020469986
Portsmouth City Council,PCC,Adult Social Care,Learning Disability Support Adults (18 - 64),Adult Care,Third Party Payments,Other establishments,25-Feb-22,6557605,39.88,SUPPLIER, ACHIEVE TOGETHER LIMITED,300000020469986
